Workbook

Sheet Table of Contents
C3: Sheet Tab | D3: Description | E3: Author
B4: 1 | C4: Table of content
B5: 2 | C5: Master Scenario
B6: 3 | C6: Summary
B7: 4 | C7: LBO Summary
B8: 5 | C8: Corporate Model
B9: 6 | C9: Valuation
B10: 7 | C10: SG&A Analysis
B11: 8 | C11: Tornado Graph
B12: 9 | C12: Audit
B13: 10 | C13: Acquisition
B14: 11 | C14: PE ratio
B15: 12 | C15: Stock price download
B16: 13 | C16: Stock prices
B17: 14 | C17: Offset Function
B18: 15 | C18: Codes
B19: 16 | C19: 2012 Update
B20: 17 | C20: Circular Sweep
B21: 18 | C21: Circular Corporate
B23: File Name: | D23: C:\Users\Elvis Presley\Documents\AIF Thursday v4.xlsm
B25: Colour Codes
B27: Last Save Date | D27: 2013-04-29T10:37:17
B28: Last Save By | D28: Usain Bolt

Sheet Summary
I1: Scenario
J3: Valuation Year | K3: =Valuation!$H$18 -> 2012 | O3: Custom Case Senstivity
J4: Terminal Year | K4: =Valuation!$H$19 -> 2019
J5: WACC | K5: =Valuation!H11 -> 0.06 | O5: Sales Sensitivity
O6: Margin Sensitvity
O7: Cap Exp Sensitivity
I8: DCF Analysis | J8: Growth rate method | K8: Value driver method | L8: Input EV/EBITDA | M8: Computed EV/ EBITDA
J9: Growth Rate | K9: ROIC/WACC | L9: EV/EBITA | M9: EV/EBITA | O9: A/R to Sales | Q9: ='Master Scenario'!$F$25 -> 0.084
J10: =Valuation!H12 -> 0.03 | K10: =Valuation!H13 -> 0.05 | L10: =Valuation!H14 -> 9 | M10: =Valuation!H15 -> 10 | O10: Inventories to COGS | Q10: ='Master Scenario'!$G$25 -> 0.056
I11: Enterprise Value | J11: =Valuation!H123 -> 5276578.721 | K11: =Valuation!$H$152 -> 6551194.041 | L11: =Valuation!$H$139 -> 2992252.566 | M11: =Valuation!H166 -> 4064310.53 | O11: A/P to Expenses | Q11: ='Master Scenario'!I25 -> 0.056
I12: Equity Value | J12: =Valuation!H133 -> 4905246.721 | K12: =Valuation!$H$154 -> 6179862.041 | L12: =Valuation!$H$142 -> 3339574.359 | M12: =Valuation!H142 -> 3339574.359
I13: Terminal EV/EBITDA | J13: =Valuation!H121 -> 9.11738664 | K13: =Valuation!$H$160 -> 11.66704704 | L13: =L10 -> 9 | M13: =Valuation!H165 -> 10
I14: Value/Share | J14: =Valuation!H136 -> 36.23129784 | K14: =Valuation!$H$156 -> 45.64590427 | L14: =Valuation!H144 -> 24.66687613 | M14: =Valuation!H170 -> 27.27720188
J16: Cost of Equity | K16: =Valuation!H37 -> 0.08
I18: Equity Cash Flow | J18: Growth rate method | K18: Value driver method | L18: Input PE | M18: Computed P/E
J19: Growth Rate | K19: ROE/ROE | L19: P/E | M19: P/E
J20: =Valuation!H38 -> 0.03 | K20: =Valuation!H39 -> 0.04 | L20: =Valuation!H40 -> 13 | M20: =Valuation!H42 -> 12
I21: PV of Dividends | J21: =Valuation!H181 -> 5.311880049 | K21: =J21 -> 5.311880049 | L21: =K21 -> 5.311880049 | M21: =L21 -> 5.311880049
I22: Terminal Value | J22: =Valuation!H187 -> 16.71625248 | K22: =Valuation!H196 -> 14.36650254 | L22: =Valuation!H199 -> 12.45096887 | M22: =Valuation!H202 -> 11.49320203
I23: Total Value | J23: =SUM(J20:J22) -> 22.05813253 | K23: =K21+K22 -> 19.67838259 | L23: =L21+L22 -> 17.76284892 | M23: =SUM(M21:M22) -> 16.80508208

Sheet LBO Summary
B2: Transaction Assumptions | H2: Scenario
C3: Premium | E3: =Acquisition!F14 -> 0.2
C4: Stock Price | E4: =Acquisition!$F$10*(1+Acquisition!$F$14) -> 24.48586047 | H4: Synergy Sensitivity | K4: ='Master Scenario'!E4 -> 1
C5: Implied P/E Ratio | E5: =Acquisition!F21 -> 24.58461626 | H5: Capital Expenditures | K5: =Acquisition!F85 -> 1
C6: Implied EV/EBITDA Ratio
H7: Equity IRR | K7: =Acquisition!F173 -> 0.1745077201
C8: Holding Period | E8: =Acquisition!$F$17 -> 10 | H8: Ungeared IRR | K8: =Acquisition!F177 -> 0.08620244563
C9: Exit EV/EBITDA | E9: =Acquisition!F23 -> 9 | H9: Defaulted senior debt at exit | K9: =SUMIF(Acquisition!3:3,TRUE,Acquisition!138:138) -> 0
H10: Defaulted sub debt at exit | K10: =SUMIF(Acquisition!3:3,TRUE,Acquisition!118:118) -> 0
B11: Sources and Uses
C12: Uses | H12: Custom Case Senstivity
D13: =Acquisition!C54 -> Repay existing debt | E13: =Acquisition!F54 -> 200000
D14: =Acquisition!C55 -> Consideration | E14: =Acquisition!F55 -> 3346482.55 | H14: Sales Sensitivity
D15: =Acquisition!C56 -> Banking fees | E15: =Acquisition!F56 -> 30000 | H15: Margin Sensitvity
D16: =Acquisition!C57 -> Advisory fees | E16: =Acquisition!F57 -> 33464.8255 | H16: Cap Exp Sensitivity
D17: Total | E17: =Acquisition!F58 -> 3609947.375
C18: Uses | H18: A/R to Sales | J18: ='Master Scenario'!$F$25 -> 0.084
D19: =Acquisition!C61 -> New amortizing debt | E19: =Acquisition!F31 -> 500000 | H19: Inventories to COGS | J19: ='Master Scenario'!$G$25 -> 0.056
D20: =Acquisition!C62 -> Bullet debt | E20: =Acquisition!F37 -> 800000 | H20: A/P to Expenses | J20: ='Master Scenario'!I25 -> 0.056
D21: =Acquisition!C63 -> Subordinated debt | E21: =Acquisition!F40 -> 700000
D22: =Acquisition!C64 -> Equity | E22: =Acquisition!F64 -> 1609947.375
D23: Total | E23: =SUM(E19:E22) -> 3609947.375

Sheet Master Scenario
C2: Scenario number | E2: 1
C4: Synergy Sensitivity | E4: =Acquisition!F83 -> 1
C5: Premium | E5: =Acquisition!F14 -> 0.2 | J5: DCF Analysis
D6: Sales Growth | E6: COGS margin | F6: Sales/AR | G6: Inventory/ COGS | H6: Capex/sales | I6: AP/Expenses | J6: Scenario | K6: Equity IRR | L6: =Summary!J8 -> Growth rate method | M6: =Summary!K8 -> Value driver method | N6: =Summary!L8 -> Input EV/EBITDA | O6: =Summary!M8 -> Computed EV/ EBITDA | P6: =Summary!J18 -> Growth rate method | Q6: =Summary!K18 -> Value driver method | R6: =Summary!L18 -> Input PE | S6: Unlevereged IRR from Acquisition
K7: =Acquisition!$F$174 -> 0.1844062865 | L7: =Summary!J14 -> 36.23129784 | M7: =Summary!K14 -> 45.64590427 | N7: =Summary!L14 -> 24.66687613 | O7: =Summary!M14 -> 27.27720188 | P7: =Summary!J23 -> 22.05813253 | Q7: =Summary!K23 -> 19.67838259 | R7: =Summary!L23 -> 17.76284892
C8: Base case | D8: 1 | E8: 1 | F8: 0.084 | G8: 0.056 | H8: 1 | I8: 0.056 | J8: 1 | K8: 0.1844062865 | L8: 36.23129784 | M8: 45.64590427 | N8: 24.66687613 | O8: 27.27720188 | P8: 22.05813253 | Q8: 19.67838259 | R8: 17.76284892
C9: Low case | D9: 2 | E9: 2 | F9: 0.1 | G9: 0.1 | H9: 2 | I9: 0.03 | J9: 2 | K9: 0.06153633893 | L9: 6.563677276 | M9: 17.62788455 | N9: 11.21846395 | O9: 12.6775047 | P9: 8.139104431 | Q9: 8.603857849 | R9: 7.862513301
C10: High case | D10: 3 | E10: 3 | F10: 0.07 | G10: 0.05 | H10: 3 | I10: 0.07 | J10: 3 | K10: 0.2582745612 | L10: 83.61123608 | M10: 77.19726619 | N10: 39.0572443 | O10: 42.83690449 | P10: 37.58483089 | Q10: 31.92612298 | R10: 28.67981047
C11: =TRANSPOSE(D6:I6)&" Low Case" -> Sales Growth Low Case | D11: =D9 -> 2 | E11: =E$8 -> 1 | F11: 0.084 | G11: 0.056 | H11: 1 | I11: 0.056 | J11: 4 | K11: 0.1227967203 | L11: 21.72081451 | M11: 29.04073559 | N11: 17.42599237 | O11: 19.30987305 | P11: 13.75781372 | Q11: 13.18737823 | R11: 11.99375809
C12: COGS margin Low Case | D12: =D$8 -> 1 | E12: =E9 -> 2 | F12: 0.084 | G12: 0.056 | H12: 1 | I12: 0.056 | J12: 5 | K12: 0.1514578879 | L12: 21.50456209 | M12: 34.76352607 | N12: 19.51201413 | O12: 21.68458068 | P12: 16.57063998 | Q12: 15.24356837 | R12: 13.77764559
C13: Sales/AR Low Case | D13: =D$8 -> 1 | E13: 1 | F13: =F9 -> 0.1 | G13: 0.056 | H13: 1 | I13: 0.056 | J13: 6 | K13: 0.1823388755 | L13: 35.11513778 | M13: 45.22298211 | N13: 24.24395398 | O13: 26.8419616 | P13: 21.88507682 | Q13: 19.53805161 | R13: 17.63662165
C14: Inventory/ COGS Low Case | D14: =D$8 -> 1 | E14: 1 | F14: =F$8 -> 0.084 | G14: =G9 -> 0.1 | H14: 1 | I14: 0.056 | J14: 7 | K14: 0.1813772857 | L14: 34.60321466 | M14: 45.02821534 | N14: 24.04918721 | O14: 26.64152201 | P14: 21.80554152 | Q14: 19.47342941 | R14: 17.57845833
C15: Capex/sales Low Case | D15: 1 | E15: 1 | F15: 0.084 | G15: 0.056 | H15: =H9 -> 2 | I15: 0.056 | J15: 8 | K15: 0.1829792798 | L15: 36.23165015 | M15: 45.0626807 | N15: 24.41474138 | O15: 27.0177234 | P15: 21.77669002 | Q15: 19.43529282 | R15: 17.53983609
C16: AP/Expenses Low Case | D16: 1 | E16: 1 | F16: 0.084 | G16: 0.056 | H16: 1 | I16: =I9 -> 0.03 | J16: 9 | K16: 0.1814659059 | L16: 34.6909725 | M16: 45.04331447 | N16: 24.06428633 | O16: 26.65706092 | P16: 21.81159001 | Q16: 19.47828748 | R16: 17.58281422
C17: =TRANSPOSE(D6:I6)&" High Case" -> Sales Growth High Case | D17: =D10 -> 3 | E17: 1 | F17: 0.084 | G17: 0.056 | H17: 1 | I17: 0.056 | J17: 10 | K17: 0.2174498379 | L17: 49.34991647 | M17: 59.43117975 | N17: 30.85079685 | O17: 34.06776219 | P17: 28.99285807 | Q17: 25.17092322 | R17: 22.6651618
C18: COGS margin High Case | D18: 1 | E18: =E10 -> 3 | F18: 0.084 | G18: 0.056 | H18: 1 | I18: 0.056 | J18: 11 | K18: 0.2090166271 | L18: 50.4869647 | M18: 56.05721356 | N18: 29.35066924 | O18: 32.38503372 | P18: 27.23663864 | Q18: 23.75892652 | R18: 21.39876662
C19: Sales/AR High Case | D19: 1 | E19: 1 | F19: =F10 -> 0.07 | G19: 0.056 | H19: 1 | I19: 0.056 | J19: 12 | K19: 0.1861904323 | L19: 37.2079379 | M19: 46.01596115 | N19: 25.03693302 | O19: 27.65803712 | P19: 22.20955628 | Q19: 19.80117219 | R19: 17.87329777
C20: Inventory/ COGS High Case | D20: 1 | E20: 1 | F20: 0.084 | G20: =G10 -> 0.05 | H20: 1 | I20: 0.056 | J20: 13 | K20: 0.1848142803 | L20: 36.45330918 | M20: 45.73013457 | N20: 24.75110644 | O20: 27.36388549 | P20: 22.09257676 | Q20: 19.70633075 | R20: 17.78799309
C21: Capex/sales High Case | D21: 1 | E21: 1 | F21: 0.084 | G21: 0.056 | H21: =H10 -> 3 | I21: 0.056 | J21: 14 | K21: 0.198079747 | L21: 50.32829794 | M21: 50.46996985 | N21: 26.61744507 | O21: 29.2845835 | P21: 24.30750262 | Q21: 21.438831 | R21: 19.3278691
C22: AP/Expenses High Case | D22: 1 | E22: 1 | F22: 0.084 | G22: 0.056 | H22: 1 | I22: =I10 -> 0.07 | J22: 15 | K22: 0.1859642208 | L22: 37.0607038 | M22: 45.9703757 | N22: 24.99134757 | O22: 27.61112393 | P22: 22.1908862 | Q22: 19.78612611 | R22: 17.85979067
C23: Custom Case | D23: =D27/D29 -> 1 | E23: =E27/E29 -> 1 | F23: =F27/100 -> 0.084 | G23: =G27/100 -> 0.056 | H23: 1 | I23: =I27/I29 -> 0.056 | J23: 16 | K23: 0.1844062865 | L23: 36.23129784 | M23: 45.64590427 | N23: 24.66687613 | O23: 27.27720188 | P23: 22.05813253 | Q23: 19.67838259 | R23: 17.76284892
C25: =INDEX(C8:C23,$E$2) -> Base case | D25: =INDEX(D8:D23,$E$2) -> 1 | E25: 1 | F25: 0.084 | G25: 0.056 | H25: 1 | I25: =INDEX(I8:I23,$E$2) -> 0.056
C27: Fixed | D27: 1 | E27: 1 | F27: 8.4 | G27: 5.6 | H27: 1 | I27: 5.6
C28: Adjusted | D28: =D30*D29 -> 1 | E28: 1 | F28: 8.4 | G28: 5.6 | H28: 1 | I28: 5.6
C29: Multiplier | D29: 1 | E29: 1 | F29: 100 | G29: 100 | H29: 1 | I29: 100
C30: Copied Data | D30: 1 | E30: 1 | F30: 0.084 | G30: 0.056 | H30: 1 | I30: 0.056
D35: Low v Base | E35: High v Base | F35: Total | H35: Small | I35: Match | K35: =D35 -> Low v Base | L35: =E35 -> High v Base
C36: =TRANSPOSE(D6:I6) -> Sales Growth | D36: =K11-$K$8 -> -0.06160956621 | E36: =K17-$K$8 -> 0.03304355145 | F36: =E36-D36+RAND()*0.00001 -> 0.09465894761 | G36: 1 | H36: =SMALL($F$36:$F$41,G36) -> 0.003443220045 | I36: =MATCH(H36,$F$36:$F$41,0) -> 4 | J36: =INDEX($C$36:$C$41,I36) -> Inventory/ COGS | K36: =INDEX($D$36:$D$41,I36) -> -0.003029000759 | L36: =INDEX($E$36:$E$41,I36) -> 0.0004079937935
C37: COGS margin | D37: -0.03294839859 | E37: 0.0246103406 | F37: =E37-D37+RAND()*0.00001 -> 0.05756283745 | G37: 2 | H37: =SMALL($F$36:$F$41,G37) -> 0.003859637079 | I37: =MATCH(H37,$F$36:$F$41,0) -> 3 | J37: =INDEX($C$36:$C$41,I37) -> Sales/AR | K37: =INDEX($D$36:$D$41,I37) -> -0.002067410946 | L37: =INDEX($E$36:$E$41,I37) -> 0.001784145832
C38: Sales/AR | D38: -0.002067410946 | E38: 0.001784145832 | F38: 0.003859637079 | G38: 3 | H38: 0.004506342517 | I38: 6 | J38: AP/Expenses | K38: =INDEX($D$36:$D$41,I38) -> -0.002940380573 | L38: 0.001557934284
C39: Inventory/ COGS | D39: -0.003029000759 | E39: 0.0004079937935 | F39: 0.003443220045 | G39: 4 | H39: 0.01510270566 | I39: 5 | J39: Capex/sales | K39: -0.001427006721 | L39: 0.01367346048
C40: Capex/sales | D40: -0.001427006721 | E40: 0.01367346048 | F40: 0.01510270566 | G40: 5 | H40: 0.05756283745 | I40: 2 | J40: COGS margin | K40: -0.03294839859 | L40: 0.0246103406
C41: AP/Expenses | D41: -0.002940380573 | E41: 0.001557934284 | F41: 0.004506342517 | G41: 6 | H41: 0.09465894761 | I41: 1 | J41: Sales Growth | K41: -0.06160956621 | L41: 0.03304355145
F44: Tornado Diagram for Equity IRR | I44: Premium | J44: ='LBO Summary'!E3 -> 0.2 | K44: Synergies | L44: ='LBO Summary'!K4 -> 1

Sheet Corporate Model
A1: Timeline
I2: 2000 | J2: 2001 | K2: 2002 | L2: 2003 | M2: 2004 | N2: 2005 | O2: 2006 | P2: 2007 | Q2: 2008 | R2: 2009 | S2: 2010 | T2: 2011 | U2: 2012 | V2: 2013 | W2: 2014 | X2: 2015 | Y2: 2016 | Z2: 2017 | AA2: 2018 | AB2: 2019 | AC2: 2020 | AD2: 2021 | AE2: 2021
B3: Historic timeline switch | G3: =COUNTIF(I3:AE3,TRUE) -> 13 | I3: =I2<=Valuation!$H$17 -> TRUE | J3: =J2<=Valuation!$H$17 -> TRUE | K3: =K2<=Valuation!$H$17 -> TRUE | L3: =L2<=Valuation!$H$17 -> TRUE | M3: =M2<=Valuation!$H$17 -> TRUE | N3: =N2<=Valuation!$H$17 -> TRUE | O3: =O2<=Valuation!$H$17 -> TRUE | P3: =P2<=Valuation!$H$17 -> TRUE | Q3: =Q2<=Valuation!$H$17 -> TRUE | R3: =R2<=Valuation!$H$17 -> TRUE | S3: =S2<=Valuation!$H$17 -> TRUE | T3: =T2<=Valuation!$H$17 -> TRUE | U3: =U2<=Valuation!$H$17 -> TRUE | V3: =V2<=Valuation!$H$17 -> FALSE | W3: =W2<=Valuation!$H$17 -> FALSE | X3: =X2<=Valuation!$H$17 -> FALSE | Y3: =Y2<=Valuation!$H$17 -> FALSE | Z3: =Z2<=Valuation!$H$17 -> FALSE | AA3: =AA2<=Valuation!$H$17 -> FALSE | AB3: =AB2<=Valuation!$H$17 -> FALSE | AC3: =AC2<=Valuation!$H$17 -> FALSE | AD3: =AD2<=Valuation!$H$17 -> FALSE | AE3: =AE2<=Valuation!$H$17 -> FALSE
B4: Explicit period switch | G4: =COUNTIF(I4:AE4,TRUE) -> 8 | H4: =Valuation!H19-Valuation!H18+1=G4 -> TRUE | I4: =AND(I2>=Valuation!$H$18,I2<=Valuation!$H$19) -> FALSE | J4: =AND(J2>=Valuation!$H$18,J2<=Valuation!$H$19) -> FALSE | K4: =AND(K2>=Valuation!$H$18,K2<=Valuation!$H$19) -> FALSE | L4: =AND(L2>=Valuation!$H$18,L2<=Valuation!$H$19) -> FALSE | M4: =AND(M2>=Valuation!$H$18,M2<=Valuation!$H$19) -> FALSE | N4: =AND(N2>=Valuation!$H$18,N2<=Valuation!$H$19) -> FALSE | O4: =AND(O2>=Valuation!$H$18,O2<=Valuation!$H$19) -> FALSE | P4: =AND(P2>=Valuation!$H$18,P2<=Valuation!$H$19) -> FALSE | Q4: =AND(Q2>=Valuation!$H$18,Q2<=Valuation!$H$19) -> FALSE | R4: =AND(R2>=Valuation!$H$18,R2<=Valuation!$H$19) -> FALSE | S4: =AND(S2>=Valuation!$H$18,S2<=Valuation!$H$19) -> FALSE | T4: =AND(T2>=Valuation!$H$18,T2<=Valuation!$H$19) -> FALSE | U4: =AND(U2>=Valuation!$H$18,U2<=Valuation!$H$19) -> TRUE | V4: =AND(V2>=Valuation!$H$18,V2<=Valuation!$H$19) -> TRUE | W4: =AND(W2>=Valuation!$H$18,W2<=Valuation!$H$19) -> TRUE | X4: =AND(X2>=Valuation!$H$18,X2<=Valuation!$H$19) -> TRUE | Y4: =AND(Y2>=Valuation!$H$18,Y2<=Valuation!$H$19) -> TRUE | Z4: =AND(Z2>=Valuation!$H$18,Z2<=Valuation!$H$19) -> TRUE | AA4: =AND(AA2>=Valuation!$H$18,AA2<=Valuation!$H$19) -> TRUE | AB4: =AND(AB2>=Valuation!$H$18,AB2<=Valuation!$H$19) -> TRUE | AC4: =AND(AC2>=Valuation!$H$18,AC2<=Valuation!$H$19) -> FALSE | AD4: =AND(AD2>=Valuation!$H$18,AD2<=Valuation!$H$19) -> FALSE | AE4: =AND(AE2>=Valuation!$H$18,AE2<=Valuation!$H$19) -> FALSE
B5: Valuation year | G5: =COUNTIF(I5:AE5,TRUE) -> 1 | I5: =I2=Valuation!$H$18 -> FALSE | J5: =J2=Valuation!$H$18 -> FALSE | K5: =K2=Valuation!$H$18 -> FALSE | L5: =L2=Valuation!$H$18 -> FALSE | M5: =M2=Valuation!$H$18 -> FALSE | N5: =N2=Valuation!$H$18 -> FALSE | O5: =O2=Valuation!$H$18 -> FALSE | P5: =P2=Valuation!$H$18 -> FALSE | Q5: =Q2=Valuation!$H$18 -> FALSE | R5: =R2=Valuation!$H$18 -> FALSE | S5: =S2=Valuation!$H$18 -> FALSE | T5: =T2=Valuation!$H$18 -> FALSE | U5: =U2=Valuation!$H$18 -> TRUE | V5: =V2=Valuation!$H$18 -> FALSE | W5: =W2=Valuation!$H$18 -> FALSE | X5: =X2=Valuation!$H$18 -> FALSE | Y5: =Y2=Valuation!$H$18 -> FALSE | Z5: =Z2=Valuation!$H$18 -> FALSE | AA5: =AA2=Valuation!$H$18 -> FALSE | AB5: =AB2=Valuation!$H$18 -> FALSE | AC5: =AC2=Valuation!$H$18 -> FALSE | AD5: =AD2=Valuation!$H$18 -> FALSE | AE5: =AE2=Valuation!$H$18 -> FALSE
B6: Closing Balance Sheet for valuation | G6: =COUNTIF(I6:AE6,TRUE) -> 1 | I6: =I2=Valuation!$H$18-1 -> FALSE | J6: =J2=Valuation!$H$18-1 -> FALSE | K6: =K2=Valuation!$H$18-1 -> FALSE | L6: =L2=Valuation!$H$18-1 -> FALSE | M6: =M2=Valuation!$H$18-1 -> FALSE | N6: =N2=Valuation!$H$18-1 -> FALSE | O6: =O2=Valuation!$H$18-1 -> FALSE | P6: =P2=Valuation!$H$18-1 -> FALSE | Q6: =Q2=Valuation!$H$18-1 -> FALSE | R6: =R2=Valuation!$H$18-1 -> FALSE | S6: =S2=Valuation!$H$18-1 -> FALSE | T6: =T2=Valuation!$H$18-1 -> TRUE | U6: =U2=Valuation!$H$18-1 -> FALSE | V6: =V2=Valuation!$H$18-1 -> FALSE | W6: =W2=Valuation!$H$18-1 -> FALSE | X6: =X2=Valuation!$H$18-1 -> FALSE | Y6: =Y2=Valuation!$H$18-1 -> FALSE | Z6: =Z2=Valuation!$H$18-1 -> FALSE | AA6: =AA2=Valuation!$H$18-1 -> FALSE | AB6: =AB2=Valuation!$H$18-1 -> FALSE | AC6: =AC2=Valuation!$H$18-1 -> FALSE | AD6: =AD2=Valuation!$H$18-1 -> FALSE | AE6: =AE2=Valuation!$H$18-1 -> FALSE
B7: Terminal value switch | G7: =COUNTIF(I7:AE7,TRUE) -> 1 | I7: =I2=Valuation!$H$19 -> FALSE | J7: =J2=Valuation!$H$19 -> FALSE | K7: =K2=Valuation!$H$19 -> FALSE | L7: =L2=Valuation!$H$19 -> FALSE | M7: =M2=Valuation!$H$19 -> FALSE | N7: =N2=Valuation!$H$19 -> FALSE | O7: =O2=Valuation!$H$19 -> FALSE | P7: =P2=Valuation!$H$19 -> FALSE | Q7: =Q2=Valuation!$H$19 -> FALSE | R7: =R2=Valuation!$H$19 -> FALSE | S7: =S2=Valuation!$H$19 -> FALSE | T7: =T2=Valuation!$H$19 -> FALSE | U7: =U2=Valuation!$H$19 -> FALSE | V7: =V2=Valuation!$H$19 -> FALSE | W7: =W2=Valuation!$H$19 -> FALSE | X7: =X2=Valuation!$H$19 -> FALSE | Y7: =Y2=Valuation!$H$19 -> FALSE | Z7: =Z2=Valuation!$H$19 -> FALSE | AA7: =AA2=Valuation!$H$19 -> FALSE | AB7: =AB2=Valuation!$H$19 -> TRUE | AC7: =AC2=Valuation!$H$19 -> FALSE | AD7: =AD2=Valuation!$H$19 -> FALSE | AE7: =AE2=Valuation!$H$19 -> FALSE
A8: Historic Financial Statements
B9: CONSOLIDATED BALANCE SHEETS
F10: ASSETS
F11: Current Assets:
F12: Cash and cash equivalents | I12: 11845 | J12: 12280 | K12: 69826 | L12: 42416 | M12: 47458 | N12: 11001 | O12: 13914 | P12: 19978 | Q12: 19964 | R12: 18948 | S12: 6755 | T12: 7783 | U12: ='2012 Update'!C6 -> 13275
F13: Accounts and notes receivable, net (Note 2) | I13: 113099 | J13: 104104 | K13: 104121 | L13: 99373 | M13: 117736 | N13: 120751 | O13: 131879 | P13: 137682 | Q13: 178077 | R13: 178708 | S13: 166281 | T13: 185603 | U13: ='2012 Update'!C8 -> 256235
F15: Inventories, net:
F16: Raw materials | I16: 26643 | J16: 18593 | K16: 7872 | L16: 9100 | M16: 9661 | N16: 11042 | O16: 12573 | P16: 14257 | Q16: 18032 | R16: 20952 | S16: 20879 | T16: 26626 | U16: ='2012 Update'!C11 -> 32731
F17: Packaging materials | I17: 12048 | J17: 13942 | K17: 7806 | L17: 7127 | M17: 8321 | N17: 10055 | O17: 10539 | P17: 10809 | Q17: 12162 | R17: 12065 | S17: 12125 | T17: 15820 | U17: ='2012 Update'!C12 -> 18885
F18: Finished goods | I18: 50254 | J18: 56466 | K18: 14311 | L18: 14487 | M18: 18484 | N18: 21704 | O18: 20613 | P18: 22271 | Q18: 23984 | R18: 27979 | S18: 27570 | T18: 31650 | U18: ='2012 Update'!C13 -> 39394
F19: Total Inventories | I19: 88945 | J19: 89001 | K19: 29989 | L19: 30714 | M19: 36466 | N19: 42801 | O19: 43725 | P19: 47337 | Q19: 54178 | R19: 60996 | S19: 60574 | T19: 74096 | U19: =SUM(U16:U18) -> 91010
F21: Spare parts and supplies | I21: 20255 | J21: 20981 | K21: 19840 | L21: 20149 | M21: 21384 | N21: 23241 | O21: 25724 | P21: 28574 | Q21: 32541 | R21: 35437 | S21: 37085 | T21: 39624 | U21: ='2012 Update'!C17 -> 45239
F22: Assets held for sale | I22: 19077 | J22: 18025 | K22: 18563 | L22: 14080
F23: Deferred income taxes | I23: 14079 | J23: 8149 | K23: 243061 | L23: 0 | M23: 34316 | N23: 7561 | O23: 11679 | P23: 1863 | Q23: 38745 | R23: 20714 | S23: 1095 | T23: 36264 | U23: ='2012 Update'!C19 -> 29198
K24: 0 | L24: 39627
F25: Other | K25: 10009 | L25: 20349 | M25: 12532 | N25: 32215 | O25: 15195 | P25: 33800 | Q25: 28738 | R25: 24152 | S25: 41924 | T25: 35200 | U25: ='2012 Update'!C21 -> 29494
F26: Total current assets | I26: =I12+I13+I19+I21+I22+I23+I24+I25 -> 267300 | J26: 252540 | K26: 495409 | L26: 266708 | M26: 269892 | N26: 237570 | O26: 242116 | P26: 269234 | Q26: 352243 | R26: 338955 | S26: 313714 | T26: 378570 | U26: 464451
F28: Property, Plant and Equipment:
F29: Land | I29: 33386 | J29: 33324 | K29: 33073 | L29: 34074 | M29: 35063 | N29: 36615 | O29: 38849 | P29: 44826 | Q29: 61355 | R29: 64816 | S29: 67036 | T29: 69958 | U29: ='2012 Update'!C26 -> 75610
F30: Buildings | I30: 264889 | J30: 267184 | K30: 200713 | L30: 206397 | M30: 211629 | N30: 222131 | O30: 252729 | P30: 280806 | Q30: 305472 | R30: 323860 | S30: 329646 | T30: 360956 | U30: ='2012 Update'!C27 -> 378255
F31: Machinery and equipment | I31: 567682 | J31: 656727 | K31: 509879 | L31: 533967 | M31: 561510 | N31: 550303 | O31: 583685 | P31: 612983 | Q31: 694875 | R31: 737150 | S31: 795869 | T31: 895026 | U31: ='2012 Update'!C28 -> 964377
F32: Furniture, fixtures and transportation equipment | I32: 64596 | J32: 67797 | K32: 43689 | L32: 54246 | M32: 75781 | N32: 82777 | O32: 85689 | P32: 87870 | Q32: 94762 | R32: 102331 | S32: 69223 | T32: 81288 | U32: ='2012 Update'!C29 -> 97110
F33: Construction in progress | I33: 1081 | J33: 8570 | K33: 12174 | L33: 16600 | M33: 8858 | N33: 29480 | O33: 16160 | P33: 16997 | Q33: 32663 | R33: 27006 | S33: 22480 | T33: 13888 | U33: ='2012 Update'!C30 -> 21645
F34: Total | I34: 931634 | J34: 1033602 | K34: 799528 | L34: 845284 | M34: 892841 | N34: 921306 | O34: 977112 | P34: 1043482 | Q34: 1189127 | R34: 1255163 | S34: 1284254 | T34: 1421116 | U34: ='2012 Update'!C32 -> 1536997
F35: Less: accumulated depreciation | I35: -362160 | J35: -423170 | K35: -363403 | L35: -413296 | M35: -453993 | N35: -469385 | O35: -512670 | P35: -556960 | Q35: -601931 | R35: -652587 | S35: -679561 | T35: -735629 | U35: ='2012 Update'!C33 -> -811161
F36: Net Plant Assets | I36: 569474 | J36: 610432 | K36: 436125 | L36: 431988 | M36: 438848 | N36: 451921 | O36: 464442 | P36: 486522 | Q36: 587196 | R36: 602576 | S36: 604693 | T36: 685487 | U36: =U34+U35 -> 725836
F38: Notes Receivable | I38: 0 | J38: 72940 | K38: 71599 | L38: 73345 | M38: 74065 | N38: 70357 | O38: 74428 | P38: 88469 | Q38: 94652 | R38: 94457 | S38: 92860 | T38: 102322 | U38: ='2012 Update'!C37 -> 102723
F39: Deferred Taxes | I39: 15207 | J39: 16084 | K39: 28389 | L39: 0
F40: Assets Held for Sale - Distributor Routes | M40: 12969 | N40: 16382 | O40: 22908 | P40: 12396 | Q40: 7995 | R40: 6535 | S40: 11924 | T40: 12726 | U40: ='2012 Update'!C39 -> 30116
F41: Other Assets | I41: 13754 | J41: 22015 | K41: 10225 | L41: 4039 | M41: 2322 | N41: 2667 | O41: 3038 | P41: 32525 | Q41: 4830 | R41: 4157 | S41: 5113 | T41: 13932 | U41: ='2012 Update'!C41 -> 14442
F42: Goodwill | I42: 567449 | J42: 0 | K42: 54249 | L42: 57038 | M42: 58567 | N42: 58567 | O42: 75537 | P42: 76338 | Q42: 200035 | R42: 201682 | S42: 200153 | T42: 219730 | U42: ='2012 Update'!C43 -> 269897
F43: Misc Assets | I43: 170344 | J43: 174913
F44: Other Intangible Assets, net | I44: -40882 | J44: -49233 | K44: 6506 | L44: 14121 | M44: 18985 | N44: 13605 | O44: 24121 | P44: 22051 | Q44: 106293 | R44: 103080 | S44: 97032 | T44: 141231 | U44: ='2012 Update'!C45 -> 388384
F45: Total Non-Current Assets | I45: =SUM(I38:I44) -> 725872 | J45: 236719 | K45: 170968 | L45: 148543 | M45: 166908 | N45: 161578 | O45: 200032 | P45: 231779 | Q45: 413805 | R45: 409911 | S45: 407082 | T45: 489941 | U45: 805562
F46: Total Assets | I46: =I26+I36+I45 -> 1562646 | J46: 1099691 | K46: 1102502 | L46: 847239 | M46: 875648 | N46: 851069 | O46: 906590 | P46: 987535 | Q46: 1353244 | R46: 1351442 | S46: 1325489 | T46: 1553998 | U46: 1995849
I47: =I38+I40+I41+I43+I44 -> 143216 | J47: =J38+J40+J41+J43+J44 -> 220635 | K47: =K38+K40+K41+K43+K44 -> 88330
F48: LIABILITIES AND STOCKHOLDERS’ EQUITY
F49: Current Liabilities:
F50: Current maturities of long-term debt and capital leases | I50: 7515 | J50: 15648 | K50: 27231 | L50: 5286 | M50: 5087 | N50: 4652 | O50: 7406 | P50: 6920 | Q50: 22538 | R50: 25763 | S50: 28432 | T50: 42768 | U50: ='2012 Update'!C51 -> 71996
F51: Accounts payable | I51: 100775 | J51: 83980 | K51: 82827 | L51: 81293 | M51: 73902 | N51: 83801 | O51: 90945 | P51: 98302 | Q51: 116818 | R51: 92692 | S51: 102068 | T51: 115138 | U51: ='2012 Update'!C52 -> 153956
F52: Other accrued liabilities | I52: 5465 | J52: 4830 | K52: 4516 | L52: 4683 | M52: 112033 | N52: 85822 | O52: 86891 | P52: 108423 | Q52: 125713 | R52: 103317 | S52: 112272 | T52: 110513 | U52: ='2012 Update'!C53 -> 129006
F53: Misc Liabilities | I53: 68612 | J53: 81756 | K53: 2553 | L53: 0
K54: 100151 | L54: 71870
F55: Total current liabilities | I55: =SUM(I50:I54) -> 182367 | J55: 186214 | K55: 217278 | L55: 163132 | M55: 191022 | N55: 174275 | O55: 185242 | P55: 213645 | Q55: 265069 | R55: 221772 | S55: 242772 | T55: 268419 | U55: 354958
F56: Long-Term Debt and Capital Leases | I56: 247847 | J56: 242057 | K56: 223133 | L56: 9866 | M56: 22578 | N56: 74403 | O56: 79126 | P56: 22508 | Q56: 263879 | R56: 225905 | S56: 98870 | T56: 283406 | U56: ='2012 Update'!C58+'2012 Update'!C59 -> 535016
F57: Other Liabilities:
F58: Post-retirement/post-employment obligations | I58: 22331 | J58: 25466 | K58: 43486 | L58: 46302 | M58: 22590 | N58: 9728 | O58: 146 | P58: 0 | Q58: 78897 | R58: 68140 | S58: 76086 | T58: 155263 | U58: ='2012 Update'!C64 -> 159158
F59: Deferred income taxes | I59: 13891 | J59: 11571 | K59: 7337 | L59: 20473 | M59: 42171 | N59: 42569 | O59: 47394 | P59: 50974 | Q59: 55510 | R59: 63748 | S59: 66680 | T59: 35375 | U59: ='2012 Update'!C65 -> 39206
F60: Other | I60: 584198 | J60: 0 | K60: 18272 | L60: 29815 | M60: 24714 | N60: 33160 | O60: 25949 | P60: 36391 | Q60: 45835 | R60: 43851 | S60: 45291 | T60: 52567 | U60: ='2012 Update'!C66 -> 48891
I61: 9552 | J61: 12746
F62: Total other liabilities | I62: =SUM(I58:I61) -> 629972 | J62: 49783 | K62: 69095 | L62: 96590 | M62: 89475 | N62: 85457 | O62: 73489 | P62: 87365 | Q62: 180242 | R62: 175739 | S62: 188057 | T62: 243205 | U62: 247255
F64: Minority Interest in Variable Interest Entity | M64: 2836 | N64: 4563 | O64: 5870 | P64: 7802 | Q64: 9335 | R64: 12081
F66: Stockholders’ Equity:
F67: Common Stock | I67: 199 | J67: 298 | K67: 300 | L67: 452 | M67: 452 | N67: 678 | O67: 678 | P67: 1017 | Q67: 1017 | R67: 1017 | S67: 199 | T67: 199 | U67: ='2012 Update'!C73 -> 199
F68: Treasury stock 16,506,822 shares and 11,011,494 shares, respectively | K68: 0 | L68: -22143 | M68: -52366 | N68: -148747 | O68: -162368 | P68: -154801 | Q68: -157799 | R68: -189250 | S68: -214683 | T68: -221246 | U68: ='2012 Update'!C74 -> -196465
F69: Capital in excess of par value | I69: 351506 | J69: 476401 | K69: 483142 | L69: 486739 | M69: 484476 | N69: 474708 | O69: 482157 | P69: 484472 | Q69: 524383 | R69: 531326 | S69: 540294 | T69: 544065 | U69: ='2012 Update'!C75 -> 571924
F70: Retained earnings | I70: 164135 | J70: 149842 | K70: 131388 | L70: 130981 | M70: 160988 | N70: 198567 | O70: 250616 | P70: 303386 | Q70: 369397 | R70: 437524 | S70: 503689 | T70: 547997 | U70: ='2012 Update'!C76 -> 597629
I71: 0 | J71: 4904 | K71: -21834 | L71: -18378 | M71: -1103 | N71: -898
F72: Accumulated other comprehensive loss | I72: -13380 | J72: -9808 | M72: -22710 | N72: -11937 | O72: -8220 | P72: 22141 | Q72: -102279 | R72: -64672 | S72: -33709 | T72: -112047 | U72: ='2012 Update'!C77 -> -114667
F73: Total Flowers Foods, Inc. stockholders’ equity | I73: =SUM(I67:I72) -> 502460 | J73: 621637 | K73: 592996 | L73: 577651 | M73: 569737 | N73: 512371 | O73: 562863 | P73: 656215 | Q73: 634719 | R73: 715945 | S73: 795790 | T73: 758968 | U73: ='2012 Update'!C79 -> 858620
F74: Total Minoity and Common Equity | I74: =I73+I64 -> 502460 | J74: 621637 | K74: 592996 | L74: 577651 | M74: 572573 | N74: 516934 | O74: 568733 | P74: 664017 | Q74: 644054 | R74: 728026 | S74: 795790 | T74: 758968 | U74: 858620
F76: Total liabilities and stockholders’ equity | I76: =I74+I62+I56+I55 -> 1562646 | J76: 1099691 | K76: 1102502 | L76: 847239 | M76: 875648 | N76: 851069 | O76: 906590 | P76: 987535 | Q76: 1353244 | R76: 1351442 | S76: 1325489 | T76: 1553998 | U76: 1995849
I78: =I76=I46 -> TRUE | J78: TRUE | K78: TRUE | L78: TRUE | M78: TRUE | N78: TRUE | O78: TRUE | P78: TRUE | Q78: TRUE | R78: TRUE | S78: TRUE | T78: TRUE | U78: TRUE
F79: Balance sheet test | I79: =AND(I78:T78) -> TRUE
B81: CONSOLIDATED STATEMENTS OF INCOME
F82: Sales | I82: 1568934 | J82: 1299490 | K82: 1328607 | L82: 1452995 | M82: 1551308 | N82: 1715869 | O82: 1888654 | P82: 2036674 | Q82: 2414892 | R82: 2600849 | S82: 2573769 | T82: 2773356 | U82: ='2012 Update'!C88 -> 3046491
F83: Materials, supplies, labor and other production costs (exclusive of depreciation and amortization shown separately below) | I83: 900198 | J83: 640869 | K83: 651886 | L83: 720162 | M83: 779437 | N83: 861583 | O83: 949612 | P83: 1039011 | Q83: 1263962 | R83: 1390183 | S83: 1346790 | T83: 1473201 | U83: ='2012 Update'!C89 -> 1617810
F84: Selling, distribution and administrative expenses | I84: 591489 | J84: 557957 | K84: 554078 | L84: 601013 | M84: 632895 | N84: 695656 | O84: 759387 | P84: 787821 | Q84: 894800 | R84: 926418 | S84: 935999 | T84: 1016491 | U84: ='2012 Update'!C90 -> 1107480
F85: Depreciation and amortization | I85: 67102 | J85: 57124 | K85: 56774 | L85: 53935 | M85: 56702 | N85: 59344 | O85: 64250 | P85: 66094 | Q85: 73312 | R85: 80928 | S85: 85118 | T85: 94638 | U85: ='2012 Update'!C91 -> 102690
F86: Gain on acquisition | I86: -17193 | J86: 0 | K86: 2132 | N86: 0 | O86: -3088 | P86: 0 | Q86: 0 | R86: -3013 | S86: 0 | T86: 0
F87: Gain on sale of assets | I87: 17704 | J87: 23038 | K87: 0 | P87: 0 | Q87: -2306
F88: Asset impairment | J88: 3467 | K88: 0 | P88: 0 | Q88: 3108
F89: Gain on insurance recovery | P89: -933 | Q89: -686
F90: Income from operations | I90: =I82-I83-I84-I85-I86-I87-I88-I89 -> 9634 | J90: 17035 | K90: 63737 | L90: 77885 | M90: 82274 | N90: 99286 | O90: 118493 | P90: 144681 | Q90: 182702 | R90: 206333 | S90: 205862 | T90: 189026 | U90: 218511
F91: Interest expense | I91: 68373 | J91: 15319 | K91: 2740 | L91: 1922 | M91: 660 | N91: 3576 | O91: 4923 | P91: 3450 | Q91: 6137 | R91: 11587 | S91: 8164 | T91: 10172 | U91: ='2012 Update'!C94 -> 23411
F92: Interest income | I92: 0 | J92: -8120 | K92: -9709 | L92: -9904 | M92: -9486 | N92: -9913 | O92: -9869 | P92: -11854 | Q92: -13486 | R92: -13013 | S92: -12682 | T92: -13112 | U92: ='2012 Update'!C95 -> -13672
F93: Gain on early extinguishment of debt | J93: -6422 | K93: 0
F94: Income before income taxes | I94: =I90-I91-I92-I93 -> -58739 | J94: 16258 | K94: 70706 | L94: 85867 | M94: 91100 | N94: 105623 | O94: 123439 | P94: 153085 | Q94: 190051 | R94: 207759 | S94: 210380 | T94: 191966 | U94: 208772
F95: Income tax expense | I95: -16457 | J95: 7240 | K95: 27221 | L95: 33063 | M95: 35071 | N95: 39861 | O95: 45304 | P95: 54970 | Q95: 67744 | R95: 74047 | S95: 73333 | T95: 68538 | U95: ='2012 Update'!C98 -> 72651
F96: Net income | I96: =I94-I95 -> -42282 | J96: 9018 | K96: 43485 | L96: 52804 | M96: 56029 | N96: 65762 | O96: 78135 | P96: 98115 | Q96: 122307 | R96: 133712 | S96: 137047 | T96: 123428 | U96: 136121
F97: Less: net income attributable to noncontrolling interest | I97: -40482 | J97: -23311 | K97: -37362 | L97: 0 | M97: -1769 | N97: -2904 | O97: -3255 | P97: -3500 | Q97: -3074 | R97: -3415 | S97: 0 | T97: 0 | U97: 0
F98: Net income attributable to Flowers Foods, Inc. | I98: =I96+I97 -> -82764 | J98: -14293 | K98: 6123 | L98: 52804 | M98: 54260 | N98: 62858 | O98: 74880 | P98: 94615 | Q98: 119233 | R98: 130297 | S98: 137047 | T98: 123428 | U98: 136121
F99: Income (loss) from discontinued operations | L99: -38146 | M99: -3486 | N99: -1627 | O99: 6731
F100: Cumulative effect of a change in accounting principle, net of income tax benefit of $362 | I100: 0 | J100: 0 | K100: -23078 | N100: 0 | O100: -568
F101: Net income | I101: =I98+I99+I100 -> -82764 | J101: -14293 | K101: -16955 | L101: 14658 | M101: 50774 | N101: 61231 | O101: 81043 | P101: 94615 | Q101: 119233 | R101: 130297 | S101: 137047 | T101: 123428 | U101: 136121
F102: Weighted average shares outstanding | I102: 30036 | J102: 44697 | K102: 44754 | L102: 67440 | M102: 65750 | N102: 92687 | O102: 91233 | P102: 91505 | Q102: 92432 | R102: 138300 | S102: 137129 | T102: 135387 | U102: ='2012 Update'!C106 -> 136670
F103: Income from continuing operations | I103: -1.409999967 | J103: 0.200000003 | K103: 0.9700000286 | L103: 0.7799999714 | M103: 0.8199999928 | N103: 0.6800000072 | O103: 0.8199999928 | P103: 1.029999971 | Q103: 1.289999962 | R103: 0.9399999976 | S103: 1 | T103: 0.9100000262 | U103: =U101/U102 -> 0.9959830248
B105: CONSOLIDATED STATEMENTS OF CASH FLOWS
F106: Cash flows provided by (disbursed for) operating activities:
F107: Net income | J107: -14293 | K107: -16955 | L107: 14658 | M107: 50774 | N107: 61231 | O107: 81043 | P107: 94615 | Q107: 122307 | R107: 133712 | S107: 137047 | T107: 123428 | U107: ='2012 Update'!D118 -> 136121
F108: Adjustments to reconcile net income to net cash provided by operating activities:
F109: Non-cash expenses related to discontinued operations | J109: -6422 | K109: 0 | L109: 18145 | M109: 5099 | N109: 625 | O109: -5509 | P109: 0
F110: Cumulative effect of a change in accounting principle | J110: 16691 | K110: 41559 | N110: 0 | O110: 930 | P110: 0
F111: Depreciation and amortization | J111: 57124 | K111: 56774 | L111: 53935 | M111: 56702 | N111: 59344 | O111: 64250 | P111: 66094 | Q111: 73312 | R111: 80928 | S111: 85118 | T111: 94638 | U111: ='2012 Update'!D120 -> 102690
F112: Stock-based compensation | J112: 1377 | K112: -154 | L112: 7548 | M112: 8746 | N112: 4232 | O112: 8595 | P112: 15151 | Q112: 10594 | R112: 11855 | S112: 13678 | T112: 13638
F113: Income tax benefit related to stock awards | L113: 200 | M113: 2000 | N113: 11210 | O113: 0 | P113: 0
F114: Deferred income taxes | J114: -7496 | K114: 2890 | L114: 32134 | M114: 34232 | N114: 12408 | O114: -11644 | P114: -6075
F115: Loss (gain) reclassified from accumulated other comprehensive income to net income | L115: 0 | M115: 0 | N115: 816 | O115: 0 | P115: 0 | Q115: 49 | R115: 63026 | S115: 8475 | T115: -38038
Q116: -2306
F117: Provision for inventory obsolescence | J117: 3709 | K117: 3077 | L117: 1067 | M117: 498 | N117: 696 | O117: 910 | P117: 553 | Q117: 1121 | R117: 498 | S117: 1047 | T117: 765
F118: Allowances for accounts receivable | J118: 3910 | K118: 4152 | L118: 3368 | M118: 854 | N118: 1211 | O118: 717 | P118: 812 | Q118: 640 | R118: 2077 | S118: 547 | T118: 414
F119: Pension and postretirement plans expense | J119: 6677 | K119: 0 | L119: 0 | M119: 0 | N119: 917 | O119: 229 | P119: 0 | Q119: -5772 | R119: 5112 | S119: 1842 | T119: 222
F120: Other | J120: -229 | K120: 145 | L120: 0 | M120: 1769 | N120: 2904 | O120: 3255 | P120: 3500 | Q120: -2472 | R120: 39 | S120: -285 | T120: -162
F121: Pension contributions | J121: 0 | K121: 0 | L121: 449 | M121: -1278 | N121: 3714 | O121: -731 | P121: -1327 | R121: -450 | S121: -909 | T121: -12230
F122: Changes in operating assets and liabilities, net of acquisitions and disposals:
F123: Accounts receivable, net | J123: 13037 | K123: -3099 | L123: 1571 | M123: -18328 | N123: -1708 | O123: -7314 | P123: -5036 | Q123: -22340 | R123: -476 | S123: 11482 | T123: -283
F124: Inventories, net | J124: -3764 | K124: 4379 | L124: -1734 | M124: -6130 | N124: -5371 | O124: -844 | P124: -3612 | Q124: -4242 | R124: -3525 | S124: -936 | T124: -6457
F125: Hedging activities, net | J125: 13875 | K125: 9280 | L125: -22312 | M125: -23034 | N125: -17658 | O125: 20580 | P125: 28381 | Q125: -52058 | R125: -20033 | S125: 39134 | T125: -25874
F126: Other assets | J126: -2496 | K126: -6200 | L126: -11000 | M126: -17000 | N126: -25000 | O126: -14000 | P126: -1000 | Q126: 0 | R126: 26875 | S126: -8838 | T126: -749
F127: Accounts payable | J127: -6599 | K127: 8827 | L127: 6130 | M127: 32847 | N127: 4408 | O127: 10809 | P127: 22542 | Q127: -29883 | R127: -26111 | S127: 7879 | T127: -5187
F128: Other accrued liabilities | J128: -4353 | K128: -3359 | L128: -7170 | M128: -4683 | R128: -37812 | S128: 6881 | T128: -8135
F130: Net cash provided by operating activities | J130: 70748 | K130: 126526 | L130: 87989 | M130: 123068 | N130: 113979 | O130: 151276 | P130: 214598 | Q130: 94872 | R130: 236009 | S130: 306050 | T130: 134290
F132: Cash flows provided by (disbursed for) investing activities:
F133: Purchase of property, plant and equipment | J133: -49514 | K133: -48811 | L133: -43618 | M133: -46029 | N133: -58846 | O133: -61792 | P133: -88125 | Q133: -86861 | R133: -72093 | S133: -98404 | T133: -79162 | U133: ='2012 Update'!D140 -> -67259
F134: Acquisition of businesses, net of cash acquired | J134: -6506 | K134: -1023 | L134: -14534 | M134: -8599 | N134: -9867 | O134: -887 | P134: -1515 | Q134: -170077 | R134: -24565 | S134: 0 | T134: -164485 | U134: ='2012 Update'!D141 -> -17849
F135: Repurchase of distributor territories | R135: -12436 | S135: -10843 | T135: -14581
F136: Issuance of notes receivable | J136: -80892 | K136: 1231 | L136: -1937 | M136: -798 | N136: 2011 | O136: -4955 | P136: -15211 | Q136: -18633
F137: Proceeds from notes receivable | Q137: 11354 | R137: 12126 | S137: 12514 | T137: 12629
F138: Contingent acquisition consideration payments | J138: 5197 | K138: 0 | L138: 0 | M138: 1527 | R138: 0 | S138: 0 | T138: -5000
F139: Deconsolidation of variable interest entity (Note 12) | R139: 0 | S139: -8804 | T139: 0
F140: Proceeds from sale of property, plant and equipment | J140: 0 | K140: 0 | L140: 231551 | M140: 0 | Q140: 4899 | R140: 6919 | S140: 1075 | T140: 12104
F141: Other | J141: -893 | K141: 1742 | L141: 1657 | M141: 93 | N141: -3751 | O141: -4082 | P141: 1983 | Q141: 62 | R141: 440 | S141: 165 | T141: 556
F143: Net cash disbursed for investing activities | J143: -132608 | K143: -46861 | L143: 173119 | M143: -53806 | N143: -70453 | O143: -71716 | P143: -102868 | Q143: -259256 | R143: -89609 | S143: -104297 | T143: -237939
F145: Cash flows provided by (disbursed for) financing activities:
F146: Dividends paid | J146: 0 | K146: -1499 | L146: -15068 | M146: -20767 | N146: -23652 | O146: -28994 | P146: -42120 | Q146: -53222 | R146: -62170 | S146: -70882 | T146: -79081 | U146: ='2012 Update'!D152 -> -86489
F147: Exercise of stock options | J147: 337 | K147: 213 | L147: 1677 | M147: 1182 | N147: 6443 | O147: 6363 | P147: 22087 | Q147: 2679 | R147: 2614 | S147: 7884 | T147: 12933
F148: Excess windfall tax benefit related to stock awards | J148: 251000 | K148: 0 | N148: 0 | O148: 8615 | P148: 9288 | Q148: 1976 | R148: 1386 | S148: 977 | T148: 3073
F149: Payment of financing fees | J149: -9978 | K149: 0 | L149: -620 | M149: -378 | N149: 0 | O149: -391 | P149: -320 | Q149: -788 | R149: 0 | S149: 0 | T149: -2108
F150: Stock repurchases | J150: 0 | K150: 0 | L150: -22173 | M150: -35296 | N150: -124388 | O150: -63617 | P150: -33296 | Q150: -44072 | R150: -40531 | S150: -39184 | T150: -26598
F151: Change in book overdraft | J151: 0 | K151: 0 | L151: -5330 | M151: 0 | N151: 10224 | O151: -3212 | P151: -4201 | Q151: 6702 | R151: -7735 | S151: -1432 | T151: 521
F152: Proceeds from debt borrowings | J152: 9175 | K152: -3774 | L152: -2865 | M152: -5457 | N152: 170000 | O152: 347400 | P152: 146500 | Q152: 645250 | R152: 848326 | S152: 418500 | T152: 1071100
F153: Debt and capital lease obligation payments | J153: -67562 | K153: -17059 | L153: 0 | M153: 0 | N153: -118610 | O153: -342811 | P153: -203604 | Q153: -392614 | R153: -888637 | S153: -529809 | T153: -875083
F154: Other | J154: 73099 | K154: 0 | L154: -244139 | M154: -3504 | Q154: -1541 | R154: -669 | S154: 0 | T154: -80
F156: Net cash provided by (disbursed for) financing activities | J156: 62295 | K156: -22119 | L156: -288518 | M156: -64220 | N156: -79983 | O156: -76647 | P156: -105666 | Q156: 164370 | R156: -147416 | S156: -213946 | T156: 104677
F158: Net increase (decrease) in cash and cash equivalents | J158: 435 | K158: 57546 | L158: -27410 | M158: 5042 | N158: -36457 | O158: 2913 | P158: 6064 | Q158: -14 | R158: -1016 | S158: -12193 | T158: 1028
F159: Cash and cash equivalents at beginning of period | N159: 47458 | O159: 11001 | P159: 13914 | Q159: 19978 | R159: 19964 | S159: 18948 | T159: 6755
J160: 11845 | K160: 12280 | L160: 69826 | M160: 42416
F161: Cash and cash equivalents at end of period | N161: 11001 | O161: 13914 | P161: 19978 | Q161: 19964 | R161: 18948 | S161: 6755 | T161: 7783
J162: 12280 | K162: 69826 | L162: 42416 | M162: 47458
F163: Schedule of non cash investing and financing activities:
N164: 0 | O164: 36400 | P164: 0 | Q164: 64377
F165: (Issuance) conversion of deferred compensation to common stock equivalent units | L165: 283 | M165: 3367 | N165: 4971 | O165: 0 | P165: 0 | Q165: 1134 | R165: 95 | S165: -15 | T165: -219
F166: Capital and right-to-use lease obligations | J166: 0 | K166: 0 | L166: 54815 | M166: 12993 | N166: 4446 | O166: 6349 | P166: 2378 | Q166: 1804 | R166: 4362 | S166: 13332 | T166: 1404
F167: Deconsolidation of VIE capital leases | J167: 59665 | K167: 0 | R167: 0 | S167: -26389 | T167: 0
F168: Issuance of notes receivable | R168: 107 | S168: 171 | T168: 833
F169: Supplemental disclosures of cash flow information: | L169: 11427 | M169: 1258 | N169: 3241 | O169: 4559 | P169: 2792
F170: Cash paid during the period for: | J170: 43233 | K170: 20255 | L170: 1265 | M170: 2805 | N170: 24955 | O170: 31385 | P170: 46972 | Q170: 6029
F171: Interest, net of capitalized interest | J171: 870 | K171: -3475 | Q171: 65255 | R171: 11275 | S171: 7470 | T171: 9588
F172: Income taxes paid, net of refunds of $430, $623 and $1,167, respectively | R172: 75310 | S172: 72554 | T172: 70122
B176: P&L analysis
C177: Sales
C178: Growth rate of sales | J178: =J82/I82-1 -> -0.1717369883 | K178: 0.02240648254 | L178: 0.09362286967 | M178: 0.06766231129 | N178: 0.1060788702 | O178: 0.1006982468 | P178: 0.07837327536 | Q178: 0.1857037503 | R178: 0.07700427183 | S178: -0.0104119847 | T178: 0.07754658635 | U178: 0.09848537296
C179: COGS margin | I179: =I83/I82 -> 0.5737640972 | J179: 0.4931696281 | K179: 0.4906537449 | L179: 0.4956396959 | M179: 0.5024385873 | N179: 0.5021263278 | O179: 0.5027982892 | P179: 0.5101508636 | Q179: 0.523403117 | R179: 0.5345112308 | S179: 0.5232753988 | T179: 0.5311979421 | U179: 0.5310404659
C180: SGA / Sales % | I180: =I84/I82 -> 0.3770005622 | J180: 0.4293661359 | K180: 0.4170367912 | L180: 0.4136373491 | M180: 0.4079750765 | N180: 0.4054248897 | O180: 0.4020784114 | P180: 0.3868174288 | Q180: 0.3705341688 | R180: 0.3561983029 | S180: 0.3636686121 | T180: 0.3665202015 | U180: 0.3635264309
C181: Growth rate of SGA | J181: =J84/I84-1 -> -0.05669082603 | K181: -0.006952148642 | L181: 0.08470829017 | M181: 0.05304710547 | N181: 0.09916494837 | O181: 0.09161280863 | P181: 0.03744335892 | Q181: 0.1357909982 | R181: 0.03533527045 | S181: 0.01034198386 | T181: 0.08599581837 | U181: 0.08951284369
C182: Depreciation / Gross PPE % | I182: =I85/AVERAGE(H34:I34) -> 0.07202613902 | J182: 0.05813449377 | K182: 0.06194214267 | L182: 0.06558196317 | M182: 0.06524501978 | N182: 0.06542358475 | O182: 0.06768793806 | P182: 0.06542036649 | Q182: 0.0656738372 | R182: 0.06621800196 | S182: 0.06703743418 | T182: 0.06996307344 | U182: 0.06942939638
C183: Depreciation / Net PPE | I183: =I85/AVERAGE(H36:I36) -> 0.1178315428 | J183: 0.0968280524 | K183: 0.1084967183 | L183: 0.1242580171 | M183: 0.1302242902 | N183: 0.1332421761 | O183: 0.140228272 | P183: 0.1390042105 | Q183: 0.1365572711 | R183: 0.1360395101 | S183: 0.1410091703 | T183: 0.1467051109 | U183: 0.1455230305
C184: Other Expense (Income) | I184: =I86+I87+I88+I89+I93 -> 511 | J184: 20083 | K184: 2132 | L184: 0 | M184: 0 | N184: 0 | O184: -3088 | P184: -933 | Q184: 116 | R184: -3013 | S184: 0 | T184: 0 | U184: 0
C186: Effective tax rate % | I186: =I95/I94 -> 0.2801716066 | J186: 0.4453192275 | K186: 0.3849885441 | L186: 0.3850489711 | M186: 0.3849725576 | N186: 0.3773893944 | O186: 0.3670152869 | P186: 0.359081556 | Q186: 0.3564516893 | R186: 0.356408146 | S186: 0.3485740089 | T186: 0.3570319744 | U186: 0.3479920679
B188: Balance Sheet Analysis
C189: Cash to Sales | I189: =I12/I82 -> 0.007549712098 | J189: 0.009449861099 | K189: 0.05255579716 | L189: 0.02919211697 | M189: 0.03059224861 | N189: 0.006411328604 | O189: 0.007367151421 | P189: 0.009809129983 | Q189: 0.008267036373 | R189: 0.007285313373 | S189: 0.002624555661 | T189: 0.002806347256 | U189: 0.004357472253
C190: AR / Sales % | I190: =I13/I82 -> 0.07208652499 | J190: 0.08011142833 | K190: 0.07836854691 | L190: 0.06839183893 | M190: 0.07589466437 | N190: 0.07037308792 | O190: 0.06982697731 | P190: 0.06760139325 | Q190: 0.07374118594 | R190: 0.06871140924 | S190: 0.06460603108 | T190: 0.06692361168 | U190: 0.08410824125
C191: AR days # | I191: =I190*365 -> 26.31158162 | J191: 29.24067134 | K191: 28.60451962 | L191: 24.96302121 | M191: 27.7015525 | N191: 25.68617709 | O191: 25.48684672 | P191: 24.67450854 | Q191: 26.91553287 | R191: 25.07966437 | S191: 23.58120134 | T191: 24.42711826 | U191: 30.69950806
C192: Inventory / GOGS % | I192: =I19/I83 -> 0.09880604045 | J192: 0.1388754956 | K192: 0.04600344232 | L192: 0.04264873737 | M192: 0.04678505126 | N192: 0.04967716401 | O192: 0.04604512159 | P192: 0.04555967165 | Q192: 0.04286363039 | R192: 0.04387623788 | S192: 0.04497657393 | T192: 0.05029592024 | U192: 0.05625506085
C193: Other Current Assets | I193: =I21+I22+I24+I25 -> 39332 | J193: 39006 | K193: 48412 | L193: 94205 | M193: 33916 | N193: 55456 | O193: 40919 | P193: 62374 | Q193: 61279 | R193: 59589 | S193: 79009 | T193: 74824 | U193: 74733
C194: Total Expenses | I194: =I83+I84 -> 1491687 | J194: 1198826 | K194: 1205964 | L194: 1321175 | M194: 1412332 | N194: 1557239 | O194: 1708999 | P194: 1826832 | Q194: 2158762 | R194: 2316601 | S194: 2282789 | T194: 2489692 | U194: 2725290
C195: A/P to Expenses | I195: =I51/I194 -> 0.06755773832 | J195: 0.07005186741 | K195: 0.06868115466 | L195: 0.0615308343 | M195: 0.05232622358 | N195: 0.05381383333 | O195: 0.05321536174 | P195: 0.0538100931 | Q195: 0.05411342242 | R195: 0.04001206941 | S195: 0.04471197294 | T195: 0.04624588102 | U195: 0.05649160273
C196: AP Days # | I196: =I195*365 -> 24.65857449 | J196: 25.5689316 | K196: 25.06862145 | L196: 22.45875452 | M196: 19.09907161 | N196: 19.64204917 | O196: 19.42360704 | P196: 19.64068398 | Q196: 19.75139918 | R196: 14.60440533 | S196: 16.31987012 | T196: 16.87974657 | U196: 20.619435
C197: Other Current Liabilities | I197: =I52+I53+I54 -> 74077 | J197: 86586 | K197: 107220 | L197: 76553 | M197: 112033 | N197: 85822 | O197: 86891 | P197: 108423 | Q197: 125713 | R197: 103317 | S197: 112272 | T197: 110513 | U197: 129006
C199: Capital Expenditures
D200: Capital Expenditures | I200: =-I133 -> 0 | J200: 49514 | K200: 48811 | L200: 43618 | M200: 46029 | N200: 58846 | O200: 61792 | P200: 88125 | Q200: 86861 | R200: 72093 | S200: 98404 | T200: 79162 | U200: 67259
D201: Acquisitions of Properities | I201: =-I134 -> 0 | J201: 6506 | K201: 1023 | L201: 14534 | M201: 8599 | N201: 9867 | O201: 887 | P201: 1515 | Q201: 170077 | R201: 24565 | S201: 0 | T201: 164485 | U201: 17849
E202: Total | I202: =I200+I201 -> 0 | J202: 56020 | K202: 49834 | L202: 58152 | M202: 54628 | N202: 68713 | O202: 62679 | P202: 89640 | Q202: 256938 | R202: 96658 | S202: 98404 | T202: 243647 | U202: 85108
D203: Percent of Sales | I203: =I202/I82 -> 0 | J203: 0.04310921977 | K203: 0.03750845811 | L203: 0.04002216112 | M203: 0.03521415476 | N203: 0.04004559789 | O203: 0.03318712692 | P203: 0.04401293481 | Q203: 0.1063973047 | R203: 0.03716401836 | S203: 0.03823342343 | T203: 0.08785276755 | U203: 0.0279364029
D204: Percent of Change in Sales | I204: =I202/(I82-H82) -> 0 | J204: -0.2079096213 | K204: 1.711508741 | L204: 0.467504904 | M204: 0.555653881 | N204: 0.4175533693 | O204: 0.3627571838 | P204: 0.6055938387 | Q204: 0.679338371 | R204: 0.5197868324 | S204: -3.633825702 | T204: 1.220755861 | U204: 0.3115968294
D205: Percent on Next Year Change in Sales | J205: =J202/(K82-J82) -> 1.923961947 | K205: 0.4006335016 | L205: 0.5914985811 | M205: 0.331962008 | N205: 0.3976791967 | O205: 0.4234495338 | P205: 0.237006171 | Q205: 1.381706524 | R205: -3.569350074 | S205: 0.4930381237 | T205: 0.8920387354 | U205: -0.0279364029
D207: Deferred Tax Liabilities | I207: =I59-I39-I23 -> -15395 | J207: -12662 | K207: -264113 | L207: 20473 | M207: 7855 | N207: 35008 | O207: 35715 | P207: 49111 | Q207: 16765 | R207: 43034 | S207: 65585 | T207: -889 | U207: 10008
D208: Increase in Deferred Tax | J208: =J207-I207 -> 2733 | K208: -251451 | L208: 284586 | M208: -12618 | N208: 27153 | O208: 707 | P208: 13396 | Q208: -32346 | R208: 26269 | S208: 22551 | T208: -66474 | U208: 10897
D209: Percent of Capital Expenditures | J209: =J208/J202 -> 0.0487861478 | K209: -5.045771963 | L209: 4.893829963 | M209: -0.2309804496 | N209: 0.3951653981 | O209: 0.01127969495 | P209: 0.1494422133 | Q209: -0.1258902926 | R209: 0.2717726417 | S209: 0.2291675135 | T209: -0.272829134 | U209: 0.1280373173
B211: Financing
C212: Total Debt | I212: =I50+I56 -> 255362 | J212: 257705 | K212: 250364 | L212: 15152 | M212: 27665 | N212: 79055 | O212: 86532 | P212: 29428 | Q212: 286417 | R212: 251668 | S212: 127302 | T212: 326174 | U212: 607012
C213: Average Interest Rate | I213: =I91/AVERAGE(H212:I212) -> 0.2677493127 | J213: 0.05971539779 | K213: 0.01078593656 | L213: 0.01447747028 | M213: 0.03082887638 | N213: 0.06701649175 | O213: 0.05946118959 | P213: 0.05950327699 | Q213: 0.03886083364 | R213: 0.04306754509 | S213: 0.04308520463 | T213: 0.04486235214 | U213: 0.05017434895
C215: Notes Receivable | I215: =I38 -> 0 | J215: 72940 | K215: 71599 | L215: 73345 | M215: 74065 | N215: 70357 | O215: 74428 | P215: 88469 | Q215: 94652 | R215: 94457 | S215: 92860 | T215: 102322 | U215: 102723
C216: Notes Receivable as Percent of Sales | I216: =I215/I82 -> 0 | J216: 0.05612971243 | K216: 0.05389027756 | L216: 0.05047849442 | M216: 0.04774358155 | N216: 0.04100371299 | O216: 0.03940795932 | P216: 0.0434379778 | Q216: 0.03919512757 | R216: 0.03631775624 | S216: 0.03607938397 | T216: 0.03689465038 | U216: 0.03371846495
C217: Average Interest Earnings Rate | I217: =IFERROR(-I92/AVERAGE(H215:I215),0) -> 0 | J217: 0.2226487524 | K217: 0.1343443638 | L217: 0.1366596755 | M217: 0.128702259 | N217: 0.137278254 | O217: 0.1363262769 | P217: 0.1455398196 | Q217: 0.1472905893 | R217: 0.1376243331 | S217: 0.1354068237 | T217: 0.1343566517 | U217: 0.1333560926
C219: Minority Interest | I219: =I64 -> 0 | J219: 0 | K219: 0 | L219: 0 | M219: 2836 | N219: 4563 | O219: 5870 | P219: 7802 | Q219: 9335 | R219: 12081 | S219: 0 | T219: 0 | U219: 0
C220: Dividends | I220: =-I146 -> 0 | J220: 0 | K220: 1499 | L220: 15068 | M220: 20767 | N220: 23652 | O220: 28994 | P220: 42120 | Q220: 53222 | R220: 62170 | S220: 70882 | T220: 79081 | U220: 86489
C221: Dividend payout ratio | I221: =I220/I98 -> 0 | J221: 0 | K221: 0.2448146333 | L221: 0.2853571699 | M221: 0.3827312938 | N221: 0.3762766871 | O221: 0.3872061966 | P221: 0.4451725414 | Q221: 0.4463697131 | R221: 0.4771406863 | S221: 0.5172094245 | T221: 0.6407055125 | U221: 0.6353832252
C223: Other Assets | I223: =I40+I41+I43+I44 -> 143216 | J223: 147695 | K223: 16731 | L223: 18160 | M223: 34276 | N223: 32654 | O223: 50067 | P223: 66972 | Q223: 119118 | R223: 113772 | S223: 114069 | T223: 167889 | U223: 432942
C224: Goodwill | I224: =I42 -> 567449 | J224: 0 | K224: 54249 | L224: 57038 | M224: 58567 | N224: 58567 | O224: 75537 | P224: 76338 | Q224: 200035 | R224: 201682 | S224: 200153 | T224: 219730 | U224: 269897
C226: Other Liabilities | I226: =I60+I61 -> 593750 | J226: 12746 | K226: 18272 | L226: 29815 | M226: 24714 | N226: 33160 | O226: 25949 | P226: 36391 | Q226: 45835 | R226: 43851 | S226: 45291 | T226: 52567 | U226: 48891
C227: Pension Obligations | I227: =I58 -> 22331 | J227: 25466 | K227: 43486 | L227: 46302 | M227: 22590 | N227: 9728 | O227: 146 | P227: 0 | Q227: 78897 | R227: 68140 | S227: 76086 | T227: 155263 | U227: 159158
A230: Assumptions
... 416 more rows

Sheet Valuation
A1: Timeline
I2: 2000 | J2: 2001 | K2: 2002 | L2: 2003 | M2: 2004 | N2: 2005 | O2: 2006 | P2: 2007 | Q2: 2008 | R2: 2009 | S2: 2010 | T2: 2011 | U2: 2012 | V2: 2013 | W2: 2014 | X2: 2015 | Y2: 2016 | Z2: 2017 | AA2: 2018 | AB2: 2019 | AC2: 2020 | AD2: 2021 | AE2: 2021
B3: Historic timeline switch | G3: =COUNTIF(I3:AE3,TRUE) -> 13 | I3: =I2<=Valuation!$H$17 -> TRUE | J3: =J2<=Valuation!$H$17 -> TRUE | K3: =K2<=Valuation!$H$17 -> TRUE | L3: =L2<=Valuation!$H$17 -> TRUE | M3: =M2<=Valuation!$H$17 -> TRUE | N3: =N2<=Valuation!$H$17 -> TRUE | O3: =O2<=Valuation!$H$17 -> TRUE | P3: =P2<=Valuation!$H$17 -> TRUE | Q3: =Q2<=Valuation!$H$17 -> TRUE | R3: =R2<=Valuation!$H$17 -> TRUE | S3: =S2<=Valuation!$H$17 -> TRUE | T3: =T2<=Valuation!$H$17 -> TRUE | U3: =U2<=Valuation!$H$17 -> TRUE | V3: =V2<=Valuation!$H$17 -> FALSE | W3: =W2<=Valuation!$H$17 -> FALSE | X3: =X2<=Valuation!$H$17 -> FALSE | Y3: =Y2<=Valuation!$H$17 -> FALSE | Z3: =Z2<=Valuation!$H$17 -> FALSE | AA3: =AA2<=Valuation!$H$17 -> FALSE | AB3: =AB2<=Valuation!$H$17 -> FALSE | AC3: =AC2<=Valuation!$H$17 -> FALSE | AD3: =AD2<=Valuation!$H$17 -> FALSE | AE3: =AE2<=Valuation!$H$17 -> FALSE
B4: Explicit period switch | G4: =COUNTIF(I4:AE4,TRUE) -> 8 | H4: =Valuation!H19-Valuation!H18+1=G4 -> TRUE | I4: =AND(I2>=Valuation!$H$18,I2<=Valuation!$H$19) -> FALSE | J4: =AND(J2>=Valuation!$H$18,J2<=Valuation!$H$19) -> FALSE | K4: =AND(K2>=Valuation!$H$18,K2<=Valuation!$H$19) -> FALSE | L4: =AND(L2>=Valuation!$H$18,L2<=Valuation!$H$19) -> FALSE | M4: =AND(M2>=Valuation!$H$18,M2<=Valuation!$H$19) -> FALSE | N4: =AND(N2>=Valuation!$H$18,N2<=Valuation!$H$19) -> FALSE | O4: =AND(O2>=Valuation!$H$18,O2<=Valuation!$H$19) -> FALSE | P4: =AND(P2>=Valuation!$H$18,P2<=Valuation!$H$19) -> FALSE | Q4: =AND(Q2>=Valuation!$H$18,Q2<=Valuation!$H$19) -> FALSE | R4: =AND(R2>=Valuation!$H$18,R2<=Valuation!$H$19) -> FALSE | S4: =AND(S2>=Valuation!$H$18,S2<=Valuation!$H$19) -> FALSE | T4: =AND(T2>=Valuation!$H$18,T2<=Valuation!$H$19) -> FALSE | U4: =AND(U2>=Valuation!$H$18,U2<=Valuation!$H$19) -> TRUE | V4: =AND(V2>=Valuation!$H$18,V2<=Valuation!$H$19) -> TRUE | W4: =AND(W2>=Valuation!$H$18,W2<=Valuation!$H$19) -> TRUE | X4: =AND(X2>=Valuation!$H$18,X2<=Valuation!$H$19) -> TRUE | Y4: =AND(Y2>=Valuation!$H$18,Y2<=Valuation!$H$19) -> TRUE | Z4: =AND(Z2>=Valuation!$H$18,Z2<=Valuation!$H$19) -> TRUE | AA4: =AND(AA2>=Valuation!$H$18,AA2<=Valuation!$H$19) -> TRUE | AB4: =AND(AB2>=Valuation!$H$18,AB2<=Valuation!$H$19) -> TRUE | AC4: =AND(AC2>=Valuation!$H$18,AC2<=Valuation!$H$19) -> FALSE | AD4: =AND(AD2>=Valuation!$H$18,AD2<=Valuation!$H$19) -> FALSE | AE4: =AND(AE2>=Valuation!$H$18,AE2<=Valuation!$H$19) -> FALSE
B5: Valuation year | G5: =COUNTIF(I5:AE5,TRUE) -> 1 | I5: =I2=Valuation!$H$18 -> FALSE | J5: =J2=Valuation!$H$18 -> FALSE | K5: =K2=Valuation!$H$18 -> FALSE | L5: =L2=Valuation!$H$18 -> FALSE | M5: =M2=Valuation!$H$18 -> FALSE | N5: =N2=Valuation!$H$18 -> FALSE | O5: =O2=Valuation!$H$18 -> FALSE | P5: =P2=Valuation!$H$18 -> FALSE | Q5: =Q2=Valuation!$H$18 -> FALSE | R5: =R2=Valuation!$H$18 -> FALSE | S5: =S2=Valuation!$H$18 -> FALSE | T5: =T2=Valuation!$H$18 -> FALSE | U5: =U2=Valuation!$H$18 -> TRUE | V5: =V2=Valuation!$H$18 -> FALSE | W5: =W2=Valuation!$H$18 -> FALSE | X5: =X2=Valuation!$H$18 -> FALSE | Y5: =Y2=Valuation!$H$18 -> FALSE | Z5: =Z2=Valuation!$H$18 -> FALSE | AA5: =AA2=Valuation!$H$18 -> FALSE | AB5: =AB2=Valuation!$H$18 -> FALSE | AC5: =AC2=Valuation!$H$18 -> FALSE | AD5: =AD2=Valuation!$H$18 -> FALSE | AE5: =AE2=Valuation!$H$18 -> FALSE
B6: Closing Balance Sheet for valuation | G6: =COUNTIF(I6:AE6,TRUE) -> 1 | I6: =I2=Valuation!$H$18-1 -> FALSE | J6: =J2=Valuation!$H$18-1 -> FALSE | K6: =K2=Valuation!$H$18-1 -> FALSE | L6: =L2=Valuation!$H$18-1 -> FALSE | M6: =M2=Valuation!$H$18-1 -> FALSE | N6: =N2=Valuation!$H$18-1 -> FALSE | O6: =O2=Valuation!$H$18-1 -> FALSE | P6: =P2=Valuation!$H$18-1 -> FALSE | Q6: =Q2=Valuation!$H$18-1 -> FALSE | R6: =R2=Valuation!$H$18-1 -> FALSE | S6: =S2=Valuation!$H$18-1 -> FALSE | T6: =T2=Valuation!$H$18-1 -> TRUE | U6: =U2=Valuation!$H$18-1 -> FALSE | V6: =V2=Valuation!$H$18-1 -> FALSE | W6: =W2=Valuation!$H$18-1 -> FALSE | X6: =X2=Valuation!$H$18-1 -> FALSE | Y6: =Y2=Valuation!$H$18-1 -> FALSE | Z6: =Z2=Valuation!$H$18-1 -> FALSE | AA6: =AA2=Valuation!$H$18-1 -> FALSE | AB6: =AB2=Valuation!$H$18-1 -> FALSE | AC6: =AC2=Valuation!$H$18-1 -> FALSE | AD6: =AD2=Valuation!$H$18-1 -> FALSE | AE6: =AE2=Valuation!$H$18-1 -> FALSE
B7: Terminal value switch | G7: =COUNTIF(I7:AE7,TRUE) -> 1 | I7: =I2=Valuation!$H$19 -> FALSE | J7: =J2=Valuation!$H$19 -> FALSE | K7: =K2=Valuation!$H$19 -> FALSE | L7: =L2=Valuation!$H$19 -> FALSE | M7: =M2=Valuation!$H$19 -> FALSE | N7: =N2=Valuation!$H$19 -> FALSE | O7: =O2=Valuation!$H$19 -> FALSE | P7: =P2=Valuation!$H$19 -> FALSE | Q7: =Q2=Valuation!$H$19 -> FALSE | R7: =R2=Valuation!$H$19 -> FALSE | S7: =S2=Valuation!$H$19 -> FALSE | T7: =T2=Valuation!$H$19 -> FALSE | U7: =U2=Valuation!$H$19 -> FALSE | V7: =V2=Valuation!$H$19 -> FALSE | W7: =W2=Valuation!$H$19 -> FALSE | X7: =X2=Valuation!$H$19 -> FALSE | Y7: =Y2=Valuation!$H$19 -> FALSE | Z7: =Z2=Valuation!$H$19 -> FALSE | AA7: =AA2=Valuation!$H$19 -> FALSE | AB7: =AB2=Valuation!$H$19 -> TRUE | AC7: =AC2=Valuation!$H$19 -> FALSE | AD7: =AD2=Valuation!$H$19 -> FALSE | AE7: =AE2=Valuation!$H$19 -> FALSE
A9: DCF Valuation
B10: Assumptions for DCF/Free Cash Flow Model
C11: WACC | H11: =I11/100 -> 0.06 | I11: 6
C12: Terminal growth rate | H12: =I12/100 -> 0.03 | I12: 3
C13: Long term ROIC/ Wacc Spread | H13: =I13/100 -> 0.05 | I13: 5
C14: Terminal EV/EBITDA | H14: =I14 -> 9 | I14: 9
C15: Computed EV/EBITDA | H15: =I15 -> 10 | I15: 10
C17: Last historic year | H17: 2012
C18: Valuation year | H18: 2012
C19: Terminal year | H19: 2019
B21: Stable Ratios in DCF Model
C22: Inlude Stable Ratios | H22: FALSE
C23: Historic Growth
C24: Terminal Growth Rate | H24: =H12 -> 0.03
C25: Ratio of WC to EBITDA in Terminal Year | H25: =SUMIF('Corporate Model'!7:7,TRUE,'Corporate Model'!397:397) -> 0.4113595161
C26: WC Change as Pct of EBITDA from Terminal Growth | H26: =H24*H25/(1+H24) -> 0.01198134513
C27: Depreciation to Net Plant in Terminal Year
C28: Plant Life
C29: Implied Historic Growth from Depreciation Analysis
C30: Levelised Ratio of Depreciation to Net Plant
C31: Levelised Ratio of Depreciation to Capital Expenditures
C32: Levelised Ratio of Deferred Taxes to Capital Expenditures
C33: Stable Ratio of Depreciation to EBITDA
C34: Stable Dividend Payout Ratio
B36: Assumptions for Equity Cash Flow Model
C37: Cost of Equity | H37: =I37/100 -> 0.08 | I37: 8
C38: Growth Rate in Earnings and Dividends | H38: =I38/100 -> 0.03 | I38: 3
C39: Long-term ROE/COE Spread | H39: =I39/100 -> 0.04 | I39: 4
C40: Terminal P/E Ratio | H40: =I40 -> 13 | I40: 13
C41: Terminal M/B Ratio | H41: =I41/10 -> 3.3 | I41: 33
C42: Computed P/E Ratio | H42: =I42 -> 12 | I42: 12
A44: Normalised Cash Flow Analysis
C45: Apply Normalised Ratios | I45: =$H$22 -> FALSE | J45: =$H$22 -> FALSE | K45: FALSE | L45: FALSE | M45: FALSE | N45: FALSE | O45: FALSE | P45: FALSE | Q45: FALSE | R45: FALSE | S45: FALSE | T45: FALSE | U45: FALSE | V45: FALSE | W45: FALSE | X45: FALSE | Y45: FALSE | Z45: FALSE | AA45: FALSE | AB45: FALSE | AC45: FALSE | AD45: FALSE | AE45: FALSE
C46: EBITDA - Midyear | I46: =I99 -> 77247 | J46: =J99 -> 100664 | K46: 122643 | L46: 131820 | M46: 138976 | N46: 158630 | O46: 179655 | P46: 209842 | Q46: 256130 | R46: 284248 | S46: 290980 | T46: 283664 | U46: 321201 | V46: 366697.6167 | W46: 375245.2218 | X46: 384005.5502 | Y46: 407466.6489 | Z46: 471058.4076 | AA46: 499561.9426 | AB46: 529910.6657 | AC46: 562187.6102 | AD46: 596479.5461 | AE46: 632877.148
C47: Growth Rate in EBITDA | J47: =J46/I46-1 -> 0.3031444587 | K47: =K46/J46-1 -> 0.2183402209 | L47: 0.07482693672 | M47: 0.05428614778 | N47: 0.1414201013 | O47: 0.1325411335 | P47: 0.1680276085 | Q47: 0.2205850116 | R47: 0.1097801897 | S47: 0.02368354395 | T47: -0.02514262149 | U47: 0.1323290936 | V47: 0.1416453147 | W47: 0.02330968271 | X47: 0.02334560945 | Y47: 0.06109572799 | Z47: 0.1560661686 | AA47: 0.06050955591 | AB47: 0.06075067064 | AC47: 0.060910162 | AD47: 0.06099731707 | AE47: 0.06102070419
C48: Working Capital | I48: ='Corporate Model'!I394 -> 66524 | J48: ='Corporate Model'!J394 -> 61545 | K48: ='Corporate Model'!K394 -> -7525 | L48: ='Corporate Model'!L394 -> 66446 | M48: ='Corporate Model'!M394 -> 2183 | N48: ='Corporate Model'!N394 -> 49385 | O48: ='Corporate Model'!O394 -> 38687 | P48: ='Corporate Model'!P394 -> 40668 | Q48: ='Corporate Model'!Q394 -> 51003 | R48: ='Corporate Model'!R394 -> 103284 | S48: ='Corporate Model'!S394 -> 91524 | T48: ='Corporate Model'!T394 -> 108872 | U48: ='Corporate Model'!U394 -> 139016 | V48: ='Corporate Model'!V394 -> 150769.7475 | W48: ='Corporate Model'!W394 -> 161414.2492 | X48: ='Corporate Model'!X394 -> 172625.9778 | Y48: ='Corporate Model'!Y394 -> 183182.5593 | Z48: ='Corporate Model'!Z394 -> 194245.6886 | AA48: ='Corporate Model'!AA394 -> 205838.1604 | AB48: ='Corporate Model'!AB394 -> 217983.795 | AC48: ='Corporate Model'!AC394 -> 230707.4848 | AD48: ='Corporate Model'!AD394 -> 244035.2422 | AE48: ='Corporate Model'!AE394 -> 257994.2504
C49: Working Capital to EBITDA | I49: ='Corporate Model'!I397 -> 0.8611855477 | J49: ='Corporate Model'!J397 -> 0.611390368 | K49: ='Corporate Model'!K397 -> -0.06135694658 | L49: ='Corporate Model'!L397 -> 0.5040661508 | M49: ='Corporate Model'!M397 -> 0.0157077481 | N49: ='Corporate Model'!N397 -> 0.3113219441 | O49: ='Corporate Model'!O397 -> 0.2153405138 | P49: ='Corporate Model'!P397 -> 0.1938029565 | Q49: ='Corporate Model'!Q397 -> 0.1991293484 | R49: ='Corporate Model'!R397 -> 0.3633587571 | S49: ='Corporate Model'!S397 -> 0.3145370816 | T49: ='Corporate Model'!T397 -> 0.3838061932 | U49: ='Corporate Model'!U397 -> 0.4328006451 | V49: ='Corporate Model'!V397 -> 0.411155515 | W49: ='Corporate Model'!W397 -> 0.4301567076 | X49: ='Corporate Model'!X397 -> 0.4495403195 | Y49: ='Corporate Model'!Y397 -> 0.4495645467 | Z49: ='Corporate Model'!Z397 -> 0.4123600927 | AA49: ='Corporate Model'!AA397 -> 0.4120373127 | AB49: ='Corporate Model'!AB397 -> 0.4113595161 | AC49: ='Corporate Model'!AC397 -> 0.4103745451 | AD49: ='Corporate Model'!AD397 -> 0.4091259186 | AE49: ='Corporate Model'!AE397 -> 0.4076529721
C51: Terminal Growth | H51: =H12 -> 0.03 | I51: =$H$51 -> 0.03 | J51: =$H$51 -> 0.03 | K51: 0.03 | L51: 0.03 | M51: 0.03 | N51: 0.03 | O51: 0.03 | P51: 0.03 | Q51: 0.03 | R51: 0.03 | S51: 0.03 | T51: 0.03 | U51: 0.03 | V51: 0.03 | W51: 0.03 | X51: 0.03 | Y51: 0.03 | Z51: 0.03 | AA51: 0.03 | AB51: 0.03 | AC51: 0.03 | AD51: 0.03 | AE51: 0.03
C52: Stable WC Change as Percent of EBITDA | I52: =I49*I51/(1+I51) -> 0.0250830742 | J52: =J49*J51/(1+J51) -> 0.01780748645 | K52: -0.001787095532 | L52: 0.01468153837 | M52: 0.0004575072262 | N52: 0.009067629441 | O52: 0.006272053799 | P52: 0.005644746306 | Q52: 0.005799883933 | R52: 0.01058326477 | S52: 0.009161274221 | T52: 0.01117882116 | U52: 0.01260584403 | V52: 0.01197540335 | W52: 0.01252883614 | X52: 0.01309340737 | Y52: 0.01309411301 | Z52: 0.01201048814 | AA52: 0.01200108678 | AB52: 0.01198134513 | AC52: 0.01195265665 | AD52: 0.01191628889 | AE52: 0.01187338754
C53: Stable WC Change | I53: =I52*I46 -> 1937.592233 | J53: 1792.572816 | K53: -219.1747573 | L53: 1935.320388 | M53: 63.58252427 | N53: 1438.398058 | O53: 1126.805825 | P53: 1184.504854 | Q53: 1485.524272 | R53: 3008.271845 | S53: 2665.747573 | T53: 3171.029126 | U53: 4049.009709 | V53: 4391.351868 | W53: 4701.385898 | X53: 5027.9411 | Y53: 5335.414348 | Z53: 5657.641416 | AA53: 5995.286225 | AB53: 6349.042572 | AC53: 6719.635479 | AD53: 7107.822589 | AE53: 7514.395642
C54: WC Change in Model | I54: ='Corporate Model'!I395 -> 0 | J54: ='Corporate Model'!J395 -> -4979 | K54: ='Corporate Model'!K395 -> -69070 | L54: ='Corporate Model'!L395 -> 73971 | M54: ='Corporate Model'!M395 -> -64263 | N54: ='Corporate Model'!N395 -> 47202 | O54: ='Corporate Model'!O395 -> -10698 | P54: ='Corporate Model'!P395 -> 1981 | Q54: ='Corporate Model'!Q395 -> 10335 | R54: ='Corporate Model'!R395 -> 52281 | S54: ='Corporate Model'!S395 -> -11760 | T54: ='Corporate Model'!T395 -> 17348 | U54: ='Corporate Model'!U395 -> 30144 | V54: ='Corporate Model'!V395 -> 11753.74746 | W54: ='Corporate Model'!W395 -> 10644.5017 | X54: ='Corporate Model'!X395 -> 11211.72859 | Y54: ='Corporate Model'!Y395 -> 10556.58154 | Z54: ='Corporate Model'!Z395 -> 11063.12932 | AA54: ='Corporate Model'!AA395 -> 11592.47176 | AB54: ='Corporate Model'!AB395 -> 12145.63461 | AC54: ='Corporate Model'!AC395 -> 12723.68979 | AD54: ='Corporate Model'!AD395 -> 13327.75745 | AE54: ='Corporate Model'!AE395 -> 13959.00815
C55: WC Change Applied | I55: =IF(AND(I45,I7),I53,I54) -> 0 | J55: -4979 | K55: -69070 | L55: 73971 | M55: -64263 | N55: 47202 | O55: -10698 | P55: 1981 | Q55: 10335 | R55: 52281 | S55: -11760 | T55: 17348 | U55: 30144 | V55: 11753.74746 | W55: 10644.5017 | X55: 11211.72859 | Y55: 10556.58154 | Z55: 11063.12932 | AA55: 11592.47176 | AB55: 12145.63461 | AC55: 12723.68979 | AD55: 13327.75745 | AE55: 13959.00815
C57: Net Plant | I57: ='Corporate Model'!I423 -> 569474 | J57: ='Corporate Model'!J423 -> 610432 | K57: ='Corporate Model'!K423 -> 436125 | L57: ='Corporate Model'!L423 -> 431988 | M57: ='Corporate Model'!M423 -> 438848 | N57: ='Corporate Model'!N423 -> 451921 | O57: ='Corporate Model'!O423 -> 464442 | P57: ='Corporate Model'!P423 -> 486522 | Q57: ='Corporate Model'!Q423 -> 587196 | R57: ='Corporate Model'!R423 -> 602576 | S57: ='Corporate Model'!S423 -> 604693 | T57: ='Corporate Model'!T423 -> 685487 | U57: ='Corporate Model'!U423 -> 725836 | V57: ='Corporate Model'!V423 -> 778596.9992 | W57: ='Corporate Model'!W423 -> 839456.0561 | X57: ='Corporate Model'!X423 -> 924409.4114 | Y57: ='Corporate Model'!Y423 -> 1031936.46 | Z57: ='Corporate Model'!Z423 -> 1142806.551 | AA57: ='Corporate Model'!AA423 -> 1256081.421 | AB57: ='Corporate Model'!AB423 -> 1370860.153 | AC57: ='Corporate Model'!AC423 -> 1486275.047 | AD57: ='Corporate Model'!AD423 -> 1601487.72 | AE57: ='Corporate Model'!AE423 -> 1715685.43
C58: Ratio of Capital Expenditures to Depreciation
C59: Stable Level of Depreciation
C60: Depreciation in Model | I60: ='Corporate Model'!I415 -> 67102 | J60: ='Corporate Model'!J415 -> 57124 | K60: ='Corporate Model'!K415 -> 56774 | L60: ='Corporate Model'!L415 -> 53935 | M60: ='Corporate Model'!M415 -> 56702 | N60: ='Corporate Model'!N415 -> 59344 | O60: ='Corporate Model'!O415 -> 64250 | P60: ='Corporate Model'!P415 -> 66094 | Q60: ='Corporate Model'!Q415 -> 73312 | R60: ='Corporate Model'!R415 -> 80928 | S60: ='Corporate Model'!S415 -> 85118 | T60: ='Corporate Model'!T415 -> 94638 | U60: ='Corporate Model'!U415 -> 102690 | V60: ='Corporate Model'!V415 -> 107179.7783 | W60: ='Corporate Model'!W415 -> 107078.7595 | X60: ='Corporate Model'!X415 -> 109014.8226 | Y60: ='Corporate Model'!Y415 -> 113596.674 | Z60: ='Corporate Model'!Z415 -> 120204.1992 | AA60: ='Corporate Model'!AA415 -> 128197.7642 | AB60: ='Corporate Model'!AB415 -> 137560.1698 | AC60: ='Corporate Model'!AC415 -> 148279.2584 | AD60: ='Corporate Model'!AD415 -> 160347.7162 | AE60: ='Corporate Model'!AE415 -> 173762.8967
C61: Depreciation Applied
C63: Levelised Ratio of Capital Expenditure to Depreciation
C64: Stable Level of Depreciation
C65: Capital Expenditure in Model | I65: ='Corporate Model'!I364 -> 0 | J65: ='Corporate Model'!J364 -> 56020 | K65: ='Corporate Model'!K364 -> 49834 | L65: ='Corporate Model'!L364 -> 58152 | M65: ='Corporate Model'!M364 -> 54628 | N65: ='Corporate Model'!N364 -> 68713 | O65: ='Corporate Model'!O364 -> 62679 | P65: ='Corporate Model'!P364 -> 89640 | Q65: ='Corporate Model'!Q364 -> 256938 | R65: ='Corporate Model'!R364 -> 96658 | S65: ='Corporate Model'!S364 -> 98404 | T65: ='Corporate Model'!T364 -> 243647 | U65: ='Corporate Model'!U364 -> 85108 | V65: ='Corporate Model'!V364 -> 159940.7775 | W65: ='Corporate Model'!W364 -> 167937.8164 | X65: ='Corporate Model'!X364 -> 193968.1779 | Y65: ='Corporate Model'!Y364 -> 221123.7228 | Z65: ='Corporate Model'!Z364 -> 231074.2903 | AA65: ='Corporate Model'!AA364 -> 241472.6334 | AB65: ='Corporate Model'!AB364 -> 252338.9019 | AC65: ='Corporate Model'!AC364 -> 263694.1525 | AD65: ='Corporate Model'!AD364 -> 275560.3894 | AE65: ='Corporate Model'!AE364 -> 287960.6069
C66: Capital Expenditure Applied
C68: Levelised Ratio of Deferred Taxes to Capital Expenditure
C69: Stable Level of Deferred Taxes
C70: Deferred Taxes in Model | I70: ='Corporate Model'!I427 -> -15395 | J70: ='Corporate Model'!J427 -> -12662 | K70: ='Corporate Model'!K427 -> -264113 | L70: ='Corporate Model'!L427 -> 20473 | M70: ='Corporate Model'!M427 -> 7855 | N70: ='Corporate Model'!N427 -> 35008 | O70: ='Corporate Model'!O427 -> 35715 | P70: ='Corporate Model'!P427 -> 49111 | Q70: ='Corporate Model'!Q427 -> 16765 | R70: ='Corporate Model'!R427 -> 43034 | S70: ='Corporate Model'!S427 -> 65585 | T70: ='Corporate Model'!T427 -> -889 | U70: ='Corporate Model'!U427 -> 10008 | V70: ='Corporate Model'!V427 -> 18005.03888 | W70: ='Corporate Model'!W427 -> 26401.92969 | X70: ='Corporate Model'!X427 -> 36100.33859 | Y70: ='Corporate Model'!Y427 -> 47156.52473 | Z70: ='Corporate Model'!Z427 -> 58710.23925 | AA70: ='Corporate Model'!AA427 -> 70783.87092 | AB70: ='Corporate Model'!AB427 -> 83400.81601 | AC70: ='Corporate Model'!AC427 -> 96585.52364 | AD70: ='Corporate Model'!AD427 -> 110363.5431 | AE70: ='Corporate Model'!AE427 -> 124761.5735
C71: Deferred Tax Change Applied
A73: Normalised Cash Flow inTerminal Period
C74: EBITDA | I74: =I7*I46 -> 0 | J74: =J7*J46 -> 0 | K74: 0 | L74: 0 | M74: 0 | N74: 0 | O74: 0 | P74: 0 | Q74: 0 | R74: 0 | S74: 0 | T74: 0 | U74: 0 | V74: 0 | W74: 0 | X74: 0 | Y74: 0 | Z74: 0 | AA74: 0 | AB74: 529910.6657 | AC74: 0 | AD74: 0 | AE74: 0
C75: Less: Stabalised Working Capital | I75: =I53*I7 -> 0 | J75: =J53*J7 -> 0 | K75: 0 | L75: 0 | M75: 0 | N75: 0 | O75: 0 | P75: 0 | Q75: 0 | R75: 0 | S75: 0 | T75: 0 | U75: 0 | V75: 0 | W75: 0 | X75: 0 | Y75: 0 | Z75: 0 | AA75: 0 | AB75: 6349.042572 | AC75: 0 | AD75: 0 | AE75: 0
C76: Less: EBIT x Tax from Levelised Depreciation
C77: Less: Levelised Stable Capital Expenditures
C78: Add: Levelised Stable Deferred Taxes
D79: Normalised Cash Flow in Terminal Period before Growh Adjustment | I79: =I74-I75-I76-I77+I78 -> 0 | J79: =J74-J75-J76-J77+J78 -> 0 | K79: 0 | L79: 0 | M79: 0 | N79: 0 | O79: 0 | P79: 0 | Q79: 0 | R79: 0 | S79: 0 | T79: 0 | U79: 0 | V79: 0 | W79: 0 | X79: 0 | Y79: 0 | Z79: 0 | AA79: 0 | AB79: 523561.6231 | AC79: 0 | AD79: 0 | AE79: 0
D81: Normalised Cash Flow Adjusted for Added 1/2 Growth | I81: =I79*(1+I47*0.5) -> 0 | J81: =J79*(1+J47*0.5) -> 0 | K81: 0 | L81: 0 | M81: 0 | N81: 0 | O81: 0 | P81: 0 | Q81: 0 | R81: 0 | S81: 0 | T81: 0 | U81: 0 | V81: 0 | W81: 0 | X81: 0 | Y81: 0 | Z81: 0 | AA81: 0 | AB81: 539464.983 | AC81: 0 | AD81: 0 | AE81: 0
A83: Discount Rate for Terminal Value and Explicit Period
C84: Discount Rate | H84: =H11 -> 0.06 | I84: =$H$84*I4 -> 0 | J84: =$H$84*J4 -> 0 | K84: 0 | L84: 0 | M84: 0 | N84: 0 | O84: 0 | P84: 0 | Q84: 0 | R84: 0 | S84: 0 | T84: 0 | U84: 0.06 | V84: 0.06 | W84: 0.06 | X84: 0.06 | Y84: 0.06 | Z84: 0.06 | AA84: 0.06 | AB84: 0.06 | AC84: 0 | AD84: 0 | AE84: 0
C85: Discount Index for Terminal Value | H85: 1 | I85: =H85*(1+I84*I4) -> 1 | J85: =I85*(1+J84*J4) -> 1 | K85: 1 | L85: 1 | M85: 1 | N85: 1 | O85: 1 | P85: 1 | Q85: 1 | R85: 1 | S85: 1 | T85: 1 | U85: 1.06 | V85: 1.1236 | W85: 1.191016 | X85: 1.26247696 | Y85: 1.338225578 | Z85: 1.418519112 | AA85: 1.503630259 | AB85: 1.593848075 | AC85: 1.593848075 | AD85: 1.593848075 | AE85: 1.593848075
C87: Prior Discount Rate | I87: =H84*H4 -> 0.06 | J87: =I84*I4 -> 0 | K87: 0 | L87: 0 | M87: 0 | N87: 0 | O87: 0 | P87: 0 | Q87: 0 | R87: 0 | S87: 0 | T87: 0 | U87: 0 | V87: 0.06 | W87: 0.06 | X87: 0.06 | Y87: 0.06 | Z87: 0.06 | AA87: 0.06 | AB87: 0.06 | AC87: 0.06 | AD87: 0 | AE87: 0
C88: Weighted Discount Rate | I88: =(I84*0.5+I87*0.5)*I4 -> 0 | J88: =(J84*0.5+J87*0.5)*J4 -> 0 | K88: 0 | L88: 0 | M88: 0 | N88: 0 | O88: 0 | P88: 0 | Q88: 0 | R88: 0 | S88: 0 | T88: 0 | U88: 0.03 | V88: 0.06 | W88: 0.06 | X88: 0.06 | Y88: 0.06 | Z88: 0.06 | AA88: 0.06 | AB88: 0.06 | AC88: 0 | AD88: 0 | AE88: 0
C89: Discount Rate for Explicit Cash Flows | H89: 1 | I89: =H89*(1+I88) -> 1 | J89: =I89*(1+J88) -> 1 | K89: 1 | L89: 1 | M89: 1 | N89: 1 | O89: 1 | P89: 1 | Q89: 1 | R89: 1 | S89: 1 | T89: 1 | U89: 1.03 | V89: 1.0918 | W89: 1.157308 | X89: 1.22674648 | Y89: 1.300351269 | Z89: 1.378372345 | AA89: 1.461074686 | AB89: 1.548739167 | AC89: 1.548739167 | AD89: 1.548739167 | AE89: 1.548739167
A92: DCF Analysis
B94: EBIT | I94: ='Corporate Model'!I360-'Corporate Model'!I415 -> 10145 | J94: ='Corporate Model'!J360-'Corporate Model'!J415 -> 43540 | K94: ='Corporate Model'!K360-'Corporate Model'!K415 -> 65869 | L94: ='Corporate Model'!L360-'Corporate Model'!L415 -> 77885 | M94: ='Corporate Model'!M360-'Corporate Model'!M415 -> 82274 | N94: ='Corporate Model'!N360-'Corporate Model'!N415 -> 99286 | O94: ='Corporate Model'!O360-'Corporate Model'!O415 -> 115405 | P94: ='Corporate Model'!P360-'Corporate Model'!P415 -> 143748 | Q94: ='Corporate Model'!Q360-'Corporate Model'!Q415 -> 182818 | R94: ='Corporate Model'!R360-'Corporate Model'!R415 -> 203320 | S94: ='Corporate Model'!S360-'Corporate Model'!S415 -> 205862 | T94: ='Corporate Model'!T360-'Corporate Model'!T415 -> 189026 | U94: ='Corporate Model'!U360-'Corporate Model'!U415 -> 218511 | V94: ='Corporate Model'!V360-'Corporate Model'!V415 -> 259517.8384 | W94: ='Corporate Model'!W360-'Corporate Model'!W415 -> 268166.4624 | X94: ='Corporate Model'!X360-'Corporate Model'!X415 -> 274990.7276 | Y94: ='Corporate Model'!Y360-'Corporate Model'!Y415 -> 293869.9749 | Z94: ='Corporate Model'!Z360-'Corporate Model'!Z415 -> 350854.2084 | AA94: ='Corporate Model'!AA360-'Corporate Model'!AA415 -> 371364.1784 | AB94: ='Corporate Model'!AB360-'Corporate Model'!AB415 -> 392350.4959 | AC94: ='Corporate Model'!AC360-'Corporate Model'!AC415 -> 413908.3517 | AD94: ='Corporate Model'!AD360-'Corporate Model'!AD415 -> 436131.8299 | AE94: ='Corporate Model'!AE360-'Corporate Model'!AE415 -> 459114.2513
C95: Tax rate | I95: ='Corporate Model'!I310 -> 0.2801716066 | J95: ='Corporate Model'!J310 -> 0.4453192275 | K95: ='Corporate Model'!K310 -> 0.3849885441 | L95: ='Corporate Model'!L310 -> 0.3850489711 | M95: ='Corporate Model'!M310 -> 0.3849725576 | N95: ='Corporate Model'!N310 -> 0.3773893944 | O95: ='Corporate Model'!O310 -> 0.3670152869 | P95: ='Corporate Model'!P310 -> 0.359081556 | Q95: ='Corporate Model'!Q310 -> 0.3564516893 | R95: ='Corporate Model'!R310 -> 0.356408146 | S95: ='Corporate Model'!S310 -> 0.3485740089 | T95: ='Corporate Model'!T310 -> 0.3570319744 | U95: ='Corporate Model'!U310 -> 0.3479920679 | V95: ='Corporate Model'!V310 -> 0.35 | W95: ='Corporate Model'!W310 -> 0.35 | X95: ='Corporate Model'!X310 -> 0.35 | Y95: ='Corporate Model'!Y310 -> 0.35 | Z95: ='Corporate Model'!Z310 -> 0.35 | AA95: ='Corporate Model'!AA310 -> 0.35 | AB95: ='Corporate Model'!AB310 -> 0.35 | AC95: ='Corporate Model'!AC310 -> 0.35 | AD95: ='Corporate Model'!AD310 -> 0.35 | AE95: ='Corporate Model'!AE310 -> 0.35
C96: EBIT *tax rate | I96: =I94*I95 -> 2842.340949 | J96: 19389.19916 | K96: 25358.81041 | L96: 29989.53911 | M96: 31673.23221 | N96: 37469.48341 | O96: 42355.39919 | P96: 51617.25551 | Q96: 65165.78493 | R96: 72464.90424 | S96: 71758.14263 | T96: 67488.326 | U96: 76040.09475 | V96: 90831.24346 | W96: 93858.26182 | X96: 96246.75466 | Y96: 102854.4912 | Z96: 122798.9729 | AA96: 129977.4624 | AB96: 137322.6736 | AC96: 144867.9231 | AD96: 152646.1405 | AE96: 160689.988
B98: Free cash flow
C99: EBITDA | I99: ='Corporate Model'!I401 -> 77247 | J99: ='Corporate Model'!J401 -> 100664 | K99: ='Corporate Model'!K401 -> 122643 | L99: ='Corporate Model'!L401 -> 131820 | M99: ='Corporate Model'!M401 -> 138976 | N99: ='Corporate Model'!N401 -> 158630 | O99: ='Corporate Model'!O401 -> 179655 | P99: ='Corporate Model'!P401 -> 209842 | Q99: ='Corporate Model'!Q401 -> 256130 | R99: ='Corporate Model'!R401 -> 284248 | S99: ='Corporate Model'!S401 -> 290980 | T99: ='Corporate Model'!T401 -> 283664 | U99: ='Corporate Model'!U401 -> 321201 | V99: ='Corporate Model'!V401 -> 366697.6167 | W99: ='Corporate Model'!W401 -> 375245.2218 | X99: ='Corporate Model'!X401 -> 384005.5502 | Y99: ='Corporate Model'!Y401 -> 407466.6489 | Z99: ='Corporate Model'!Z401 -> 471058.4076 | AA99: ='Corporate Model'!AA401 -> 499561.9426 | AB99: ='Corporate Model'!AB401 -> 529910.6657 | AC99: ='Corporate Model'!AC401 -> 562187.6102 | AD99: ='Corporate Model'!AD401 -> 596479.5461 | AE99: ='Corporate Model'!AE401 -> 632877.148
C100: Less working capital changes | I100: =I55 -> 0 | J100: =J55 -> -4979 | K100: -69070 | L100: 73971 | M100: -64263 | N100: 47202 | O100: -10698 | P100: 1981 | Q100: 10335 | R100: 52281 | S100: -11760 | T100: 17348 | U100: 30144 | V100: 11753.74746 | W100: 10644.5017 | X100: 11211.72859 | Y100: 10556.58154 | Z100: 11063.12932 | AA100: 11592.47176 | AB100: 12145.63461 | AC100: 12723.68979 | AD100: 13327.75745 | AE100: 13959.00815
C101: Less Capex | I101: ='Corporate Model'!I410 -> 0 | J101: ='Corporate Model'!J410 -> 56020 | K101: ='Corporate Model'!K410 -> 49834 | L101: ='Corporate Model'!L410 -> 58152 | M101: ='Corporate Model'!M410 -> 54628 | N101: ='Corporate Model'!N410 -> 68713 | O101: ='Corporate Model'!O410 -> 62679 | P101: ='Corporate Model'!P410 -> 89640 | Q101: ='Corporate Model'!Q410 -> 256938 | R101: ='Corporate Model'!R410 -> 96658 | S101: ='Corporate Model'!S410 -> 98404 | T101: ='Corporate Model'!T410 -> 243647 | U101: ='Corporate Model'!U410 -> 85108 | V101: ='Corporate Model'!V410 -> 159940.7775 | W101: ='Corporate Model'!W410 -> 167937.8164 | X101: ='Corporate Model'!X410 -> 193968.1779 | Y101: ='Corporate Model'!Y410 -> 221123.7228 | Z101: ='Corporate Model'!Z410 -> 231074.2903 | AA101: ='Corporate Model'!AA410 -> 241472.6334 | AB101: ='Corporate Model'!AB410 -> 252338.9019 | AC101: ='Corporate Model'!AC410 -> 263694.1525 | AD101: ='Corporate Model'!AD410 -> 275560.3894 | AE101: ='Corporate Model'!AE410 -> 287960.6069
C102: Less Taxes on EBIT | I102: =I96 -> 2842.340949 | J102: 19389.19916 | K102: 25358.81041 | L102: 29989.53911 | M102: 31673.23221 | N102: 37469.48341 | O102: 42355.39919 | P102: 51617.25551 | Q102: 65165.78493 | R102: 72464.90424 | S102: 71758.14263 | T102: 67488.326 | U102: 76040.09475 | V102: 90831.24346 | W102: 93858.26182 | X102: 96246.75466 | Y102: 102854.4912 | Z102: 122798.9729 | AA102: 129977.4624 | AB102: 137322.6736 | AC102: 144867.9231 | AD102: 152646.1405 | AE102: 160689.988
C103: Add: Changes in Deferred Taxes | I103: ='Corporate Model'!I426 -> 0 | J103: ='Corporate Model'!J426 -> 2733 | K103: ='Corporate Model'!K426 -> -251451 | L103: ='Corporate Model'!L426 -> 284586 | M103: ='Corporate Model'!M426 -> -12618 | N103: ='Corporate Model'!N426 -> 27153 | O103: ='Corporate Model'!O426 -> 707 | P103: ='Corporate Model'!P426 -> 13396 | Q103: ='Corporate Model'!Q426 -> -32346 | R103: ='Corporate Model'!R426 -> 26269 | S103: ='Corporate Model'!S426 -> 22551 | T103: ='Corporate Model'!T426 -> -66474 | U103: ='Corporate Model'!U426 -> 10897 | V103: ='Corporate Model'!V426 -> 7997.038875 | W103: ='Corporate Model'!W426 -> 8396.890819 | X103: ='Corporate Model'!X426 -> 9698.408896 | Y103: ='Corporate Model'!Y426 -> 11056.18614 | Z103: ='Corporate Model'!Z426 -> 11553.71452 | AA103: ='Corporate Model'!AA426 -> 12073.63167 | AB103: ='Corporate Model'!AB426 -> 12616.9451 | AC103: ='Corporate Model'!AC426 -> 13184.70763 | AD103: ='Corporate Model'!AD426 -> 13778.01947 | AE103: ='Corporate Model'!AE426 -> 14398.03034
D104: Free Cash Flow | I104: =I99-I100-I101-I102+I103 -> 74404.65905 | J104: =J99-J100-J101-J102+J103 -> 32966.80084 | K104: -134930.8104 | L104: 254293.4609 | M104: 104319.7678 | N104: 32398.51659 | O104: 86025.60081 | P104: 79999.74449 | Q104: -108654.7849 | R104: 89113.09576 | S104: 155128.8574 | T104: -111293.326 | U104: 140805.9053 | V104: 112168.8872 | W104: 111201.5328 | X104: 92277.29796 | Y104: 83988.03945 | Z104: 117675.7295 | AA104: 128593.0067 | AB104: 140720.4007 | AC104: 154086.5524 | AD104: 168723.2783 | AE104: 184665.5754
C106: Specific dates for valuation | I106: =IF('Corporate Model'!I2=$H$18,DATE('Corporate Model'!I2,1,1),DATE('Corporate Model'!I2,7,1)) -> 2000-07-01 | J106: =IF('Corporate Model'!J2=$H$18,DATE('Corporate Model'!J2,1,1),DATE('Corporate Model'!J2,7,1)) -> 2001-07-01 | K106: =IF('Corporate Model'!K2=$H$18,DATE('Corporate Model'!K2,1,1),DATE('Corporate Model'!K2,7,1)) -> 2002-07-01 | L106: =IF('Corporate Model'!L2=$H$18,DATE('Corporate Model'!L2,1,1),DATE('Corporate Model'!L2,7,1)) -> 2003-07-01 | M106: =IF('Corporate Model'!M2=$H$18,DATE('Corporate Model'!M2,1,1),DATE('Corporate Model'!M2,7,1)) -> 2004-07-01 | N106: =IF('Corporate Model'!N2=$H$18,DATE('Corporate Model'!N2,1,1),DATE('Corporate Model'!N2,7,1)) -> 2005-07-01 | O106: =IF('Corporate Model'!O2=$H$18,DATE('Corporate Model'!O2,1,1),DATE('Corporate Model'!O2,7,1)) -> 2006-07-01 | P106: =IF('Corporate Model'!P2=$H$18,DATE('Corporate Model'!P2,1,1),DATE('Corporate Model'!P2,7,1)) -> 2007-07-01 | Q106: =IF('Corporate Model'!Q2=$H$18,DATE('Corporate Model'!Q2,1,1),DATE('Corporate Model'!Q2,7,1)) -> 2008-07-01 | R106: =IF('Corporate Model'!R2=$H$18,DATE('Corporate Model'!R2,1,1),DATE('Corporate Model'!R2,7,1)) -> 2009-07-01 | S106: =IF('Corporate Model'!S2=$H$18,DATE('Corporate Model'!S2,1,1),DATE('Corporate Model'!S2,7,1)) -> 2010-07-01 | T106: =IF('Corporate Model'!T2=$H$18,DATE('Corporate Model'!T2,1,1),DATE('Corporate Model'!T2,7,1)) -> 2011-07-01 | U106: =IF('Corporate Model'!U2=$H$18,DATE('Corporate Model'!U2,1,1),DATE('Corporate Model'!U2,7,1)) -> 2012-01-01 | V106: =IF('Corporate Model'!V2=$H$18,DATE('Corporate Model'!V2,1,1),DATE('Corporate Model'!V2,7,1)) -> 2013-07-01 | W106: =IF('Corporate Model'!W2=$H$18,DATE('Corporate Model'!W2,1,1),DATE('Corporate Model'!W2,7,1)) -> 2014-07-01 | X106: =IF('Corporate Model'!X2=$H$18,DATE('Corporate Model'!X2,1,1),DATE('Corporate Model'!X2,7,1)) -> 2015-07-01 | Y106: =IF('Corporate Model'!Y2=$H$18,DATE('Corporate Model'!Y2,1,1),DATE('Corporate Model'!Y2,7,1)) -> 2016-07-01 | Z106: =IF('Corporate Model'!Z2=$H$18,DATE('Corporate Model'!Z2,1,1),DATE('Corporate Model'!Z2,7,1)) -> 2017-07-01 | AA106: =IF('Corporate Model'!AA2=$H$18,DATE('Corporate Model'!AA2,1,1),DATE('Corporate Model'!AA2,7,1)) -> 2018-07-01 | AB106: =IF('Corporate Model'!AB2=$H$18,DATE('Corporate Model'!AB2,1,1),DATE('Corporate Model'!AB2,7,1)) -> 2019-07-01 | AC106: =IF('Corporate Model'!AC2=$H$18,DATE('Corporate Model'!AC2,1,1),DATE('Corporate Model'!AC2,7,1)) -> 2020-07-01 | AD106: =IF('Corporate Model'!AD2=$H$18,DATE('Corporate Model'!AD2,1,1),DATE('Corporate Model'!AD2,7,1)) -> 2021-07-01 | AE106: =IF('Corporate Model'!AE2=$H$18,DATE('Corporate Model'!AE2,1,1),DATE('Corporate Model'!AE2,7,1)) -> 2021-07-01
C109: FCF over explicit period | I109: =IF('Corporate Model'!I4,I104) -> FALSE | J109: =IF('Corporate Model'!J4,J104) -> FALSE | K109: =IF('Corporate Model'!K4,K104) -> FALSE | L109: =IF('Corporate Model'!L4,L104) -> FALSE | M109: =IF('Corporate Model'!M4,M104) -> FALSE | N109: =IF('Corporate Model'!N4,N104) -> FALSE | O109: =IF('Corporate Model'!O4,O104) -> FALSE | P109: =IF('Corporate Model'!P4,P104) -> FALSE | Q109: =IF('Corporate Model'!Q4,Q104) -> FALSE | R109: =IF('Corporate Model'!R4,R104) -> FALSE | S109: =IF('Corporate Model'!S4,S104) -> FALSE | T109: =IF('Corporate Model'!T4,T104) -> FALSE | U109: =IF('Corporate Model'!U4,U104) -> 140805.9053 | V109: =IF('Corporate Model'!V4,V104) -> 112168.8872 | W109: =IF('Corporate Model'!W4,W104) -> 111201.5328 | X109: =IF('Corporate Model'!X4,X104) -> 92277.29796 | Y109: =IF('Corporate Model'!Y4,Y104) -> 83988.03945 | Z109: =IF('Corporate Model'!Z4,Z104) -> 117675.7295 | AA109: =IF('Corporate Model'!AA4,AA104) -> 128593.0067 | AB109: =IF('Corporate Model'!AB4,AB104) -> 140720.4007 | AC109: =IF('Corporate Model'!AC4,AC104) -> FALSE | AD109: =IF('Corporate Model'!AD4,AD104) -> FALSE | AE109: =IF('Corporate Model'!AE4,AE104) -> FALSE
C110: PV of FCF over explicit period | H110: =NPV(H11,I109:AD109) -> 718653.7931
C111: Period for discounting | I111: =H111+'Corporate Model'!I4 -> 0 | J111: =I111+'Corporate Model'!J4 -> 0 | K111: =J111+'Corporate Model'!K4 -> 0 | L111: =K111+'Corporate Model'!L4 -> 0 | M111: =L111+'Corporate Model'!M4 -> 0 | N111: =M111+'Corporate Model'!N4 -> 0 | O111: =N111+'Corporate Model'!O4 -> 0 | P111: =O111+'Corporate Model'!P4 -> 0 | Q111: =P111+'Corporate Model'!Q4 -> 0 | R111: =Q111+'Corporate Model'!R4 -> 0 | S111: =R111+'Corporate Model'!S4 -> 0 | T111: =S111+'Corporate Model'!T4 -> 0 | U111: =T111+'Corporate Model'!U4 -> 1 | V111: =U111+'Corporate Model'!V4 -> 2 | W111: =V111+'Corporate Model'!W4 -> 3 | X111: =W111+'Corporate Model'!X4 -> 4 | Y111: =X111+'Corporate Model'!Y4 -> 5 | Z111: =Y111+'Corporate Model'!Z4 -> 6 | AA111: =Z111+'Corporate Model'!AA4 -> 7 | AB111: =AA111+'Corporate Model'!AB4 -> 8 | AC111: =AB111+'Corporate Model'!AC4 -> 8 | AD111: =AC111+'Corporate Model'!AD4 -> 8 | AE111: =AD111+'Corporate Model'!AE4 -> 8
C112: Wacc index | H112: 1 | I112: =IF('Corporate Model'!I5,H112*(1+$H$11/2*'Corporate Model'!I4),H112*(1+$H$11*'Corporate Model'!I4)) -> 1 | J112: =IF('Corporate Model'!J5,I112*(1+$H$11/2*'Corporate Model'!J4),I112*(1+$H$11*'Corporate Model'!J4)) -> 1 | K112: =IF('Corporate Model'!K5,J112*(1+$H$11/2*'Corporate Model'!K4),J112*(1+$H$11*'Corporate Model'!K4)) -> 1 | L112: =IF('Corporate Model'!L5,K112*(1+$H$11/2*'Corporate Model'!L4),K112*(1+$H$11*'Corporate Model'!L4)) -> 1 | M112: =IF('Corporate Model'!M5,L112*(1+$H$11/2*'Corporate Model'!M4),L112*(1+$H$11*'Corporate Model'!M4)) -> 1 | N112: =IF('Corporate Model'!N5,M112*(1+$H$11/2*'Corporate Model'!N4),M112*(1+$H$11*'Corporate Model'!N4)) -> 1 | O112: =IF('Corporate Model'!O5,N112*(1+$H$11/2*'Corporate Model'!O4),N112*(1+$H$11*'Corporate Model'!O4)) -> 1 | P112: =IF('Corporate Model'!P5,O112*(1+$H$11/2*'Corporate Model'!P4),O112*(1+$H$11*'Corporate Model'!P4)) -> 1 | Q112: =IF('Corporate Model'!Q5,P112*(1+$H$11/2*'Corporate Model'!Q4),P112*(1+$H$11*'Corporate Model'!Q4)) -> 1 | R112: =IF('Corporate Model'!R5,Q112*(1+$H$11/2*'Corporate Model'!R4),Q112*(1+$H$11*'Corporate Model'!R4)) -> 1 | S112: =IF('Corporate Model'!S5,R112*(1+$H$11/2*'Corporate Model'!S4),R112*(1+$H$11*'Corporate Model'!S4)) -> 1 | T112: =IF('Corporate Model'!T5,S112*(1+$H$11/2*'Corporate Model'!T4),S112*(1+$H$11*'Corporate Model'!T4)) -> 1 | U112: =IF('Corporate Model'!U5,T112*(1+$H$11/2*'Corporate Model'!U4),T112*(1+$H$11*'Corporate Model'!U4)) -> 1.03 | V112: =IF('Corporate Model'!V5,U112*(1+$H$11/2*'Corporate Model'!V4),U112*(1+$H$11*'Corporate Model'!V4)) -> 1.0918 | W112: =IF('Corporate Model'!W5,V112*(1+$H$11/2*'Corporate Model'!W4),V112*(1+$H$11*'Corporate Model'!W4)) -> 1.157308 | X112: =IF('Corporate Model'!X5,W112*(1+$H$11/2*'Corporate Model'!X4),W112*(1+$H$11*'Corporate Model'!X4)) -> 1.22674648 | Y112: =IF('Corporate Model'!Y5,X112*(1+$H$11/2*'Corporate Model'!Y4),X112*(1+$H$11*'Corporate Model'!Y4)) -> 1.300351269 | Z112: =IF('Corporate Model'!Z5,Y112*(1+$H$11/2*'Corporate Model'!Z4),Y112*(1+$H$11*'Corporate Model'!Z4)) -> 1.378372345 | AA112: =IF('Corporate Model'!AA5,Z112*(1+$H$11/2*'Corporate Model'!AA4),Z112*(1+$H$11*'Corporate Model'!AA4)) -> 1.461074686 | AB112: =IF('Corporate Model'!AB5,AA112*(1+$H$11/2*'Corporate Model'!AB4),AA112*(1+$H$11*'Corporate Model'!AB4)) -> 1.548739167 | AC112: =IF('Corporate Model'!AC5,AB112*(1+$H$11/2*'Corporate Model'!AC4),AB112*(1+$H$11*'Corporate Model'!AC4)) -> 1.548739167 | AD112: =IF('Corporate Model'!AD5,AC112*(1+$H$11/2*'Corporate Model'!AD4),AC112*(1+$H$11*'Corporate Model'!AD4)) -> 1.548739167 | AE112: =IF('Corporate Model'!AE5,AD112*(1+$H$11/2*'Corporate Model'!AE4),AD112*(1+$H$11*'Corporate Model'!AE4)) -> 1.548739167
C113: NPV factor | H113: =1/H112 -> 1 | I113: 1 | J113: 1 | K113: 1 | L113: 1 | M113: 1 | N113: 1 | O113: 1 | P113: 1 | Q113: 1 | R113: 1 | S113: 1 | T113: 1 | U113: 0.9708737864 | V113: 0.9159186664 | W113: 0.8640742136 | X113: 0.8151643525 | Y113: 0.769022974 | Z113: 0.7254933717 | AA113: 0.6844277092 | AB113: 0.6456865181 | AC113: 0.6456865181 | AD113: 0.6456865181 | AE113: 0.6456865181
C114: NPV over Explicit Period | H114: =SUM(I109:AD109*I113:AD113) -> 739585.4569
B116: Terminal value using growth rates :CF 1+g/ (wacc-G) | H116: =H12 -> 0.03 | I116: =IF('Corporate Model'!I7,I104*(1+$H$116)/($H$11-$H$116)) -> FALSE | J116: =IF('Corporate Model'!J7,J104*(1+$H$116)/($H$11-$H$116)) -> FALSE | K116: =IF('Corporate Model'!K7,K104*(1+$H$116)/($H$11-$H$116)) -> FALSE | L116: =IF('Corporate Model'!L7,L104*(1+$H$116)/($H$11-$H$116)) -> FALSE | M116: =IF('Corporate Model'!M7,M104*(1+$H$116)/($H$11-$H$116)) -> FALSE | N116: =IF('Corporate Model'!N7,N104*(1+$H$116)/($H$11-$H$116)) -> FALSE | O116: =IF('Corporate Model'!O7,O104*(1+$H$116)/($H$11-$H$116)) -> FALSE | P116: =IF('Corporate Model'!P7,P104*(1+$H$116)/($H$11-$H$116)) -> FALSE | Q116: =IF('Corporate Model'!Q7,Q104*(1+$H$116)/($H$11-$H$116)) -> FALSE | R116: =IF('Corporate Model'!R7,R104*(1+$H$116)/($H$11-$H$116)) -> FALSE | S116: =IF('Corporate Model'!S7,S104*(1+$H$116)/($H$11-$H$116)) -> FALSE | T116: =IF('Corporate Model'!T7,T104*(1+$H$116)/($H$11-$H$116)) -> FALSE | U116: =IF('Corporate Model'!U7,U104*(1+$H$116)/($H$11-$H$116)) -> FALSE | V116: =IF('Corporate Model'!V7,V104*(1+$H$116)/($H$11-$H$116)) -> FALSE | W116: =IF('Corporate Model'!W7,W104*(1+$H$116)/($H$11-$H$116)) -> FALSE | X116: =IF('Corporate Model'!X7,X104*(1+$H$116)/($H$11-$H$116)) -> FALSE | Y116: =IF('Corporate Model'!Y7,Y104*(1+$H$116)/($H$11-$H$116)) -> FALSE | Z116: =IF('Corporate Model'!Z7,Z104*(1+$H$116)/($H$11-$H$116)) -> FALSE | AA116: =IF('Corporate Model'!AA7,AA104*(1+$H$116)/($H$11-$H$116)) -> FALSE | AB116: =IF('Corporate Model'!AB7,AB104*(1+$H$116)/($H$11-$H$116)) -> 4831400.424 | AC116: =IF('Corporate Model'!AC7,AC104*(1+$H$116)/($H$11-$H$116)) -> FALSE | AD116: =IF('Corporate Model'!AD7,AD104*(1+$H$116)/($H$11-$H$116)) -> FALSE | AE116: =IF('Corporate Model'!AE7,AE104*(1+$H$116)/($H$11-$H$116)) -> FALSE
B117: NPV Terminual value | H117: =NPV($H$11,I116:AD116) -> 4557924.928
B119: EBITDA in Terminal Year | H119: =SUMIF('Corporate Model'!$7:$7,TRUE,'Corporate Model'!360:360) -> 529910.6657
B120: EV in Terminal Year | H120: =SUMIF('Corporate Model'!$7:$7,TRUE,116:116) -> 4831400.424
B121: Implied EV/EBITDA | H121: =H120/H119 -> 9.11738664
B123: Enterprise value | H123: =H110+H117 -> 5276578.721
C124: Long term debt | H124: =SUMIF('Corporate Model'!$6:$6,TRUE,'Corporate Model'!628:628) -> 283406
C125: Short term debt | H125: =SUMIF('Corporate Model'!$6:$6,TRUE,'Corporate Model'!629:629) -> 42768
C126: Pension obligations | H126: =SUMIF('Corporate Model'!$6:$6,TRUE,'Corporate Model'!630:630) -> 155263
C127: (-/-) Cash | H127: =SUMIF('Corporate Model'!$6:$6,TRUE,'Corporate Model'!631:631) -> -7783
C128: (-/-) Long term investments | H128: =SUMIF('Corporate Model'!$6:$6,TRUE,'Corporate Model'!632:632) -> 0 | L128: WACC
C129: (-/-) Notes Receivable | H129: =-SUMIF('Corporate Model'!$6:$6,TRUE,'Corporate Model'!586:586) -> -102322 | K129: =H136 -> 36.23129784 | L129: 0.06 | M129: =L129+0.011 -> 0.071 | N129: =M129+0.011 -> 0.082 | O129: =N129+0.011 -> 0.093 | P129: =O129+0.011 -> 0.104
C130: (-/-) Non-associated investments | H130: =SUMIF('Corporate Model'!$6:$6,TRUE,'Corporate Model'!634:634) -> 0 | K130: 0 | L130: 18.90806879 | M130: 16.01038065 | N130: 13.84714153 | O130: 12.16167332 | P130: 10.80550645
C131: Bridge Equity Value/Enterprise Value | H131: =SUM(H124:H130) -> 371332 | K131: =K130+1% -> 0.01 | L131: 22.3727146 | M131: 18.41027385 | N131: 15.60763229 | O131: 13.5082127 | P131: 11.86871609
J132: growth rate | K132: =K131+1% -> 0.02 | L132: 27.56968332 | M132: 21.75130163 | N132: 17.93602329 | O132: 15.22366697 | P132: 13.18507088
C133: Equity value | H133: =H123-H131 -> 4905246.721 | K133: =K132+1% -> 0.03 | L133: 36.23129784 | M133: 26.72209906 | N133: 21.15994929 | O133: 17.4837099 | P133: 14.85719724
K134: =K133+1% -> 0.04 | L134: 53.55452689 | M134: 34.89986258 | N134: 25.91907815 | O134: 20.59659922 | P134: 17.05186308
C135: Number of shares | H135: =SUMIF('Corporate Model'!$6:$6,TRUE,'Corporate Model'!102:102) -> 135387 | L135: =MIN(L130:P134) -> 10.80550645
C136: Equity value per share | H136: =H133/H135 -> 36.23129784 | L136: =MAX(L130:P134) -> 53.55452689
B138: Terminal value using EV/ EBITDA Ratio | H138: =H14 -> 9 | I138: =IF(I4,I99*$H$138*I7) -> FALSE | J138: FALSE | K138: FALSE | L138: FALSE | M138: FALSE | N138: FALSE | O138: FALSE | P138: FALSE | Q138: FALSE | R138: FALSE | S138: FALSE | T138: FALSE | U138: 0 | V138: 0 | W138: 0 | X138: 0 | Y138: 0 | Z138: 0 | AA138: 0 | AB138: 4769195.991 | AC138: FALSE | AD138: FALSE | AE138: FALSE
C139: NPV of the terminal value | H139: =NPV($H$11,I138:AD138) -> 2992252.566
C140: Enterprise value | H140: =H139+H110 -> 3710906.359 | K140: =H144 -> 24.66687613 | L140: 0.06 | M140: =L140+0.011 -> 0.071 | N140: =M140+0.011 -> 0.082 | O140: =N140+0.011 -> 0.093 | P140: =O140+0.011 -> 0.104
C141: Equity versus EV | H141: =-H131 -> -371332 | K141: 10 | L141: 27.12259572 | M141: 24.95200884 | N141: 22.96790745 | O141: 21.15241385 | P141: 19.48952746
C142: Equity value | H142: =SUM(H140:H141) -> 3339574.359 | K142: =K141+0.5 -> 10.5 | L142: 28.35045551 | M142: 26.08253322 | N142: 24.00969128 | O142: 22.11321697 | P142: 20.37636305
C143: Number of shares | H143: =H135 -> 135387 | K143: 11 | L143: 29.5783153 | M143: 27.2130576 | N143: 25.05147512 | O143: 23.07402009 | P143: 21.26319864
C144: Equity value per share | H144: =H142/H143 -> 24.66687613 | J144: EV/EBITDA | K144: 11.5 | L144: 30.8061751 | M144: 28.34358198 | N144: 26.09325895 | O144: 24.03482321 | P144: 22.15003423
K145: 12 | L145: 32.03403489 | M145: 29.47410637 | N145: 27.13504279 | O145: 24.99562633 | P145: 23.03686981
K146: 12.5 | L146: 33.26189468 | M146: 30.60463075 | N146: 28.17682662 | O146: 25.95642945 | P146: 23.9237054
K147: 13 | L147: 34.48975447 | M147: 31.73515513 | N147: 29.21861045 | O147: 26.91723257 | P147: 24.81054099
B148: Terminal value using value driver growth
C149: NOPLAT | G149: ROIC | H149: Wacc | I149: =I94*(1-I95) -> 7302.659051 | J149: 24150.80084 | K149: 40510.18959 | L149: 47895.46089 | M149: 50600.76779 | N149: 61816.51659 | O149: 73049.60081 | P149: 92130.74449 | Q149: 117652.2151 | R149: 130855.0958 | S149: 134103.8574 | T149: 121537.674 | U149: 142470.9053 | V149: 168686.595 | W149: 174308.2005 | X149: 178743.9729 | Y149: 191015.4837 | Z149: 228055.2354 | AA149: 241386.716 | AB149: 255027.8223 | AC149: 269040.4286 | AD149: 283485.6894 | AE149: 298424.2633
C150: Terminal value | G150: =H11+H13 -> 0.11 | H150: =H11 -> 0.06 | I150: =IF('Corporate Model'!I7,I149*(1-$H$12/ROIC)/(Wacc-$H$12)) -> FALSE | J150: =IF('Corporate Model'!J7,J149*(1-$H$12/ROIC)/(Wacc-$H$12)) -> FALSE | K150: =IF('Corporate Model'!K7,K149*(1-$H$12/ROIC)/(Wacc-$H$12)) -> FALSE | L150: =IF('Corporate Model'!L7,L149*(1-$H$12/ROIC)/(Wacc-$H$12)) -> FALSE | M150: =IF('Corporate Model'!M7,M149*(1-$H$12/ROIC)/(Wacc-$H$12)) -> FALSE | N150: =IF('Corporate Model'!N7,N149*(1-$H$12/ROIC)/(Wacc-$H$12)) -> FALSE | O150: =IF('Corporate Model'!O7,O149*(1-$H$12/ROIC)/(Wacc-$H$12)) -> FALSE | P150: =IF('Corporate Model'!P7,P149*(1-$H$12/ROIC)/(Wacc-$H$12)) -> FALSE | Q150: =IF('Corporate Model'!Q7,Q149*(1-$H$12/ROIC)/(Wacc-$H$12)) -> FALSE | R150: =IF('Corporate Model'!R7,R149*(1-$H$12/ROIC)/(Wacc-$H$12)) -> FALSE | S150: =IF('Corporate Model'!S7,S149*(1-$H$12/ROIC)/(Wacc-$H$12)) -> FALSE | T150: =IF('Corporate Model'!T7,T149*(1-$H$12/ROIC)/(Wacc-$H$12)) -> FALSE | U150: =IF('Corporate Model'!U7,U149*(1-$H$12/ROIC)/(Wacc-$H$12)) -> FALSE | V150: =IF('Corporate Model'!V7,V149*(1-$H$12/ROIC)/(Wacc-$H$12)) -> FALSE | W150: =IF('Corporate Model'!W7,W149*(1-$H$12/ROIC)/(Wacc-$H$12)) -> FALSE | X150: =IF('Corporate Model'!X7,X149*(1-$H$12/ROIC)/(Wacc-$H$12)) -> FALSE | Y150: =IF('Corporate Model'!Y7,Y149*(1-$H$12/ROIC)/(Wacc-$H$12)) -> FALSE | Z150: =IF('Corporate Model'!Z7,Z149*(1-$H$12/ROIC)/(Wacc-$H$12)) -> FALSE | AA150: =IF('Corporate Model'!AA7,AA149*(1-$H$12/ROIC)/(Wacc-$H$12)) -> FALSE | AB150: =IF('Corporate Model'!AB7,AB149*(1-$H$12/ROIC)/(Wacc-$H$12)) -> 6182492.663 | AC150: =IF('Corporate Model'!AC7,AC149*(1-$H$12/ROIC)/(Wacc-$H$12)) -> FALSE | AD150: =IF('Corporate Model'!AD7,AD149*(1-$H$12/ROIC)/(Wacc-$H$12)) -> FALSE | AE150: =IF('Corporate Model'!AE7,AE149*(1-$H$12/ROIC)/(Wacc-$H$12)) -> FALSE
C151: NPV of the terminal value | H151: =NPV($H$11,I150:AD150) -> 5832540.248
C152: Enterprise value | H152: =H151+H110 -> 6551194.041 | K152: =H156 -> 45.64590427 | L152: 0.06 | M152: =L152+0.011 -> 0.071 | N152: =M152+0.011 -> 0.082 | O152: =N152+0.011 -> 0.093 | P152: =O152+0.011 -> 0.104
C153: Equity versus EV | H153: =H141 -> -371332 | K153: 0 | L153: 32.18324664 | M153: 27.11361853 | N153: 23.36318354 | O153: 20.46771973 | P153: 18.15902261
C154: Equity value | H154: =SUM(H152:H153) -> 6179862.041 | K154: =K153+1% -> 0.01 | L154: 34.87577817 | M154: 28.79171752 | N154: 24.48013182 | O154: 21.24838231 | P154: 18.72569182
C155: Number of shares | H155: =H143 -> 135387 | J155: value driver | K155: =K154+1% -> 0.02 | L155: 38.91457546 | M155: 31.12789455 | N155: 25.95738599 | O155: 22.24292505 | P155: 19.42728227
C156: Equity value per share | H156: =H154/H155 -> 45.64590427 | K156: =K155+1% -> 0.03 | L156: 45.64590427 | M156: 34.60367013 | N156: 28.00281483 | O156: 23.55319564 | P156: 20.31849176
K157: =K156+1% -> 0.04 | L157: 59.10856189 | M157: 40.32188158 | N157: 31.02225742 | O157: 25.35790796 | P157: 21.48820421
C158: EBITDA in Terminal Year | H158: =H119 -> 529910.6657
C159: EV in Terminal Year | H159: =SUMIF('Corporate Model'!7:7,TRUE,150:150) -> 6182492.663
C160: EV/EBITDA | H160: =H159/H158 -> 11.66704704
B162: Terminal Value using Input EV/EBITDA
C163: Terminal Value from EV/EBITDA | G163: =H15 -> 10 | H163: =NPV(Wacc,I163:AE163) -> 3324725.074 | I163: =IF(I4,$G$163*I99*I7) -> FALSE | J163: FALSE | K163: FALSE | L163: FALSE | M163: FALSE | N163: FALSE | O163: FALSE | P163: FALSE | Q163: FALSE | R163: FALSE | S163: FALSE | T163: FALSE | U163: 0 | V163: 0 | W163: 0 | X163: 0 | Y163: 0 | Z163: 0 | AA163: 0 | AB163: 5299106.657 | AC163: FALSE | AD163: FALSE | AE163: FALSE
C164: Nominal Terminal Value | H164: =SUMIF(7:7,TRUE,163:163) -> 5299106.657
C165: Implied EV/EBITDA | H165: =H164/H158 -> 10
C166: Enterprise Value | H166: =H163+H114 -> 4064310.53
C167: Bridge Equity/Enterprise Value | H167: =H131 -> 371332
C168: Equity Value | H168: =H166-H167 -> 3692978.53
C169: Shares | H169: =H155 -> 135387
C170: Equity Value per Share | H170: =H168/H169 -> 27.27720188
A172: Equity Cash Flow
C173: Earnings | I173: ='Corporate Model'!I516 -> -82764 | J173: ='Corporate Model'!J516 -> -14293 | K173: ='Corporate Model'!K516 -> -16955 | L173: ='Corporate Model'!L516 -> 14658 | M173: ='Corporate Model'!M516 -> 50774 | N173: ='Corporate Model'!N516 -> 61231 | O173: ='Corporate Model'!O516 -> 81043 | P173: ='Corporate Model'!P516 -> 94615 | Q173: ='Corporate Model'!Q516 -> 119233 | R173: ='Corporate Model'!R516 -> 130297 | S173: ='Corporate Model'!S516 -> 137047 | T173: ='Corporate Model'!T516 -> 123428 | U173: ='Corporate Model'!U516 -> 136121 | V173: ='Corporate Model'!V516 -> 161780.6517 | W173: ='Corporate Model'!W516 -> 166996.8208 | X173: ='Corporate Model'!X516 -> 170779.8944 | Y173: ='Corporate Model'!Y516 -> 181885.9003 | Z173: ='Corporate Model'!Z516 -> 217632.1678 | AA173: ='Corporate Model'!AA516 -> 229780.8537 | AB173: ='Corporate Model'!AB516 -> 242283.0506 | AC173: ='Corporate Model'!AC516 -> 255226.6599 | AD173: ='Corporate Model'!AD516 -> 268698.7301 | AE173: ='Corporate Model'!AE516 -> 282785.7729
C174: Shares | I174: ='Corporate Model'!I518 -> 30036 | J174: ='Corporate Model'!J518 -> 44697 | K174: ='Corporate Model'!K518 -> 44754 | L174: ='Corporate Model'!L518 -> 67440 | M174: ='Corporate Model'!M518 -> 65750 | N174: ='Corporate Model'!N518 -> 92687 | O174: ='Corporate Model'!O518 -> 91233 | P174: ='Corporate Model'!P518 -> 91505 | Q174: ='Corporate Model'!Q518 -> 92432 | R174: ='Corporate Model'!R518 -> 138300 | S174: ='Corporate Model'!S518 -> 137129 | T174: ='Corporate Model'!T518 -> 135387 | U174: ='Corporate Model'!U518 -> 136670 | V174: ='Corporate Model'!V518 -> 136670 | W174: ='Corporate Model'!W518 -> 136670 | X174: ='Corporate Model'!X518 -> 136670 | Y174: ='Corporate Model'!Y518 -> 136670 | Z174: ='Corporate Model'!Z518 -> 136670 | AA174: ='Corporate Model'!AA518 -> 136670 | AB174: ='Corporate Model'!AB518 -> 136670 | AC174: ='Corporate Model'!AC518 -> 136670 | AD174: ='Corporate Model'!AD518 -> 136670 | AE174: ='Corporate Model'!AE518 -> 136670
C175: Earnings Per Share | I175: =I173/I174 -> -2.755493408 | J175: =J173/J174 -> -0.3197753764 | K175: -0.378848818 | L175: 0.2173487544 | M175: 0.7722281369 | N175: 0.6606212306 | O175: 0.8883079587 | P175: 1.033987214 | Q175: 1.289953696 | R175: 0.9421330441 | S175: 0.9994020229 | T175: 0.9116680331 | U175: 0.9959830248 | V175: 1.183731995 | W175: 1.221898154 | X175: 1.249578506 | Y175: 1.330839982 | Z175: 1.592391657 | AA175: 1.681282313 | AB175: 1.772759571 | AC175: 1.867466598 | AD175: 1.966040316 | AE175: 2.069113726
C176: Dividends | I176: ='Corporate Model'!I533 -> 0 | J176: ='Corporate Model'!J533 -> 0 | K176: ='Corporate Model'!K533 -> 0 | L176: ='Corporate Model'!L533 -> 4182.765397 | M176: ='Corporate Model'!M533 -> 19432.79871 | N176: ='Corporate Model'!N533 -> 23039.79783 | O176: ='Corporate Model'!O533 -> 31380.35179 | P176: ='Corporate Model'!P533 -> 42120 | Q176: ='Corporate Model'!Q533 -> 53222 | R176: ='Corporate Model'!R533 -> 62170 | S176: ='Corporate Model'!S533 -> 70882 | T176: ='Corporate Model'!T533 -> 79081 | U176: ='Corporate Model'!U533 -> 86489 | V176: ='Corporate Model'!V533 -> 113246.4562 | W176: ='Corporate Model'!W533 -> 116897.7745 | X176: ='Corporate Model'!X533 -> 119545.9261 | Y176: ='Corporate Model'!Y533 -> 127320.1302 | Z176: ='Corporate Model'!Z533 -> 152342.5174 | AA176: ='Corporate Model'!AA533 -> 160846.5976 | AB176: ='Corporate Model'!AB533 -> 169598.1354 | AC176: ='Corporate Model'!AC533 -> 178658.6619 | AD176: ='Corporate Model'!AD533 -> 188089.111 | AE176: ='Corporate Model'!AE533 -> 197950.041
C177: Dividends per Share | I177: =I176/I174 -> 0 | J177: =J176/J174 -> 0 | K177: 0 | L177: 0.06202202545 | M177: 0.2955558739 | N177: 0.2485763681 | O177: 0.3439583461 | P177: 0.4603027157 | Q177: 0.575796261 | R177: 0.4495300072 | S177: 0.5169001451 | T177: 0.5841107344 | U177: 0.6328309066 | V177: 0.8286123963 | W177: 0.8553287081 | X177: 0.8747049541 | Y177: 0.9315879873 | Z177: 1.11467416 | AA177: 1.176897619 | AB177: 1.2409317 | AC177: 1.307226618 | AD177: 1.376228222 | AE177: 1.448379608
C178: Return on Equity | I178: ='Corporate Model'!I647 -> -0.1647175895 | J178: ='Corporate Model'!J647 -> -0.02543018974 | K178: ='Corporate Model'!K647 -> -0.02791789783 | L178: ='Corporate Model'!L647 -> 0.02504256193 | M178: ='Corporate Model'!M647 -> 0.08850362737 | N178: ='Corporate Model'!N647 -> 0.11316985 | O178: ='Corporate Model'!O647 -> 0.1507448611 | P178: ='Corporate Model'!P647 -> 0.1552238659 | Q178: ='Corporate Model'!Q647 -> 0.1847236187 | R178: ='Corporate Model'!R647 -> 0.1929376958 | S178: ='Corporate Model'!S647 -> 0.1813108779 | T178: ='Corporate Model'!T647 -> 0.1587745488 | U178: ='Corporate Model'!U647 -> 0.1683011991 | V178: ='Corporate Model'!V647 -> 0.1832404756 | W178: ='Corporate Model'!W647 -> 0.1791419809 | X178: ='Corporate Model'!X647 -> 0.1737563006 | Y178: ='Corporate Model'!Y647 -> 0.1756045103 | Z178: ='Corporate Model'!Z647 -> 0.1986242618 | AA178: ='Corporate Model'!AA647 -> 0.1976082949 | AB178: ='Corporate Model'!AB647 -> 0.1964001714 | AC178: ='Corporate Model'!AC647 -> 0.1950907542 | AD178: ='Corporate Model'!AD647 -> 0.1937496571 | AE178: ='Corporate Model'!AE647 -> 0.1924292274
C180: Dividend Per Share over Explict Period | I180: =IF(I4,I177) -> FALSE | J180: FALSE | K180: FALSE | L180: FALSE | M180: FALSE | N180: FALSE | O180: FALSE | P180: FALSE | Q180: FALSE | R180: FALSE | S180: FALSE | T180: FALSE | U180: 0.6328309066 | V180: 0.8286123963 | W180: 0.8553287081 | X180: 0.8747049541 | Y180: 0.9315879873 | Z180: 1.11467416 | AA180: 1.176897619 | AB180: 1.2409317 | AC180: FALSE | AD180: FALSE | AE180: FALSE
C181: NPV of Dividends | G181: =H37 -> 0.08 | H181: =NPV(G181,I180:AE180) -> 5.311880049
C183: Growth Rate Method
D184: Stable Dividend Payout Ratio | I184: =1-$G$186/I178 -> 1.182129912 | J184: =1-$G$186/J178 -> 2.179700203 | K184: 2.074579475 | L184: -0.1979604994 | M184: 0.6610308426 | N184: 0.7349117277 | O184: 0.8009882408 | P184: 0.8067307509 | Q184: 0.8375952127 | R184: 0.8445093901 | S184: 0.8345383336 | T184: 0.8110528405 | U184: 0.8217481505 | V184: 0.8362807131 | W184: 0.8325350661 | X184: 0.8273443904 | Y184: 0.8291615634 | Z184: 0.8489610498 | AA184: 0.8481845106 | AB184: 0.8472506424 | AC184: 0.8462254138 | AD184: 0.8451610163 | AE184: 0.844098527
D185: Stable Dividend Per Share | I185: =I184*I175 -> -3.257351179 | J185: =J184*J175 -> -0.6970144529 | K185: -0.7859519819 | L185: -0.04302646797 | M185: 0.510466616 | N185: 0.4854982899 | O185: 0.7115242292 | P185: 0.8341492815 | Q185: 1.08045904 | R185: 0.7956402025 | S185: 0.8340392988 | T185: 0.7394109479 | U185: 0.8184472086 | V185: 0.9899322367 | W185: 1.017273061 | X185: 1.033831767 | Y185: 1.10348136 | Z185: 1.351878493 | AA185: 1.426037616 | AB185: 1.501971686 | AC185: 1.580297694 | AD185: 1.661620632 | AE185: 1.746535848
D186: Terminal Value | G186: =H38 -> 0.03 | I186: =IF(I4,I185*(1+$G$186)/($G$181-$G$186)*I7) -> FALSE | J186: FALSE | K186: FALSE | L186: FALSE | M186: FALSE | N186: FALSE | O186: FALSE | P186: FALSE | Q186: FALSE | R186: FALSE | S186: FALSE | T186: FALSE | U186: 0 | V186: 0 | W186: 0 | X186: 0 | Y186: 0 | Z186: 0 | AA186: 0 | AB186: 30.94061672 | AC186: FALSE | AD186: FALSE | AE186: FALSE
D187: NPV of Terminal Value | G187: =G181 -> 0.08 | H187: =NPV(G187,I186:AE186) -> 16.71625248
D189: Total Equity Value | H189: =H187+H181 -> 22.02813253
C191: Value Driver Method
D192: Cost of Equity | G192: =H37 -> 0.08
D193: Spread COE/ROE | G193: =H39 -> 0.04
D194: Total Long-term Return | G194: =SUM(G192:G193) -> 0.12
D196: Terminal Value | G196: =G192 -> 0.08 | H196: =NPV(G196,I196:AE196) -> 14.36650254 | I196: =IF(I4,(1-$G$186/$G$194)/($G$192-$G$186)*I175*I7) -> FALSE | J196: FALSE | K196: FALSE | L196: FALSE | M196: FALSE | N196: FALSE | O196: FALSE | P196: FALSE | Q196: FALSE | R196: FALSE | S196: FALSE | T196: FALSE | U196: 0 | V196: 0 | W196: 0 | X196: 0 | Y196: 0 | Z196: 0 | AA196: 0 | AB196: 26.59139357 | AC196: FALSE | AD196: FALSE | AE196: FALSE
D197: Total Value | H197: =H196+H181 -> 19.67838259
C199: Terminal Value from P/E | G199: =H40 -> 13 | H199: =NPV(G187,I199:AE199) -> 12.45096887 | I199: =IF(I4,$G$199*I175*I7) -> FALSE | J199: FALSE | K199: FALSE | L199: FALSE | M199: FALSE | N199: FALSE | O199: FALSE | P199: FALSE | Q199: FALSE | R199: FALSE | S199: FALSE | T199: FALSE | U199: 0 | V199: 0 | W199: 0 | X199: 0 | Y199: 0 | Z199: 0 | AA199: 0 | AB199: 23.04587443 | AC199: FALSE | AD199: FALSE | AE199: FALSE
C200: Total Equity Value | H200: =H181+H199 -> 17.76284892
C202: Terminal Value from Input P/E | G202: =H42 -> 12 | H202: =NPV(G196,I202:AE202) -> 11.49320203 | I202: =IF(I4,$G$202*I7*I175) -> FALSE | J202: FALSE | K202: FALSE | L202: FALSE | M202: FALSE | N202: FALSE | O202: FALSE | P202: FALSE | Q202: FALSE | R202: FALSE | S202: FALSE | T202: FALSE | U202: 0 | V202: 0 | W202: 0 | X202: 0 | Y202: 0 | Z202: 0 | AA202: 0 | AB202: 21.27311485 | AC202: FALSE | AD202: FALSE | AE202: FALSE
C203: Total Equity Value | H203: =H202+H181 -> 16.80508208

Sheet SG&A Analysis
D2: Year | E2: 1 | F2: =E2+1 -> 2 | G2: =F2+1 -> 3 | H2: 4 | I2: 5 | J2: 6 | K2: 7 | L2: 8 | M2: 9 | N2: 10 | O2: 11 | P2: 12 | Q2: 13
D3: Revenues | E3: ='Corporate Model'!I82 -> 1568934 | F3: ='Corporate Model'!J82 -> 1299490 | G3: ='Corporate Model'!K82 -> 1328607 | H3: ='Corporate Model'!L82 -> 1452995 | I3: ='Corporate Model'!M82 -> 1551308 | J3: ='Corporate Model'!N82 -> 1715869 | K3: ='Corporate Model'!O82 -> 1888654 | L3: ='Corporate Model'!P82 -> 2036674 | M3: ='Corporate Model'!Q82 -> 2414892 | N3: ='Corporate Model'!R82 -> 2600849 | O3: ='Corporate Model'!S82 -> 2573769 | P3: ='Corporate Model'!T82 -> 2773356 | Q3: ='Corporate Model'!U82 -> 3046491 | R3: ='Corporate Model'!V82 -> 0 | S3: ='Corporate Model'!W82 -> 0 | T3: ='Corporate Model'!X82 -> 0 | U3: ='Corporate Model'!Y82 -> 0 | V3: ='Corporate Model'!Z82 -> 0 | W3: ='Corporate Model'!AA82 -> 0 | X3: ='Corporate Model'!AB82 -> 0 | Y3: ='Corporate Model'!AC82 -> 0 | Z3: ='Corporate Model'!AD82 -> 0 | AA3: ='Corporate Model'!AE82 -> 0 | AB3: ='Corporate Model'!AF82 -> 0 | AC3: ='Corporate Model'!AG82 -> 0 | AD3: ='Corporate Model'!AH82 -> 0 | AE3: ='Corporate Model'!AI82 -> 0 | AF3: ='Corporate Model'!AJ82 -> 0 | AG3: ='Corporate Model'!AK82 -> 0
D4: SG&A Costs | E4: ='Corporate Model'!I84 -> 591489 | F4: ='Corporate Model'!J84 -> 557957 | G4: ='Corporate Model'!K84 -> 554078 | H4: ='Corporate Model'!L84 -> 601013 | I4: ='Corporate Model'!M84 -> 632895 | J4: ='Corporate Model'!N84 -> 695656 | K4: ='Corporate Model'!O84 -> 759387 | L4: ='Corporate Model'!P84 -> 787821 | M4: ='Corporate Model'!Q84 -> 894800 | N4: ='Corporate Model'!R84 -> 926418 | O4: ='Corporate Model'!S84 -> 935999 | P4: ='Corporate Model'!T84 -> 1016491 | Q4: ='Corporate Model'!U84 -> 1107480 | R4: ='Corporate Model'!V84 -> 0 | S4: ='Corporate Model'!W84 -> 0 | T4: ='Corporate Model'!X84 -> 0 | U4: ='Corporate Model'!Y84 -> 0 | V4: ='Corporate Model'!Z84 -> 0 | W4: ='Corporate Model'!AA84 -> 0 | X4: ='Corporate Model'!AB84 -> 0 | Y4: ='Corporate Model'!AC84 -> 0 | Z4: ='Corporate Model'!AD84 -> 0 | AA4: ='Corporate Model'!AE84 -> 0 | AB4: ='Corporate Model'!AF84 -> 0 | AC4: ='Corporate Model'!AG84 -> 0 | AD4: ='Corporate Model'!AH84 -> 0 | AE4: ='Corporate Model'!AI84 -> 0 | AF4: ='Corporate Model'!AJ84 -> 0 | AG4: ='Corporate Model'!AK84 -> 0
D5: SG&A Cost | E5: =$G$9+$F$9*E2+$E$9*E3 -> 593823.406 | F5: =$G$9+$F$9*F2+$E$9*F3 -> 543435.8886 | G5: 562732.4314 | H5: 604265.201 | I5: 639712.0723 | J5: 690621.2097 | K5: 743449.8267 | L5: 790498.299 | M5: 891274.925 | N5: 947177.8833 | O5: 953358.0608 | P5: 1012442.258 | Q5: 1088692.539
E8: Sales | F8: Trend | G8: Constant
D9: Constant | E9: =LINEST(E4:Q4,E2:Q3,,TRUE) -> 0.2333997417 | F9: 12500.64253 | G9: 215133.9731
D10: Standard Deviation | E10: 0.02222580715 | F10: 3405.566521 | G10: 23384.55878
D11: R 2 | E11: 0.9958241604 | F11: 13224.47752
E12: 1192.364005 | F12: 10

Sheet Acquisition
A1: Transaction date | F1: 2012 | H1: Col Number | I1: =MATCH(F1,'Corporate Model'!2:2) -> 21
C2: Period | F2: 0 | G2: =F2+1 -> 1 | H2: =G2+1 -> 2 | I2: 3 | J2: 4 | K2: 5 | L2: 6 | M2: 7 | N2: 8 | O2: 9 | P2: 10 | Q2: 11 | R2: 12
C3: Exit period | F3: =F2=$F$17 -> FALSE | G3: FALSE | H3: FALSE | I3: FALSE | J3: FALSE | K3: FALSE | L3: FALSE | M3: FALSE | N3: FALSE | O3: FALSE | P3: TRUE | Q3: FALSE | R3: FALSE
C4: Holding period | G4: =G2<=$F$17 -> TRUE | H4: TRUE | I4: TRUE | J4: TRUE | K4: TRUE | L4: TRUE | M4: TRUE | N4: TRUE | O4: TRUE | P4: TRUE | Q4: FALSE | R4: FALSE
C5: Year | F5: =F1 -> 2012 | G5: =F5+1 -> 2013 | H5: =G5+1 -> 2014 | I5: 2015 | J5: 2016 | K5: 2017 | L5: 2018 | M5: 2019 | N5: 2020 | O5: 2021 | P5: 2022 | Q5: 2023 | R5: 2024
C6: Date for XIRR | F6: =DATE(F5,12,31) -> 2012-12-31 | G6: =DATE(G5,7,1) -> 2013-07-01 | H6: =DATE(H5,7,1) -> 2014-07-01 | I6: 2015-07-01 | J6: 2016-07-01 | K6: 2017-07-01 | L6: 2018-07-01 | M6: 2019-07-01 | N6: 2020-07-01 | O6: 2021-07-01 | P6: 2022-07-01 | Q6: 2023-07-01 | R6: 2024-07-01
C7: Column Number | F7: =MATCH(F5,'Corporate Model'!2:2) -> 21 | G7: =MATCH(G5,'Corporate Model'!2:2) -> 22 | H7: =MATCH(H5,'Corporate Model'!2:2) -> 23 | I7: =MATCH(I5,'Corporate Model'!2:2) -> 24 | J7: =MATCH(J5,'Corporate Model'!2:2) -> 25 | K7: =MATCH(K5,'Corporate Model'!2:2) -> 26 | L7: =MATCH(L5,'Corporate Model'!2:2) -> 27 | M7: =MATCH(M5,'Corporate Model'!2:2) -> 28 | N7: =MATCH(N5,'Corporate Model'!2:2) -> 29 | O7: =MATCH(O5,'Corporate Model'!2:2) -> 31 | P7: =MATCH(P5,'Corporate Model'!2:2) -> 31 | Q7: =MATCH(Q5,'Corporate Model'!2:2) -> 31 | R7: =MATCH(R5,'Corporate Model'!2:2) -> 31
A9: Transaction assumptions
D10: Current stock price | F10: =INDEX('Corporate Model'!617:617,$I$1) -> 20.40488372
D11: Number of shares | F11: =INDEX('Corporate Model'!102:102,$I$1) -> 136670
D13: Marketcap | F13: =F11*F10 -> 2788735.458
D14: Premium | F14: =G14/100 -> 0.2 | G14: 20
D15: Consideration | F15: =(1+F14)*F13 -> 3346482.55
D17: Holding period | F17: 10
D18: Euribor | F18: 0.01
D20: Net Income | F20: =INDEX('Corporate Model'!96:96,Acquisition!F7) -> 136121
D21: Implied P/E Ratio | F21: =F15/F20 -> 24.58461626
D23: EXIT EV/ EBITDA multiple | F23: 9
A25: Financing
C26: Existing Debt
D27: Existing debt | F27: =INDEX('Corporate Model'!56:56,$I$1) -> 535016
D28: Retirement of existing debt | F28: 200000
C30: New Amortisisng Debt
D31: New Amortizing debt issue | F31: =H31*1000 -> 500000 | H31: 500
D32: Credit spread | F32: 0.03
D33: Term of the debt | F33: 5
D34: EBITDA | F34: =INDEX('Corporate Model'!687:687,$I$1) -> 321201
D35: Amortizing debt/EBITDA | F35: =(F27-F28+F31)/F34 -> 2.599668121
D37: Bullet debt | F37: =H37*1000 -> 800000 | H37: 800
D38: Credit spread | F38: 0.045
D40: Subordinated debt | F40: =H40*1000 -> 700000 | H40: 700
D41: Credit spread | F41: 0.1
D42: Capitalizing | F42: TRUE
D44: Management incentive
D46: Revolver | F46: 500000
D47: Credit spread | F47: 0.045
D49: Banking fees | F49: 0.015
D50: Advisory fees | F50: 0.01
A52: Sources and uses of funds
B53: Uses of funds
C54: Repay existing debt | F54: =F28 -> 200000
C55: Consideration | F55: =F15 -> 3346482.55
C56: Banking fees | F56: =F49*SUM(F61:F63) -> 30000
C57: Advisory fees | F57: =F50*F15 -> 33464.8255
D58: Total | F58: =SUM(F54:F57) -> 3609947.375
B60: Sources of funds
C61: New amortizing debt | F61: =F31 -> 500000
C62: Bullet debt | F62: =F37 -> 800000
C63: Subordinated debt | F63: =F40 -> 700000
C64: Equity | F64: =-SUM(F61:F63)+F58 -> 1609947.375
D65: Total | F65: =SUM(F61:F64) -> 3609947.375
F66: =F65=F58 -> TRUE
A68: Synergies & capex
C70: Added Capital Expendtirues | E70: =F1+1 -> 2013 | F70: 200000
E71: =E70+1 -> 2014 | F71: 200000
E72: =E71+1 -> 2015 | F72: 100000
E73: =E72+1 -> 2016 | F73: 0
E74: =E73+1 -> 2017 | F74: 0
C77: Synergies | E77: =E70 -> 2013 | F77: 0
E78: =E71 -> 2014 | F78: 20000
E79: =E72 -> 2015 | F79: 200000
E80: =E73 -> 2016 | F80: 250000
E81: =E74 -> 2017 | F81: 250000
C83: Synergy Sensitivity | F83: =H83/100 -> 1 | H83: 100
C85: Capital Expenditure Sensitivity | F85: =H85/100 -> 1 | H85: 100
A88: Debt schedule
C90: Existing debt
D91: Opening balance | G91: =F94 -> 335016 | H91: =G94 -> 268012.8 | I91: 201009.6 | J91: 134006.4 | K91: 67003.2 | L91: 0 | M91: 0 | N91: 0 | O91: 0 | P91: =O94 -> 0 | Q91: =P94 -> 0 | R91: =Q94 -> 0
D92: Less: repayments | E92: =F33 -> 5 | G92: =MIN($F$94/$E$92,G91) -> 67003.2 | H92: 67003.2 | I92: 67003.2 | J92: 67003.2 | K92: 67003.2 | L92: 0 | M92: 0 | N92: 0 | O92: 0 | P92: 0 | Q92: 0 | R92: 0
D93: Less: Repayment at exit | G93: =LOOKUP(G5,$E$77:$E$81,$F$77:$F$81) -> 0 | H93: =(H91-H92)*H3 -> 0 | I93: 0 | J93: 0 | K93: 0 | L93: 0 | M93: 0 | N93: 0 | O93: 0 | P93: 0 | Q93: 0 | R93: 0
D94: Closing balance | F94: =F27-F28 -> 335016 | G94: =G91-G92-G93 -> 268012.8 | H94: =H91-H92-H93 -> 201009.6 | I94: 134006.4 | J94: 67003.2 | K94: 0 | L94: 0 | M94: 0 | N94: 0 | O94: 0 | P94: 0 | Q94: 0 | R94: 0
D95: Interest rate | F95: =$F$18+$F$32 -> 0.04 | G95: 0.04 | H95: 0.04 | I95: 0.04 | J95: 0.04 | K95: 0.04 | L95: 0.04 | M95: 0.04 | N95: 0.04 | O95: 0.04 | P95: 0.04 | Q95: 0.04 | R95: 0.04
D96: Interest expense | G96: =AVERAGE(G91,G94)*G95 -> 12060.576 | H96: 9380.448 | I96: 6700.32 | J96: 4020.192 | K96: 1340.064 | L96: 0 | M96: =AVERAGE(M91,M94)*M95 -> 0 | N96: 0 | O96: 0 | P96: 0 | Q96: 0 | R96: 0
C98: Amortizing debt
D99: Opening balance | G99: =F102 -> 500000 | H99: =G102 -> 400000 | I99: 320000 | J99: 256000 | K99: 204800 | L99: 163840 | M99: 131072 | N99: 104857.6 | O99: 83886.08 | P99: 67108.864 | Q99: 0 | R99: 0
D100: Less: repayments | E100: 5 | G100: =MIN(G99,F102/$E$100) -> 100000 | H100: 80000 | I100: 64000 | J100: 51200 | K100: 40960 | L100: 32768 | M100: 26214.4 | N100: 20971.52 | O100: 16777.216 | P100: 13421.7728 | Q100: 0 | R100: 0
D101: Less: Repayment at exit | G101: =(G99-G100)*G3 -> 0 | H101: 0 | I101: 0 | J101: 0 | K101: 0 | L101: 0 | M101: 0 | N101: 0 | O101: 0 | P101: 53687.0912 | Q101: 0 | R101: 0
D102: Closing balance | F102: =F61 -> 500000 | G102: =G99-G100-G101 -> 400000 | H102: =H99-H100-H101 -> 320000 | I102: 256000 | J102: 204800 | K102: 163840 | L102: 131072 | M102: 104857.6 | N102: 83886.08 | O102: 67108.864 | P102: 0 | Q102: 0 | R102: 0
D103: Interest rate | F103: =$F$18+$F$32 -> 0.04 | G103: 0.04 | H103: 0.04 | I103: 0.04 | J103: 0.04 | K103: 0.04 | L103: 0.04 | M103: 0.04 | N103: 0.04 | O103: 0.04 | P103: 0.04 | Q103: 0.04 | R103: 0.04
D104: Interest expense | G104: =AVERAGE(G99,G102)*G103 -> 18000 | H104: 14400 | I104: 11520 | J104: 9216 | K104: 7372.8 | L104: 5898.24 | M104: 4718.592 | N104: 3774.8736 | O104: 3019.89888 | P104: 1342.17728 | Q104: 0 | R104: 0
C106: Bullet debt
D107: Opening balance | G107: =F110 -> 800000 | H107: =G110 -> 800000 | I107: 800000 | J107: 800000 | K107: 800000 | L107: 659829.3537 | M107: 238289.3707 | N107: 0 | O107: 0 | P107: 0 | Q107: 0 | R107: 0
D108: Less: repayments | G108: =(G107)*G3 -> 0 | H108: 0 | I108: 0 | J108: 0 | K108: 0 | L108: 0 | M108: 0 | N108: 0 | O108: 0 | P108: 0 | Q108: 0 | R108: 0
D109: Less early repayments (cash flow sweep) | G109: =G163 -> 0 | H109: =H163 -> 0 | I109: 0 | J109: 0 | K109: 140170.6463 | L109: 421539.983 | M109: 238289.3707 | N109: 0 | O109: 0 | P109: 0 | Q109: 0 | R109: 0
D110: Closing balance | F110: =F62 -> 800000 | G110: =G107-G109-G108 -> 800000 | H110: 800000 | I110: 800000 | J110: 800000 | K110: 659829.3537 | L110: 238289.3707 | M110: 0 | N110: 0 | O110: 0 | P110: 0 | Q110: 0 | R110: 0
D111: Interest rate | F111: =$F$18+$F$38 -> 0.055 | G111: 0.055 | H111: 0.055 | I111: 0.055 | J111: 0.055 | K111: 0.055 | L111: 0.055 | M111: 0.055 | N111: 0.055 | O111: 0.055 | P111: 0.055 | Q111: 0.055 | R111: 0.055
D112: Interest expense | G112: =G111*G107 -> 44000 | H112: 44000 | I112: 44000 | J112: 44000 | K112: 44000 | L112: 36290.61445 | M112: 13105.91539 | N112: 0 | O112: 0 | P112: 0 | Q112: 0 | R112: 0
C114: Subordinated debt
D115: Opening balance | G115: =F118 -> 700000 | H115: =G118 -> 777000 | I115: 862470 | J115: 957341.7 | K115: 1062649.287 | L115: 1179540.709 | M115: 1309290.187 | N115: 1220214.256 | O115: 843414.4498 | P115: 375029.6212 | Q115: 0 | R115: 0
D116: Add capitalized interest | G116: =$F$42*G120 -> 77000 | H116: =$F$42*H120 -> 85470 | I116: 94871.7 | J116: 105307.587 | K116: 116891.4216 | L116: 129749.4779 | M116: 144021.9205 | N116: 134223.5682 | O116: 92775.58948 | P116: 41253.25833 | Q116: 0 | R116: 0
D117: Less: repayments | G117: =G169 -> 0 | H117: =H169 -> 0 | I117: 0 | J117: 0 | K117: 0 | L117: 0 | M117: 233097.8511 | N117: 511023.3743 | O117: 561160.4181 | P117: 416282.8795 | Q117: 0 | R117: 0
D118: Closing balance | F118: =F63 -> 700000 | G118: =G115+G116-G117 -> 777000 | H118: =H115+H116-H117 -> 862470 | I118: 957341.7 | J118: 1062649.287 | K118: 1179540.709 | L118: 1309290.187 | M118: 1220214.256 | N118: 843414.4498 | O118: 375029.6212 | P118: 0 | Q118: 0 | R118: 0
D119: Interest rate | F119: =$F$18+$F$41 -> 0.11 | G119: 0.11 | H119: 0.11 | I119: 0.11 | J119: 0.11 | K119: 0.11 | L119: 0.11 | M119: 0.11 | N119: 0.11 | O119: 0.11 | P119: 0.11 | Q119: 0.11 | R119: 0.11
D120: Interest expense | G120: =G119*G115 -> 77000 | H120: =H119*H115 -> 85470 | I120: 94871.7 | J120: 105307.587 | K120: 116891.4216 | L120: 129749.4779 | M120: 144021.9205 | N120: 134223.5682 | O120: 92775.58948 | P120: 41253.25833 | Q120: 0 | R120: 0
C122: Revolver
D123: Commitment | F123: =$F$46 -> 500000 | G123: =$F$46 -> 500000 | H123: 500000 | I123: 500000 | J123: 500000 | K123: 500000 | L123: 500000 | M123: 500000 | N123: 500000 | O123: 500000 | P123: 500000 | Q123: 500000 | R123: 500000
D124: remaining amount | F124: =F127 -> 0 | G124: =G127 -> 0 | H124: 246060.6842 | I124: 457714.7661 | J124: 397286.9545 | K124: 168790.7845 | L124: 0 | M124: 0 | N124: 0 | O124: 0 | P124: 0 | Q124: 0 | R124: 0
D125: available amount | G125: =G123-G124 -> 500000 | H125: =H123-H124 -> 253939.3158 | I125: 42285.2339 | J125: 102713.0455 | K125: 331209.2155 | L125: 500000 | M125: 500000 | N125: 500000 | O125: 500000 | P125: 500000 | Q125: 500000 | R125: 500000
D127: Opening balance | G127: =F130 -> 0 | H127: =G130 -> 246060.6842 | I127: 457714.7661 | J127: 397286.9545 | K127: 168790.7845 | L127: 0 | M127: 0 | N127: 0 | O127: 0 | P127: 0 | Q127: 0 | R127: 0
D128: Add new borrowings | G128: =G165 -> 246060.6842 | H128: =H165 -> 211654.0819 | I128: 0 | J128: 0 | K128: 0 | L128: 0 | M128: 0 | N128: 0 | O128: 0 | P128: 0 | Q128: 0 | R128: 0
D129: Less: repayments | G129: =G161 -> 0 | H129: =H161 -> 0 | I129: 60427.81159 | J129: 228496.17 | K129: 168790.7845 | L129: 0 | M129: 0 | N129: 0 | O129: 0 | P129: 0 | Q129: 0 | R129: 0
D130: Closing balance | F130: 0 | G130: =G127+G128-G129 -> 246060.6842 | H130: =H127+H128-H129 -> 457714.7661 | I130: 397286.9545 | J130: 168790.7845 | K130: 0 | L130: 0 | M130: 0 | N130: 0 | O130: 0 | P130: 0 | Q130: 0 | R130: 0
D131: Interest rate | F131: =$F$18+$F$47 -> 0.055 | G131: =$F$18+$F$47 -> 0.055 | H131: =$F$18+$F$47 -> 0.055 | I131: 0.055 | J131: 0.055 | K131: 0.055 | L131: 0.055 | M131: 0.055 | N131: 0.055 | O131: 0.055 | P131: 0.055 | Q131: 0.055 | R131: 0.055
D132: Interest expense | G132: =G131*G127 -> 0 | H132: =H131*H127 -> 13533.33763 | I132: 25174.31214 | J132: 21850.7825 | K132: 9283.493147 | L132: 0 | M132: 0 | N132: 0 | O132: 0 | P132: 0 | Q132: 0 | R132: 0
C134: Default to debt
D135: Opening balance | G135: =F138 -> 0 | H135: =G138 -> 0 | I135: 0 | J135: 0 | K135: 0 | L135: 0 | M135: 0 | N135: 0 | O135: 0 | P135: 0 | Q135: 0 | R135: 0
D136: add default | G136: =G167 -> 0 | H136: =H167 -> 0 | I136: 0 | J136: 0 | K136: 0 | L136: 0 | M136: 0 | N136: 0 | O136: 0 | P136: 0 | Q136: 0 | R136: 0
D137: minus repayment of revolver | G137: =G152 -> 0 | H137: =H152 -> 0 | I137: 0 | J137: 0 | K137: 0 | L137: 0 | M137: 0 | N137: 0 | O137: 0 | P137: 0 | Q137: 0 | R137: 0
D138: closing balance | F138: =F130 -> 0 | G138: =G135+G136-G137 -> 0 | H138: =H135+H136-H137 -> 0 | I138: 0 | J138: 0 | K138: 0 | L138: 0 | M138: 0 | N138: 0 | O138: 0 | P138: 0 | Q138: 0 | R138: 0
D139: default interest | G139: =G135*G131 -> 0 | H139: =H135*H131 -> 0 | I139: 0 | J139: 0 | K139: 0 | L139: 0 | M139: 0 | N139: 0 | O139: 0 | P139: 0 | Q139: 0 | R139: 0
A142: Cash flow statement
C143: EBITDA | G143: =INDEX('Corporate Model'!360:360,Acquisition!G$7)*G4 -> 366697.6167 | H143: =INDEX('Corporate Model'!360:360,Acquisition!H$7)*H4 -> 375245.2218 | I143: =INDEX('Corporate Model'!360:360,Acquisition!I$7)*I4 -> 384005.5502 | J143: =INDEX('Corporate Model'!360:360,Acquisition!J$7)*J4 -> 407466.6489 | K143: =INDEX('Corporate Model'!360:360,Acquisition!K$7)*K4 -> 471058.4076 | L143: =INDEX('Corporate Model'!360:360,Acquisition!L$7)*L4 -> 499561.9426 | M143: =INDEX('Corporate Model'!360:360,Acquisition!M$7)*M4 -> 529910.6657 | N143: =INDEX('Corporate Model'!360:360,Acquisition!N$7)*N4 -> 562187.6102 | O143: =INDEX('Corporate Model'!360:360,Acquisition!O$7)*O4 -> 632877.148 | P143: =INDEX('Corporate Model'!360:360,Acquisition!P$7)*P4 -> 632877.148 | Q143: =INDEX('Corporate Model'!360:360,Acquisition!Q$7)*Q4 -> 0 | R143: =INDEX('Corporate Model'!360:360,Acquisition!R$7)*R4 -> 0
D144: Synergies | G144: =LOOKUP(G5,$E$77:$E$81,$F$77:$F$81)*G4*$F$83 -> 0 | H144: 20000 | I144: 200000 | J144: 250000 | K144: 250000 | L144: 250000 | M144: 250000 | N144: 250000 | O144: 250000 | P144: 250000 | Q144: 0 | R144: 0
D145: Less working capital changes | G145: =INDEX('Corporate Model'!395:395,Acquisition!G$7)*G4 -> 11753.74746 | H145: =INDEX('Corporate Model'!395:395,Acquisition!H$7)*H4 -> 10644.5017 | I145: =INDEX('Corporate Model'!395:395,Acquisition!I$7)*I4 -> 11211.72859 | J145: =INDEX('Corporate Model'!395:395,Acquisition!J$7)*J4 -> 10556.58154 | K145: =INDEX('Corporate Model'!395:395,Acquisition!K$7)*K4 -> 11063.12932 | L145: =INDEX('Corporate Model'!395:395,Acquisition!L$7)*L4 -> 11592.47176 | M145: =INDEX('Corporate Model'!395:395,Acquisition!M$7)*M4 -> 12145.63461 | N145: =INDEX('Corporate Model'!395:395,Acquisition!N$7)*N4 -> 12723.68979 | O145: =INDEX('Corporate Model'!395:395,Acquisition!O$7)*O4 -> 13959.00815 | P145: =INDEX('Corporate Model'!395:395,Acquisition!P$7)*P4 -> 13959.00815 | Q145: =INDEX('Corporate Model'!395:395,Acquisition!Q$7)*Q4 -> 0 | R145: =INDEX('Corporate Model'!395:395,Acquisition!R$7)*R4 -> 0
D146: Less: income taxes
C147: Operating cash flow | G147: =G143+G144-G145-G146 -> 354943.8693 | H147: =H143+H144-H145-H146 -> 384600.7201 | I147: 572793.8216 | J147: 646910.0673 | K147: 709995.2783 | L147: 737969.4709 | M147: 767765.0311 | N147: 799463.9204 | O147: 868918.1399 | P147: 868918.1399 | Q147: 0 | R147: 0
D148: Less: Existing Capital Expenditures | G148: =INDEX('Corporate Model'!364:364,Acquisition!G7)*Acquisition!G4 -> 159940.7775 | H148: =INDEX('Corporate Model'!364:364,Acquisition!H7)*Acquisition!H4 -> 167937.8164 | I148: =INDEX('Corporate Model'!364:364,Acquisition!I7)*Acquisition!I4 -> 193968.1779 | J148: =INDEX('Corporate Model'!364:364,Acquisition!J7)*Acquisition!J4 -> 221123.7228 | K148: =INDEX('Corporate Model'!364:364,Acquisition!K7)*Acquisition!K4 -> 231074.2903 | L148: =INDEX('Corporate Model'!364:364,Acquisition!L7)*Acquisition!L4 -> 241472.6334 | M148: =INDEX('Corporate Model'!364:364,Acquisition!M7)*Acquisition!M4 -> 252338.9019 | N148: =INDEX('Corporate Model'!364:364,Acquisition!N7)*Acquisition!N4 -> 263694.1525 | O148: =INDEX('Corporate Model'!364:364,Acquisition!O7)*Acquisition!O4 -> 287960.6069 | P148: =INDEX('Corporate Model'!364:364,Acquisition!P7)*Acquisition!P4 -> 287960.6069 | Q148: =INDEX('Corporate Model'!364:364,Acquisition!Q7)*Acquisition!Q4 -> 0 | R148: =INDEX('Corporate Model'!364:364,Acquisition!R7)*Acquisition!R4 -> 0
D149: Less: New Capital Expenditures | G149: =LOOKUP(G5,$E$70:$E$74,$F$70:$F$74)*G4*$F$85 -> 200000 | H149: 200000 | I149: 100000 | J149: 0 | K149: 0 | L149: 0 | M149: 0 | N149: 0 | O149: 0 | P149: 0 | Q149: 0 | R149: 0
D150: Add: Exit Proceeds | G150: =(G143+G144)*$F$23*G3 -> 0 | H150: 0 | I150: 0 | J150: 0 | K150: 0 | L150: 0 | M150: 0 | N150: 0 | O150: 0 | P150: 7945894.332 | Q150: 0 | R150: 0
C151: CF before financing | G151: =G147-G148-G149+G150 -> -4996.908224 | H151: =H147-H148-H149+H150 -> 16662.90376 | I151: 278825.6437 | J151: 425786.3445 | K151: 478920.9879 | L151: 496496.8375 | M151: 515426.1292 | N151: 535769.7679 | O151: 580957.533 | P151: 8526851.865 | Q151: 0 | R151: 0
D152: Less repayment of the default | G152: =MIN(G135,MAX(G151,0)) -> 0 | H152: =MIN(H135,MAX(H151,0)) -> 0 | I152: 0 | J152: 0 | K152: 0 | L152: 0 | M152: 0 | N152: 0 | O152: 0 | P152: 0 | Q152: 0 | R152: 0
D153: Less repayments of existing debt | G153: =G92+G93 -> 67003.2 | H153: =H92+H93 -> 67003.2 | I153: 67003.2 | J153: 67003.2 | K153: 67003.2 | L153: 0 | M153: 0 | N153: 0 | O153: 0 | P153: 0 | Q153: 0 | R153: 0
D154: Less repayments of amortising debt | G154: =G100+G101 -> 100000 | H154: =H100+H101 -> 80000 | I154: 64000 | J154: 51200 | K154: 40960 | L154: 32768 | M154: 26214.4 | N154: 20971.52 | O154: 16777.216 | P154: 67108.864 | Q154: 0 | R154: 0
D155: Less interest on existing debt+default | G155: =G96+G139 -> 12060.576 | H155: =H96+H139 -> 9380.448 | I155: 6700.32 | J155: 4020.192 | K155: 1340.064 | L155: 0 | M155: 0 | N155: 0 | O155: 0 | P155: 0 | Q155: 0 | R155: 0
D156: Less interest on amortizing debt | G156: =G104 -> 18000 | H156: 14400 | I156: 11520 | J156: 9216 | K156: 7372.8 | L156: 5898.24 | M156: 4718.592 | N156: 3774.8736 | O156: 3019.89888 | P156: 1342.17728 | Q156: 0 | R156: 0
D157: Less interest on bullet debt | G157: =G112 -> 44000 | H157: 44000 | I157: 44000 | J157: 44000 | K157: 44000 | L157: 36290.61445 | M157: 13105.91539 | N157: 0 | O157: 0 | P157: 0 | Q157: 0 | R157: 0
D158: Less interest on the revolver | G158: =G132 -> 0 | H158: 13533.33763 | I158: 25174.31214 | J158: 21850.7825 | K158: 9283.493147 | L158: 0 | M158: 0 | N158: 0 | O158: 0 | P158: 0 | Q158: 0 | R158: 0
D159: Less repayments bullet debt | G159: =G108 -> 0 | H159: 0 | I159: 0 | J159: 0 | K159: 0 | L159: 0 | M159: 0 | N159: 0 | O159: 0 | P159: 0 | Q159: 0 | R159: 0
C160: Cash flow after senior debt service | G160: =G151-SUM(G152:G159) -> -246060.6842 | H160: =H151-SUM(H152:H159) -> -211654.0819 | I160: 60427.81159 | J160: 228496.17 | K160: 308961.4308 | L160: 421539.983 | M160: 471387.2218 | N160: 511023.3743 | O160: 561160.4181 | P160: 8458400.824 | Q160: 0 | R160: 0
D161: Less repayment of the revolver | G161: =MIN(G127,MAX(G160,0)) -> 0 | H161: 0 | I161: 60427.81159 | J161: 228496.17 | K161: 168790.7845 | L161: 0 | M161: 0 | N161: 0 | O161: 0 | P161: 0 | Q161: 0 | R161: 0
C162: Cash flow after repayment of revolver | G162: =G160-G161 -> -246060.6842 | H162: =H160-H161 -> -211654.0819 | I162: 0 | J162: 0 | K162: 140170.6463 | L162: 421539.983 | M162: 471387.2218 | N162: 511023.3743 | O162: 561160.4181 | P162: 8458400.824 | Q162: 0 | R162: 0
D163: Less early repayment bullet debt | G163: =MIN(G107-G108,MAX(G162,0)) -> 0 | H163: 0 | I163: 0 | J163: 0 | K163: 140170.6463 | L163: 421539.983 | M163: 238289.3707 | N163: 0 | O163: 0 | P163: 0 | Q163: 0 | R163: 0
C164: Cash flow after repayment of bullet debt | G164: =G162-G163 -> -246060.6842 | H164: =H162-H163 -> -211654.0819 | I164: 0 | J164: 0 | K164: 0 | L164: 0 | M164: 233097.8511 | N164: 511023.3743 | O164: 561160.4181 | P164: 8458400.824 | Q164: 0 | R164: 0
D165: Add Use of revolver | G165: =MIN(G125,MAX(-G164,0)) -> 246060.6842 | H165: 211654.0819 | I165: 0 | J165: 0 | K165: 0 | L165: 0 | M165: 0 | N165: 0 | O165: 0 | P165: 0 | Q165: 0 | R165: 0
C166: Cash flow after the revolver | G166: =G164+G165 -> 0 | H166: =H164+H165 -> 0 | I166: 0 | J166: 0 | K166: 0 | L166: 0 | M166: 233097.8511 | N166: 511023.3743 | O166: 561160.4181 | P166: 8458400.824 | Q166: 0 | R166: 0
D167: Add default | G167: =MAX(-G166,0) -> 0 | H167: =MAX(-H166,0) -> 0 | I167: 0 | J167: 0 | K167: 0 | L167: 0 | M167: 0 | N167: 0 | O167: 0 | P167: 0 | Q167: 0 | R167: 0
C168: Cash flow after default | G168: =G166+G167 -> 0 | H168: =H166+H167 -> 0 | I168: 0 | J168: 0 | K168: 0 | L168: 0 | M168: 233097.8511 | N168: 511023.3743 | O168: 561160.4181 | P168: 8458400.824 | Q168: 0 | R168: 0
D169: Less Repayment subordinated debt | G169: =MIN(G115+G116,MAX(G168,0)) -> 0 | H169: =MIN(H115+H116,MAX(H168,0)) -> 0 | I169: 0 | J169: 0 | K169: 0 | L169: 0 | M169: 233097.8511 | N169: 511023.3743 | O169: 561160.4181 | P169: 416282.8795 | Q169: 0 | R169: 0
D170: Less Interest paid on subordinated debt | G170: =G120-G116 -> 0 | H170: =H120-H116 -> 0 | I170: 0 | J170: 0 | K170: 0 | L170: 0 | M170: 0 | N170: 0 | O170: 0 | P170: 0 | Q170: 0 | R170: 0
C171: Cash flow after subordinated debt | G171: =G168-G170-G169 -> 0 | H171: =H168-H170-H169 -> 0 | I171: 0 | J171: 0 | K171: 0 | L171: 0 | M171: 0 | N171: 0 | O171: 0 | P171: 8042117.944 | Q171: 0 | R171: 0
D172: Equity cash flow | F172: =-F64 -> -1609947.375 | G172: =G171 -> 0 | H172: =H171 -> 0 | I172: 0 | J172: 0 | K172: 0 | L172: 0 | M172: 0 | N172: 0 | O172: 0 | P172: 8042117.944 | Q172: 0 | R172: 0
D173: Equity IRR | F173: =IRR(F172:R172) -> 0.1745077201
D174: XIRR | F174: =XIRR(F172:R172,F6:R6) -> 0.1844062865
D176: Unlevered cash flow | F176: =-F65 -> -3609947.375 | G176: =G143-G144-G148-G149+G150 -> 6756.839237 | H176: =H143-H144-H148-H149+H150 -> -12692.59454 | I176: -109962.6277 | J176: -63657.07395 | K176: -10015.88276 | L176: 8089.309229 | M176: 27571.76377 | N176: 48493.45768 | O176: 94916.54114 | P176: 8040810.873 | Q176: 0 | R176: 0
D177: Unlevered IRR | F177: =XIRR(F176:R176,F6:R6) -> 0.08620244563
A179: Graph data | G179: =G5 -> 2013 | H179: 2014 | I179: 2015 | J179: 2016 | K179: 2017 | L179: 2018 | M179: 2019 | N179: 2020 | O179: 2021 | P179: 2022 | Q179: 2023 | R179: 2024
C180: Use of revolver | G180: =G165 -> 246060.6842 | H180: =H165 -> 211654.0819 | I180: 0 | J180: 0 | K180: 0 | L180: 0 | M180: 0 | N180: 0 | O180: 0 | P180: 0 | Q180: 0 | R180: 0
C181: Default | G181: =G167 -> 0 | H181: =H167 -> 0 | I181: 0 | J181: 0 | K181: 0 | L181: 0 | M181: 0 | N181: 0 | O181: 0 | P181: 0 | Q181: 0 | R181: 0
A183: Waterfall Graph Data
B184: Start at the top of the waterfall an include major items
B185: Include Terminal | E185: FALSE
B187: Colums before Adjustment | E187: =COUNTIF(4:4,TRUE) -> 10
B188: Columns used | E188: =IF(E185,E187,E187-1) -> 9
B190: Row | E190: 0
B191: Column | E191: 0
B192: Height | E192: 1
B193: Witdth | E193: =E188 -> 9
B200: Default as Percent of Senior Debt
C201: Total Default | G201: =G167 -> 0 | H201: =H167 -> 0 | I201: 0 | J201: 0 | K201: 0 | L201: 0 | M201: 0 | N201: 0 | O201: 0 | P201: 0 | Q201: 0 | R201: 0
C202: Total Senior Debt Service | G202: =SUM(G153:G159)+G163 -> 241063.776 | H202: =SUM(H153:H159)+H163 -> 228316.9856 | I202: =SUM(I153:I159)+I163 -> 218397.8321 | J202: 197290.1745 | K202: 310130.2034 | L202: 496496.8375 | M202: 282328.2781 | N202: 24746.3936 | O202: 19797.11488 | P202: 68451.04128 | Q202: 0 | R202: 0
C203: Percent Test | G203: =1-IF(G202,MIN(G201/G202,1)) -> 1 | H203: =1-IF(H202,MIN(H201/H202,1)) -> 1 | I203: 1 | J203: 1 | K203: 1 | L203: 1 | M203: 1 | N203: 1 | O203: 1 | P203: 1 | Q203: 1 | R203: 1
G206: =G5 -> 2013 | H206: =H5 -> 2014 | I206: 2015 | J206: 2016 | K206: 2017 | L206: 2018 | M206: 2019 | N206: 2020 | O206: 2021 | P206: 2022 | Q206: 2023 | R206: 2024
B207: Operating Cash Flow | G207: =G151 -> -4996.908224 | H207: =H151 -> 16662.90376 | I207: 278825.6437 | J207: 425786.3445 | K207: 478920.9879 | L207: 496496.8375 | M207: 515426.1292 | N207: 535769.7679 | O207: 580957.533 | P207: 8526851.865 | Q207: 0 | R207: 0
B208: Use of Revolver | G208: =G165 -> 246060.6842 | H208: =H165 -> 211654.0819 | I208: 0 | J208: 0 | K208: 0 | L208: 0 | M208: 0 | N208: 0 | O208: 0 | P208: 0 | Q208: 0 | R208: 0
B209: Repayment of Existing and Amortising Debt | G209: =(G152+G153+G154)*G$203 -> 167003.2 | H209: =(H152+H153+H154)*H$203 -> 147003.2 | I209: 131003.2 | J209: 118203.2 | K209: 107963.2 | L209: 32768 | M209: 26214.4 | N209: 20971.52 | O209: 16777.216 | P209: 67108.864 | Q209: 0 | R209: 0
B210: Interest on Exising and Amortising Debt | G210: =SUM(G155:G158)*G$203 -> 74060.576 | H210: =SUM(H155:H158)*H$203 -> 81313.78563 | I210: 87394.63214 | J210: 79086.9745 | K210: 61996.35715 | L210: 42188.85445 | M210: 17824.50739 | N210: 3774.8736 | O210: 3019.89888 | P210: 1342.17728 | Q210: 0 | R210: 0
B211: Repayment of Revolver | G211: =G161*G$203 -> 0 | H211: =H161*H$203 -> 0 | I211: 60427.81159 | J211: 228496.17 | K211: 168790.7845 | L211: 0 | M211: 0 | N211: 0 | O211: 0 | P211: 0 | Q211: 0 | R211: 0
B212: Repayment of Bullet Debt | G212: =(G159+G163)*G$203 -> 0 | H212: =(H159+H163)*H$203 -> 0 | I212: 0 | J212: 0 | K212: 140170.6463 | L212: 421539.983 | M212: 238289.3707 | N212: 0 | O212: 0 | P212: 0 | Q212: 0 | R212: 0
B213: Repayment of Sub Debt | G213: =(G169+G170)*G$203 -> 0 | H213: =(H169+H170)*H$203 -> 0 | I213: 0 | J213: 0 | K213: 0 | L213: 0 | M213: 233097.8511 | N213: 511023.3743 | O213: 561160.4181 | P213: 416282.8795 | Q213: 0 | R213: 0
B214: Dividends | G214: =G172 -> 0 | H214: =H172 -> 0 | I214: 0 | J214: 0 | K214: 0 | L214: 0 | M214: 0 | N214: 0 | O214: 0 | P214: 8042117.944 | Q214: 0 | R214: 0
B216: Test | G216: =G207+G208-G209-G210-G211-G212-G213-G214 -> 0 | H216: =H207+H208-H209-H210-H211-H212-H213-H214 -> -1.455191523e-11 | I216: -2.910383046e-11 | J216: 0 | K216: 5.820766091e-11 | L216: 0 | M216: -5.820766091e-11 | N216: 0 | O216: 0 | P216: 0 | Q216: 0 | R216: 0
B218: Operating Cash Flow + Revolver | G218: =G207+G208 -> 241063.776 | H218: =H207+H208 -> 228316.9856 | I218: 278825.6437 | J218: 425786.3445 | K218: 478920.9879 | L218: 496496.8375 | M218: 515426.1292 | N218: 535769.7679 | O218: 580957.533 | P218: 8526851.865 | Q218: 0 | R218: 0
H222: Equity IRR
H223: =F174 -> 0.1844062865
G224: 1 | H224: -0.5466127254
G225: 2 | H225: -0.3083995737
G226: 3 | H226: 0.2333963692
G227: 4 | H227: 0.2603228748
G228: 5 | H228: 0.2558755338
G229: 6 | H229: 0.2318533599
G230: 7 | H230: 0.2145325601
G231: 8 | H231: 0.2015109599
G232: 9 | H232: 0.1984345138
G233: 10 | H233: 0.1844062865

Sheet Audit
B4: Test of current assets | C4: ='Corporate Model'!H391 -> TRUE
B5: Test of current liabilities | C5: ='Corporate Model'!H392 -> TRUE
B6: income Statement Test | C6: ='Corporate Model'!H613 -> TRUE
B7: Balance Sheet Test | C7: ='Corporate Model'!H606 -> TRUE

Sheet PE ratio
IK1: 0
K2: M/B ratio | L2: P/E ratio
D3: RoE | E3: 0.12 | G3: P/E ratio | H3: =F29 -> 20.00005076 | K3: =H4 -> 2.400006091 | L3: =H3 -> 20.00005076
D4: Long-term ROE | E4: 0.1 | G4: M/B ratio | H4: =F28/Book_value_per_share -> 2.400006091 | J4: 0.15 | K4: 2.512542499 | L4: 16.75028333
D5: Short Term COE | E5: 0.05650852151 | G5: Actual P/e Ratio | H5: =H8/10 -> 20 | J5: 0.12 | K5: 2.400006091 | L5: 20.00005076
D6: Long term COE | E6: =CoE -> 0.05650852151 | G6: Difference | H6: =H3-H5 -> 5.075835502e-05 | J6: 0.1 | K6: 2.324981819 | L6: 23.24981819
D7: Short-term Growth Rate | E7: 0.05 | J7: 0.08 | K7: 2.249957547 | L7: 28.12446934
D8: Long term growth rate | E8: 0.02 | H8: 200
D9: Long term period | E9: 5
D10: Dividend payout ratio | E10: =1-Growth_rate/RoE -> 0.5833333333
D11: Book value per share | E11: 6.2
D13: Period | F13: 1 | G13: =F13+1 -> 2 | H13: =G13+1 -> 3 | I13: 4 | J13: 5 | K13: 6 | L13: 7 | M13: 8 | N13: 9 | O13: 10 | P13: 11 | Q13: 12 | R13: 13 | S13: 14 | T13: 15 | U13: 16 | V13: 17 | W13: 18 | X13: 19 | Y13: 20 | Z13: 21 | AA13: 22 | AB13: 23 | AC13: 24 | AD13: 25 | AE13: 26 | AF13: 27 | AG13: 28 | AH13: 29 | AI13: 30 | AJ13: 31 | AK13: 32 | AL13: 33 | AM13: 34 | AN13: 35 | AO13: 36 | AP13: 37 | AQ13: 38 | AR13: 39 | AS13: 40 | AT13: 41 | AU13: 42 | AV13: 43 | AW13: 44 | AX13: 45 | AY13: 46 | AZ13: 47 | BA13: 48 | BB13: 49 | BC13: 50 | BD13: 51 | BE13: 52 | BF13: 53 | BG13: 54 | BH13: 55 | BI13: 56 | BJ13: 57 | BK13: 58 | BL13: 59 | BM13: 60 | BN13: 61 | BO13: 62 | BP13: 63 | BQ13: 64 | BR13: 65 | BS13: 66 | BT13: =BS13+1 -> 67 | BU13: 68 | BV13: 69 | BW13: 70 | BX13: 71 | BY13: 72 | BZ13: 73 | CA13: 74 | CB13: 75 | CC13: 76 | CD13: 77 | CE13: 78 | CF13: 79 | CG13: 80 | CH13: 81 | CI13: 82 | CJ13: 83 | CK13: 84 | CL13: 85 | CM13: 86 | CN13: 87 | CO13: 88 | CP13: 89 | CQ13: 90 | CR13: 91 | CS13: 92 | CT13: 93 | CU13: 94 | CV13: 95 | CW13: 96 | CX13: 97 | CY13: 98 | CZ13: 99 | DA13: 100 | DB13: 101 | DC13: 102 | DD13: 103 | DE13: 104 | DF13: 105 | DG13: 106 | DH13: 107 | DI13: 108 | DJ13: 109 | DK13: 110 | DL13: 111 | DM13: 112 | DN13: 113 | DO13: 114 | DP13: 115 | DQ13: 116 | DR13: 117 | DS13: 118 | DT13: 119 | DU13: 120 | DV13: 121 | DW13: 122 | DX13: 123 | DY13: 124 | DZ13: 125 | EA13: 126 | EB13: 127 | EC13: 128 | ED13: 129 | EE13: 130 | EF13: =EE13+1 -> 131 | EG13: 132 | EH13: 133 | EI13: 134 | EJ13: 135 | EK13: 136 | EL13: 137 | EM13: 138 | EN13: 139 | EO13: 140 | EP13: 141 | EQ13: 142 | ER13: 143 | ES13: 144 | ET13: 145 | EU13: 146 | EV13: 147 | EW13: 148 | EX13: 149 | EY13: 150 | EZ13: 151 | FA13: 152 | FB13: 153 | FC13: 154 | FD13: 155 | FE13: 156 | FF13: 157 | FG13: 158 | FH13: 159 | FI13: 160 | FJ13: 161 | FK13: 162 | FL13: 163 | FM13: 164 | FN13: 165 | FO13: 166 | FP13: 167 | FQ13: 168 | FR13: 169 | FS13: 170 | FT13: 171 | FU13: 172 | FV13: 173 | FW13: 174 | FX13: 175 | FY13: 176 | FZ13: 177 | GA13: 178 | GB13: 179 | GC13: 180 | GD13: 181 | GE13: 182 | GF13: 183 | GG13: 184 | GH13: 185 | GI13: 186 | GJ13: 187 | GK13: 188 | GL13: 189 | GM13: 190 | GN13: 191 | GO13: 192 | GP13: 193 | GQ13: 194 | GR13: =GQ13+1 -> 195 | GS13: 196 | GT13: 197 | GU13: 198 | GV13: 199 | GW13: 200 | GX13: 201 | GY13: 202 | GZ13: 203 | HA13: 204 | HB13: 205 | HC13: 206 | HD13: 207 | HE13: 208 | HF13: 209 | HG13: 210 | HH13: 211 | HI13: 212 | HJ13: 213 | HK13: 214 | HL13: 215 | HM13: 216 | HN13: 217 | HO13: 218 | HP13: 219 | HQ13: 220 | HR13: 221 | HS13: 222 | HT13: 223 | HU13: 224 | HV13: 225 | HW13: 226 | HX13: 227 | HY13: 228 | HZ13: 229 | IA13: 230 | IB13: 231 | IC13: 232 | ID13: 233 | IE13: 234 | IF13: 235 | IG13: 236 | IH13: 237 | II13: 238 | IJ13: 239 | IK13: 240 | IL13: 241 | IM13: 242 | IN13: 243 | IO13: 244 | IP13: 245 | IQ13: 246 | IR13: 247 | IS13: 248 | IT13: 249 | IU13: 250 | IV13: 251 | IW13: 252
D14: Short term period | F14: =F13<Long_term_period -> TRUE | G14: TRUE | H14: TRUE | I14: TRUE | J14: FALSE | K14: FALSE | L14: FALSE | M14: FALSE | N14: FALSE | O14: FALSE | P14: FALSE | Q14: FALSE | R14: FALSE | S14: FALSE | T14: FALSE | U14: FALSE | V14: FALSE | W14: FALSE | X14: FALSE | Y14: FALSE | Z14: FALSE | AA14: FALSE | AB14: FALSE | AC14: FALSE | AD14: FALSE | AE14: FALSE | AF14: FALSE | AG14: FALSE | AH14: FALSE | AI14: FALSE | AJ14: FALSE | AK14: FALSE | AL14: FALSE | AM14: FALSE | AN14: FALSE | AO14: FALSE | AP14: FALSE | AQ14: FALSE | AR14: FALSE | AS14: FALSE | AT14: FALSE | AU14: FALSE | AV14: FALSE | AW14: FALSE | AX14: FALSE | AY14: FALSE | AZ14: FALSE | BA14: FALSE | BB14: FALSE | BC14: FALSE | BD14: FALSE | BE14: FALSE | BF14: FALSE | BG14: FALSE | BH14: FALSE | BI14: FALSE | BJ14: FALSE | BK14: FALSE | BL14: FALSE | BM14: FALSE | BN14: FALSE | BO14: FALSE | BP14: FALSE | BQ14: FALSE | BR14: =BR13<Long_term_period -> FALSE | BS14: FALSE | BT14: FALSE | BU14: FALSE | BV14: FALSE | BW14: FALSE | BX14: FALSE | BY14: FALSE | BZ14: FALSE | CA14: FALSE | CB14: FALSE | CC14: FALSE | CD14: FALSE | CE14: FALSE | CF14: FALSE | CG14: FALSE | CH14: FALSE | CI14: FALSE | CJ14: FALSE | CK14: FALSE | CL14: FALSE | CM14: FALSE | CN14: FALSE | CO14: FALSE | CP14: FALSE | CQ14: FALSE | CR14: FALSE | CS14: FALSE | CT14: FALSE | CU14: FALSE | CV14: FALSE | CW14: FALSE | CX14: FALSE | CY14: FALSE | CZ14: FALSE | DA14: FALSE | DB14: FALSE | DC14: FALSE | DD14: FALSE | DE14: FALSE | DF14: FALSE | DG14: FALSE | DH14: FALSE | DI14: FALSE | DJ14: FALSE | DK14: FALSE | DL14: FALSE | DM14: FALSE | DN14: FALSE | DO14: FALSE | DP14: FALSE | DQ14: FALSE | DR14: FALSE | DS14: FALSE | DT14: FALSE | DU14: FALSE | DV14: FALSE | DW14: FALSE | DX14: FALSE | DY14: FALSE | DZ14: FALSE | EA14: FALSE | EB14: FALSE | EC14: FALSE | ED14: =ED13<Long_term_period -> FALSE | EE14: FALSE | EF14: FALSE | EG14: FALSE | EH14: FALSE | EI14: FALSE | EJ14: FALSE | EK14: FALSE | EL14: FALSE | EM14: FALSE | EN14: FALSE | EO14: FALSE | EP14: FALSE | EQ14: FALSE | ER14: FALSE | ES14: FALSE | ET14: FALSE | EU14: FALSE | EV14: FALSE | EW14: FALSE | EX14: FALSE | EY14: FALSE | EZ14: FALSE | FA14: FALSE | FB14: FALSE | FC14: FALSE | FD14: FALSE | FE14: FALSE | FF14: FALSE | FG14: FALSE | FH14: FALSE | FI14: FALSE | FJ14: FALSE | FK14: FALSE | FL14: FALSE | FM14: FALSE | FN14: FALSE | FO14: FALSE | FP14: FALSE | FQ14: FALSE | FR14: FALSE | FS14: FALSE | FT14: FALSE | FU14: FALSE | FV14: FALSE | FW14: FALSE | FX14: FALSE | FY14: FALSE | FZ14: FALSE | GA14: FALSE | GB14: FALSE | GC14: FALSE | GD14: FALSE | GE14: FALSE | GF14: FALSE | GG14: FALSE | GH14: FALSE | GI14: FALSE | GJ14: FALSE | GK14: FALSE | GL14: FALSE | GM14: FALSE | GN14: FALSE | GO14: FALSE | GP14: =GP13<Long_term_period -> FALSE | GQ14: FALSE | GR14: FALSE | GS14: FALSE | GT14: FALSE | GU14: FALSE | GV14: FALSE | GW14: FALSE | GX14: FALSE | GY14: FALSE | GZ14: FALSE | HA14: FALSE | HB14: FALSE | HC14: FALSE | HD14: FALSE | HE14: FALSE | HF14: FALSE | HG14: FALSE | HH14: FALSE | HI14: FALSE | HJ14: FALSE | HK14: FALSE | HL14: FALSE | HM14: FALSE | HN14: FALSE | HO14: FALSE | HP14: FALSE | HQ14: FALSE | HR14: FALSE | HS14: FALSE | HT14: FALSE | HU14: FALSE | HV14: FALSE | HW14: FALSE | HX14: FALSE | HY14: FALSE | HZ14: FALSE | IA14: FALSE | IB14: FALSE | IC14: FALSE | ID14: FALSE | IE14: FALSE | IF14: FALSE | IG14: FALSE | IH14: FALSE | II14: FALSE | IJ14: FALSE | IK14: FALSE | IL14: FALSE | IM14: FALSE | IN14: FALSE | IO14: FALSE | IP14: FALSE | IQ14: FALSE | IR14: FALSE | IS14: FALSE | IT14: FALSE | IU14: FALSE | IV14: FALSE | IW14: FALSE
D15: Long term period | F15: =NOT(F14) -> FALSE | G15: =NOT(G14) -> FALSE | H15: FALSE | I15: FALSE | J15: TRUE | K15: TRUE | L15: TRUE | M15: TRUE | N15: TRUE | O15: TRUE | P15: TRUE | Q15: TRUE | R15: TRUE | S15: TRUE | T15: TRUE | U15: TRUE | V15: TRUE | W15: TRUE | X15: TRUE | Y15: TRUE | Z15: TRUE | AA15: TRUE | AB15: TRUE | AC15: TRUE | AD15: TRUE | AE15: TRUE | AF15: TRUE | AG15: TRUE | AH15: TRUE | AI15: TRUE | AJ15: TRUE | AK15: TRUE | AL15: TRUE | AM15: TRUE | AN15: TRUE | AO15: TRUE | AP15: TRUE | AQ15: TRUE | AR15: TRUE | AS15: TRUE | AT15: TRUE | AU15: TRUE | AV15: TRUE | AW15: TRUE | AX15: TRUE | AY15: TRUE | AZ15: TRUE | BA15: TRUE | BB15: TRUE | BC15: TRUE | BD15: TRUE | BE15: TRUE | BF15: TRUE | BG15: TRUE | BH15: TRUE | BI15: TRUE | BJ15: TRUE | BK15: TRUE | BL15: TRUE | BM15: TRUE | BN15: TRUE | BO15: TRUE | BP15: TRUE | BQ15: TRUE | BR15: TRUE | BS15: =NOT(BS14) -> TRUE | BT15: TRUE | BU15: TRUE | BV15: TRUE | BW15: TRUE | BX15: TRUE | BY15: TRUE | BZ15: TRUE | CA15: TRUE | CB15: TRUE | CC15: TRUE | CD15: TRUE | CE15: TRUE | CF15: TRUE | CG15: TRUE | CH15: TRUE | CI15: TRUE | CJ15: TRUE | CK15: TRUE | CL15: TRUE | CM15: TRUE | CN15: TRUE | CO15: TRUE | CP15: TRUE | CQ15: TRUE | CR15: TRUE | CS15: TRUE | CT15: TRUE | CU15: TRUE | CV15: TRUE | CW15: TRUE | CX15: TRUE | CY15: TRUE | CZ15: TRUE | DA15: TRUE | DB15: TRUE | DC15: TRUE | DD15: TRUE | DE15: TRUE | DF15: TRUE | DG15: TRUE | DH15: TRUE | DI15: TRUE | DJ15: TRUE | DK15: TRUE | DL15: TRUE | DM15: TRUE | DN15: TRUE | DO15: TRUE | DP15: TRUE | DQ15: TRUE | DR15: TRUE | DS15: TRUE | DT15: TRUE | DU15: TRUE | DV15: TRUE | DW15: TRUE | DX15: TRUE | DY15: TRUE | DZ15: TRUE | EA15: TRUE | EB15: TRUE | EC15: TRUE | ED15: TRUE | EE15: =NOT(EE14) -> TRUE | EF15: TRUE | EG15: TRUE | EH15: TRUE | EI15: TRUE | EJ15: TRUE | EK15: TRUE | EL15: TRUE | EM15: TRUE | EN15: TRUE | EO15: TRUE | EP15: TRUE | EQ15: TRUE | ER15: TRUE | ES15: TRUE | ET15: TRUE | EU15: TRUE | EV15: TRUE | EW15: TRUE | EX15: TRUE | EY15: TRUE | EZ15: TRUE | FA15: TRUE | FB15: TRUE | FC15: TRUE | FD15: TRUE | FE15: TRUE | FF15: TRUE | FG15: TRUE | FH15: TRUE | FI15: TRUE | FJ15: TRUE | FK15: TRUE | FL15: TRUE | FM15: TRUE | FN15: TRUE | FO15: TRUE | FP15: TRUE | FQ15: TRUE | FR15: TRUE | FS15: TRUE | FT15: TRUE | FU15: TRUE | FV15: TRUE | FW15: TRUE | FX15: TRUE | FY15: TRUE | FZ15: TRUE | GA15: TRUE | GB15: TRUE | GC15: TRUE | GD15: TRUE | GE15: TRUE | GF15: TRUE | GG15: TRUE | GH15: TRUE | GI15: TRUE | GJ15: TRUE | GK15: TRUE | GL15: TRUE | GM15: TRUE | GN15: TRUE | GO15: TRUE | GP15: TRUE | GQ15: =NOT(GQ14) -> TRUE | GR15: TRUE | GS15: TRUE | GT15: TRUE | GU15: TRUE | GV15: TRUE | GW15: TRUE | GX15: TRUE | GY15: TRUE | GZ15: TRUE | HA15: TRUE | HB15: TRUE | HC15: TRUE | HD15: TRUE | HE15: TRUE | HF15: TRUE | HG15: TRUE | HH15: TRUE | HI15: TRUE | HJ15: TRUE | HK15: TRUE | HL15: TRUE | HM15: TRUE | HN15: TRUE | HO15: TRUE | HP15: TRUE | HQ15: TRUE | HR15: TRUE | HS15: TRUE | HT15: TRUE | HU15: TRUE | HV15: TRUE | HW15: TRUE | HX15: TRUE | HY15: TRUE | HZ15: TRUE | IA15: TRUE | IB15: TRUE | IC15: TRUE | ID15: TRUE | IE15: TRUE | IF15: TRUE | IG15: TRUE | IH15: TRUE | II15: TRUE | IJ15: TRUE | IK15: TRUE | IL15: TRUE | IM15: TRUE | IN15: TRUE | IO15: TRUE | IP15: TRUE | IQ15: TRUE | IR15: TRUE | IS15: TRUE | IT15: TRUE | IU15: TRUE | IV15: TRUE | IW15: TRUE
D17: ROE | F17: =RoE*F14+Long_term_RoE*F15 -> 0.12 | G17: 0.12 | H17: 0.12 | I17: 0.12 | J17: 0.1 | K17: 0.1 | L17: 0.1 | M17: 0.1 | N17: 0.1 | O17: 0.1 | P17: 0.1 | Q17: 0.1 | R17: 0.1 | S17: 0.1 | T17: 0.1 | U17: 0.1 | V17: 0.1 | W17: 0.1 | X17: 0.1 | Y17: 0.1 | Z17: 0.1 | AA17: 0.1 | AB17: 0.1 | AC17: 0.1 | AD17: 0.1 | AE17: 0.1 | AF17: 0.1 | AG17: 0.1 | AH17: 0.1 | AI17: 0.1 | AJ17: 0.1 | AK17: 0.1 | AL17: 0.1 | AM17: 0.1 | AN17: 0.1 | AO17: 0.1 | AP17: 0.1 | AQ17: 0.1 | AR17: 0.1 | AS17: 0.1 | AT17: 0.1 | AU17: 0.1 | AV17: 0.1 | AW17: 0.1 | AX17: 0.1 | AY17: 0.1 | AZ17: 0.1 | BA17: 0.1 | BB17: 0.1 | BC17: 0.1 | BD17: 0.1 | BE17: 0.1 | BF17: 0.1 | BG17: 0.1 | BH17: 0.1 | BI17: 0.1 | BJ17: 0.1 | BK17: 0.1 | BL17: 0.1 | BM17: 0.1 | BN17: 0.1 | BO17: 0.1 | BP17: 0.1 | BQ17: 0.1 | BR17: =RoE*BR14+Long_term_RoE*BR15 -> 0.1 | BS17: 0.1 | BT17: 0.1 | BU17: 0.1 | BV17: 0.1 | BW17: 0.1 | BX17: 0.1 | BY17: 0.1 | BZ17: 0.1 | CA17: 0.1 | CB17: 0.1 | CC17: 0.1 | CD17: 0.1 | CE17: 0.1 | CF17: 0.1 | CG17: 0.1 | CH17: 0.1 | CI17: 0.1 | CJ17: 0.1 | CK17: 0.1 | CL17: 0.1 | CM17: 0.1 | CN17: 0.1 | CO17: 0.1 | CP17: 0.1 | CQ17: 0.1 | CR17: 0.1 | CS17: 0.1 | CT17: 0.1 | CU17: 0.1 | CV17: 0.1 | CW17: 0.1 | CX17: 0.1 | CY17: 0.1 | CZ17: 0.1 | DA17: 0.1 | DB17: 0.1 | DC17: 0.1 | DD17: 0.1 | DE17: 0.1 | DF17: 0.1 | DG17: 0.1 | DH17: 0.1 | DI17: 0.1 | DJ17: 0.1 | DK17: 0.1 | DL17: 0.1 | DM17: 0.1 | DN17: 0.1 | DO17: 0.1 | DP17: 0.1 | DQ17: 0.1 | DR17: 0.1 | DS17: 0.1 | DT17: 0.1 | DU17: 0.1 | DV17: 0.1 | DW17: 0.1 | DX17: 0.1 | DY17: 0.1 | DZ17: 0.1 | EA17: 0.1 | EB17: 0.1 | EC17: 0.1 | ED17: =RoE*ED14+Long_term_RoE*ED15 -> 0.1 | EE17: 0.1 | EF17: 0.1 | EG17: 0.1 | EH17: 0.1 | EI17: 0.1 | EJ17: 0.1 | EK17: 0.1 | EL17: 0.1 | EM17: 0.1 | EN17: 0.1 | EO17: 0.1 | EP17: 0.1 | EQ17: 0.1 | ER17: 0.1 | ES17: 0.1 | ET17: 0.1 | EU17: 0.1 | EV17: 0.1 | EW17: 0.1 | EX17: 0.1 | EY17: 0.1 | EZ17: 0.1 | FA17: 0.1 | FB17: 0.1 | FC17: 0.1 | FD17: 0.1 | FE17: 0.1 | FF17: 0.1 | FG17: 0.1 | FH17: 0.1 | FI17: 0.1 | FJ17: 0.1 | FK17: 0.1 | FL17: 0.1 | FM17: 0.1 | FN17: 0.1 | FO17: 0.1 | FP17: 0.1 | FQ17: 0.1 | FR17: 0.1 | FS17: 0.1 | FT17: 0.1 | FU17: 0.1 | FV17: 0.1 | FW17: 0.1 | FX17: 0.1 | FY17: 0.1 | FZ17: 0.1 | GA17: 0.1 | GB17: 0.1 | GC17: 0.1 | GD17: 0.1 | GE17: 0.1 | GF17: 0.1 | GG17: 0.1 | GH17: 0.1 | GI17: 0.1 | GJ17: 0.1 | GK17: 0.1 | GL17: 0.1 | GM17: 0.1 | GN17: 0.1 | GO17: 0.1 | GP17: =RoE*GP14+Long_term_RoE*GP15 -> 0.1 | GQ17: 0.1 | GR17: 0.1 | GS17: 0.1 | GT17: 0.1 | GU17: 0.1 | GV17: 0.1 | GW17: 0.1 | GX17: 0.1 | GY17: 0.1 | GZ17: 0.1 | HA17: 0.1 | HB17: 0.1 | HC17: 0.1 | HD17: 0.1 | HE17: 0.1 | HF17: 0.1 | HG17: 0.1 | HH17: 0.1 | HI17: 0.1 | HJ17: 0.1 | HK17: 0.1 | HL17: 0.1 | HM17: 0.1 | HN17: 0.1 | HO17: 0.1 | HP17: 0.1 | HQ17: 0.1 | HR17: 0.1 | HS17: 0.1 | HT17: 0.1 | HU17: 0.1 | HV17: 0.1 | HW17: 0.1 | HX17: 0.1 | HY17: 0.1 | HZ17: 0.1 | IA17: 0.1 | IB17: 0.1 | IC17: 0.1 | ID17: 0.1 | IE17: 0.1 | IF17: 0.1 | IG17: 0.1 | IH17: 0.1 | II17: 0.1 | IJ17: 0.1 | IK17: 0.1 | IL17: 0.1 | IM17: 0.1 | IN17: 0.1 | IO17: 0.1 | IP17: 0.1 | IQ17: 0.1 | IR17: 0.1 | IS17: 0.1 | IT17: 0.1 | IU17: 0.1 | IV17: 0.1 | IW17: 0.1
D18: Growth rate | F18: =F14*Growth_rate+Long_term_growth_rate*F15 -> 0.05 | G18: 0.05 | H18: 0.05 | I18: 0.05 | J18: 0.02 | K18: 0.02 | L18: 0.02 | M18: 0.02 | N18: 0.02 | O18: 0.02 | P18: 0.02 | Q18: 0.02 | R18: 0.02 | S18: 0.02 | T18: 0.02 | U18: 0.02 | V18: 0.02 | W18: 0.02 | X18: 0.02 | Y18: 0.02 | Z18: 0.02 | AA18: 0.02 | AB18: 0.02 | AC18: 0.02 | AD18: 0.02 | AE18: 0.02 | AF18: 0.02 | AG18: 0.02 | AH18: 0.02 | AI18: 0.02 | AJ18: 0.02 | AK18: 0.02 | AL18: 0.02 | AM18: 0.02 | AN18: 0.02 | AO18: 0.02 | AP18: 0.02 | AQ18: 0.02 | AR18: 0.02 | AS18: 0.02 | AT18: 0.02 | AU18: 0.02 | AV18: 0.02 | AW18: 0.02 | AX18: 0.02 | AY18: 0.02 | AZ18: 0.02 | BA18: 0.02 | BB18: 0.02 | BC18: 0.02 | BD18: 0.02 | BE18: 0.02 | BF18: 0.02 | BG18: 0.02 | BH18: 0.02 | BI18: 0.02 | BJ18: 0.02 | BK18: 0.02 | BL18: 0.02 | BM18: 0.02 | BN18: 0.02 | BO18: 0.02 | BP18: 0.02 | BQ18: 0.02 | BR18: =BR14*Growth_rate+Long_term_growth_rate*BR15 -> 0.02 | BS18: 0.02 | BT18: 0.02 | BU18: 0.02 | BV18: 0.02 | BW18: 0.02 | BX18: 0.02 | BY18: 0.02 | BZ18: 0.02 | CA18: 0.02 | CB18: 0.02 | CC18: 0.02 | CD18: 0.02 | CE18: 0.02 | CF18: 0.02 | CG18: 0.02 | CH18: 0.02 | CI18: 0.02 | CJ18: 0.02 | CK18: 0.02 | CL18: 0.02 | CM18: 0.02 | CN18: 0.02 | CO18: 0.02 | CP18: 0.02 | CQ18: 0.02 | CR18: 0.02 | CS18: 0.02 | CT18: 0.02 | CU18: 0.02 | CV18: 0.02 | CW18: 0.02 | CX18: 0.02 | CY18: 0.02 | CZ18: 0.02 | DA18: 0.02 | DB18: 0.02 | DC18: 0.02 | DD18: 0.02 | DE18: 0.02 | DF18: 0.02 | DG18: 0.02 | DH18: 0.02 | DI18: 0.02 | DJ18: 0.02 | DK18: 0.02 | DL18: 0.02 | DM18: 0.02 | DN18: 0.02 | DO18: 0.02 | DP18: 0.02 | DQ18: 0.02 | DR18: 0.02 | DS18: 0.02 | DT18: 0.02 | DU18: 0.02 | DV18: 0.02 | DW18: 0.02 | DX18: 0.02 | DY18: 0.02 | DZ18: 0.02 | EA18: 0.02 | EB18: 0.02 | EC18: 0.02 | ED18: =ED14*Growth_rate+Long_term_growth_rate*ED15 -> 0.02 | EE18: 0.02 | EF18: 0.02 | EG18: 0.02 | EH18: 0.02 | EI18: 0.02 | EJ18: 0.02 | EK18: 0.02 | EL18: 0.02 | EM18: 0.02 | EN18: 0.02 | EO18: 0.02 | EP18: 0.02 | EQ18: 0.02 | ER18: 0.02 | ES18: 0.02 | ET18: 0.02 | EU18: 0.02 | EV18: 0.02 | EW18: 0.02 | EX18: 0.02 | EY18: 0.02 | EZ18: 0.02 | FA18: 0.02 | FB18: 0.02 | FC18: 0.02 | FD18: 0.02 | FE18: 0.02 | FF18: 0.02 | FG18: 0.02 | FH18: 0.02 | FI18: 0.02 | FJ18: 0.02 | FK18: 0.02 | FL18: 0.02 | FM18: 0.02 | FN18: 0.02 | FO18: 0.02 | FP18: 0.02 | FQ18: 0.02 | FR18: 0.02 | FS18: 0.02 | FT18: 0.02 | FU18: 0.02 | FV18: 0.02 | FW18: 0.02 | FX18: 0.02 | FY18: 0.02 | FZ18: 0.02 | GA18: 0.02 | GB18: 0.02 | GC18: 0.02 | GD18: 0.02 | GE18: 0.02 | GF18: 0.02 | GG18: 0.02 | GH18: 0.02 | GI18: 0.02 | GJ18: 0.02 | GK18: 0.02 | GL18: 0.02 | GM18: 0.02 | GN18: 0.02 | GO18: 0.02 | GP18: =GP14*Growth_rate+Long_term_growth_rate*GP15 -> 0.02 | GQ18: 0.02 | GR18: 0.02 | GS18: 0.02 | GT18: 0.02 | GU18: 0.02 | GV18: 0.02 | GW18: 0.02 | GX18: 0.02 | GY18: 0.02 | GZ18: 0.02 | HA18: 0.02 | HB18: 0.02 | HC18: 0.02 | HD18: 0.02 | HE18: 0.02 | HF18: 0.02 | HG18: 0.02 | HH18: 0.02 | HI18: 0.02 | HJ18: 0.02 | HK18: 0.02 | HL18: 0.02 | HM18: 0.02 | HN18: 0.02 | HO18: 0.02 | HP18: 0.02 | HQ18: 0.02 | HR18: 0.02 | HS18: 0.02 | HT18: 0.02 | HU18: 0.02 | HV18: 0.02 | HW18: 0.02 | HX18: 0.02 | HY18: 0.02 | HZ18: 0.02 | IA18: 0.02 | IB18: 0.02 | IC18: 0.02 | ID18: 0.02 | IE18: 0.02 | IF18: 0.02 | IG18: 0.02 | IH18: 0.02 | II18: 0.02 | IJ18: 0.02 | IK18: 0.02 | IL18: 0.02 | IM18: 0.02 | IN18: 0.02 | IO18: 0.02 | IP18: 0.02 | IQ18: 0.02 | IR18: 0.02 | IS18: 0.02 | IT18: 0.02 | IU18: 0.02 | IV18: 0.02 | IW18: 0.02
D19: Dividend payout ratio | F19: =1-F18/F17 -> 0.5833333333 | G19: =1-G18/G17 -> 0.5833333333 | H19: 0.5833333333 | I19: 0.5833333333 | J19: 0.8 | K19: 0.8 | L19: =1-L18/L17 -> 0.8 | M19: 0.8 | N19: 0.8 | O19: 0.8 | P19: 0.8 | Q19: 0.8 | R19: 0.8 | S19: 0.8 | T19: 0.8 | U19: 0.8 | V19: 0.8 | W19: 0.8 | X19: 0.8 | Y19: 0.8 | Z19: 0.8 | AA19: 0.8 | AB19: 0.8 | AC19: 0.8 | AD19: 0.8 | AE19: 0.8 | AF19: 0.8 | AG19: 0.8 | AH19: 0.8 | AI19: 0.8 | AJ19: 0.8 | AK19: 0.8 | AL19: 0.8 | AM19: 0.8 | AN19: 0.8 | AO19: 0.8 | AP19: 0.8 | AQ19: 0.8 | AR19: 0.8 | AS19: 0.8 | AT19: 0.8 | AU19: 0.8 | AV19: 0.8 | AW19: 0.8 | AX19: 0.8 | AY19: 0.8 | AZ19: 0.8 | BA19: 0.8 | BB19: 0.8 | BC19: 0.8 | BD19: 0.8 | BE19: 0.8 | BF19: 0.8 | BG19: 0.8 | BH19: 0.8 | BI19: 0.8 | BJ19: 0.8 | BK19: 0.8 | BL19: 0.8 | BM19: 0.8 | BN19: 0.8 | BO19: 0.8 | BP19: 0.8 | BQ19: 0.8 | BR19: 0.8 | BS19: =1-BS18/BS17 -> 0.8 | BT19: 0.8 | BU19: 0.8 | BV19: 0.8 | BW19: 0.8 | BX19: 0.8 | BY19: 0.8 | BZ19: 0.8 | CA19: 0.8 | CB19: 0.8 | CC19: 0.8 | CD19: 0.8 | CE19: 0.8 | CF19: 0.8 | CG19: 0.8 | CH19: 0.8 | CI19: 0.8 | CJ19: 0.8 | CK19: 0.8 | CL19: 0.8 | CM19: 0.8 | CN19: 0.8 | CO19: 0.8 | CP19: 0.8 | CQ19: 0.8 | CR19: 0.8 | CS19: 0.8 | CT19: 0.8 | CU19: 0.8 | CV19: 0.8 | CW19: 0.8 | CX19: 0.8 | CY19: 0.8 | CZ19: 0.8 | DA19: 0.8 | DB19: 0.8 | DC19: 0.8 | DD19: 0.8 | DE19: 0.8 | DF19: 0.8 | DG19: 0.8 | DH19: 0.8 | DI19: 0.8 | DJ19: 0.8 | DK19: 0.8 | DL19: 0.8 | DM19: 0.8 | DN19: 0.8 | DO19: 0.8 | DP19: 0.8 | DQ19: 0.8 | DR19: 0.8 | DS19: 0.8 | DT19: 0.8 | DU19: 0.8 | DV19: 0.8 | DW19: 0.8 | DX19: 0.8 | DY19: 0.8 | DZ19: 0.8 | EA19: 0.8 | EB19: 0.8 | EC19: 0.8 | ED19: 0.8 | EE19: =1-EE18/EE17 -> 0.8 | EF19: 0.8 | EG19: 0.8 | EH19: 0.8 | EI19: 0.8 | EJ19: 0.8 | EK19: 0.8 | EL19: 0.8 | EM19: 0.8 | EN19: 0.8 | EO19: 0.8 | EP19: 0.8 | EQ19: 0.8 | ER19: 0.8 | ES19: 0.8 | ET19: 0.8 | EU19: 0.8 | EV19: 0.8 | EW19: 0.8 | EX19: 0.8 | EY19: 0.8 | EZ19: 0.8 | FA19: 0.8 | FB19: 0.8 | FC19: 0.8 | FD19: 0.8 | FE19: 0.8 | FF19: 0.8 | FG19: 0.8 | FH19: 0.8 | FI19: 0.8 | FJ19: 0.8 | FK19: 0.8 | FL19: 0.8 | FM19: 0.8 | FN19: 0.8 | FO19: 0.8 | FP19: 0.8 | FQ19: 0.8 | FR19: 0.8 | FS19: 0.8 | FT19: 0.8 | FU19: 0.8 | FV19: 0.8 | FW19: 0.8 | FX19: 0.8 | FY19: 0.8 | FZ19: 0.8 | GA19: 0.8 | GB19: 0.8 | GC19: 0.8 | GD19: 0.8 | GE19: 0.8 | GF19: 0.8 | GG19: 0.8 | GH19: 0.8 | GI19: 0.8 | GJ19: 0.8 | GK19: 0.8 | GL19: 0.8 | GM19: 0.8 | GN19: 0.8 | GO19: 0.8 | GP19: 0.8 | GQ19: =1-GQ18/GQ17 -> 0.8 | GR19: 0.8 | GS19: 0.8 | GT19: 0.8 | GU19: 0.8 | GV19: 0.8 | GW19: 0.8 | GX19: 0.8 | GY19: 0.8 | GZ19: 0.8 | HA19: 0.8 | HB19: 0.8 | HC19: 0.8 | HD19: 0.8 | HE19: 0.8 | HF19: 0.8 | HG19: 0.8 | HH19: 0.8 | HI19: 0.8 | HJ19: 0.8 | HK19: 0.8 | HL19: 0.8 | HM19: 0.8 | HN19: 0.8 | HO19: 0.8 | HP19: 0.8 | HQ19: 0.8 | HR19: 0.8 | HS19: 0.8 | HT19: 0.8 | HU19: 0.8 | HV19: 0.8 | HW19: 0.8 | HX19: 0.8 | HY19: 0.8 | HZ19: 0.8 | IA19: 0.8 | IB19: 0.8 | IC19: 0.8 | ID19: 0.8 | IE19: 0.8 | IF19: 0.8 | IG19: 0.8 | IH19: 0.8 | II19: 0.8 | IJ19: 0.8 | IK19: 0.8 | IL19: 0.8 | IM19: 0.8 | IN19: 0.8 | IO19: 0.8 | IP19: 0.8 | IQ19: 0.8 | IR19: 0.8 | IS19: 0.8 | IT19: 0.8 | IU19: 0.8 | IV19: 0.8 | IW19: 0.8
D21: O/B Equity | F21: =E24 -> 6.2 | G21: =F24 -> 6.51 | H21: 6.8355 | I21: 7.177275 | J21: 7.53613875 | K21: 7.686861525 | L21: 7.840598756 | M21: 7.997410731 | N21: 8.157358945 | O21: 8.320506124 | P21: 8.486916247 | Q21: 8.656654572 | R21: 8.829787663 | S21: 9.006383416 | T21: 9.186511085 | U21: 9.370241306 | V21: 9.557646132 | W21: 9.748799055 | X21: 9.943775036 | Y21: 10.14265054 | Z21: 10.34550355 | AA21: 10.55241362 | AB21: 10.76346189 | AC21: 10.97873113 | AD21: 11.19830575 | AE21: 11.42227187 | AF21: 11.6507173 | AG21: 11.88373165 | AH21: 12.12140628 | AI21: 12.36383441 | AJ21: 12.6111111 | AK21: 12.86333332 | AL21: 13.12059998 | AM21: 13.38301198 | AN21: 13.65067222 | AO21: 13.92368567 | AP21: 14.20215938 | AQ21: 14.48620257 | AR21: 14.77592662 | AS21: 15.07144515 | AT21: 15.37287406 | AU21: 15.68033154 | AV21: 15.99393817 | AW21: 16.31381693 | AX21: 16.64009327 | AY21: 16.97289514 | AZ21: 17.31235304 | BA21: 17.6586001 | BB21: 18.0117721 | BC21: 18.37200754 | BD21: 18.73944769 | BE21: 19.11423665 | BF21: 19.49652138 | BG21: 19.88645181 | BH21: 20.28418084 | BI21: 20.68986446 | BJ21: 21.10366175 | BK21: 21.52573499 | BL21: 21.95624969 | BM21: 22.39537468 | BN21: 22.84328217 | BO21: 23.30014782 | BP21: 23.76615077 | BQ21: 24.24147379 | BR21: 24.72630326 | BS21: =BR24 -> 25.22082933 | BT21: 25.72524592 | BU21: 26.23975083 | BV21: 26.76454585 | BW21: 27.29983677 | BX21: 27.8458335 | BY21: 28.40275017 | BZ21: 28.97080518 | CA21: 29.55022128 | CB21: 30.14122571 | CC21: 30.74405022 | CD21: 31.35893122 | CE21: 31.98610985 | CF21: 32.62583205 | CG21: 33.27834869 | CH21: 33.94391566 | CI21: 34.62279397 | CJ21: 35.31524985 | CK21: 36.02155485 | CL21: 36.74198595 | CM21: 37.47682567 | CN21: 38.22636218 | CO21: 38.99088942 | CP21: 39.77070721 | CQ21: 40.56612136 | CR21: 41.37744378 | CS21: 42.20499266 | CT21: 43.04909251 | CU21: 43.91007436 | CV21: 44.78827585 | CW21: 45.68404137 | CX21: 46.59772219 | CY21: 47.52967664 | CZ21: 48.48027017 | DA21: 49.44987557 | DB21: 50.43887309 | DC21: 51.44765055 | DD21: 52.47660356 | DE21: 53.52613563 | DF21: 54.59665834 | DG21: 55.68859151 | DH21: 56.80236334 | DI21: 57.93841061 | DJ21: 59.09717882 | DK21: 60.27912239 | DL21: 61.48470484 | DM21: 62.71439894 | DN21: 63.96868692 | DO21: 65.24806066 | DP21: 66.55302187 | DQ21: 67.88408231 | DR21: 69.24176395 | DS21: 70.62659923 | DT21: 72.03913122 | DU21: 73.47991384 | DV21: 74.94951212 | DW21: 76.44850236 | DX21: 77.97747241 | DY21: 79.53702186 | DZ21: 81.12776229 | EA21: 82.75031754 | EB21: 84.40532389 | EC21: 86.09343037 | ED21: 87.81529897 | EE21: =ED24 -> 89.57160495 | EF21: 91.36303705 | EG21: 93.19029779 | EH21: 95.05410375 | EI21: 96.95518582 | EJ21: 98.89428954 | EK21: 100.8721753 | EL21: 102.8896188 | EM21: 104.9474112 | EN21: 107.0463594 | EO21: 109.1872866 | EP21: 111.3710324 | EQ21: 113.598453 | ER21: 115.8704221 | ES21: 118.1878305 | ET21: 120.5515871 | EU21: 122.9626189 | EV21: 125.4218712 | EW21: 127.9303087 | EX21: 130.4889148 | EY21: 133.0986931 | EZ21: 135.760667 | FA21: 138.4758803 | FB21: 141.2453979 | FC21: 144.0703059 | FD21: 146.951712 | FE21: 149.8907463 | FF21: 152.8885612 | FG21: 155.9463324 | FH21: 159.0652591 | FI21: 162.2465642 | FJ21: 165.4914955 | FK21: 168.8013254 | FL21: 172.1773519 | FM21: 175.620899 | FN21: 179.133317 | FO21: 182.7159833 | FP21: 186.370303 | FQ21: 190.097709 | FR21: 193.8996632 | FS21: 197.7776565 | FT21: 201.7332096 | FU21: 205.7678738 | FV21: 209.8832313 | FW21: 214.0808959 | FX21: 218.3625138 | FY21: 222.7297641 | FZ21: 227.1843594 | GA21: 231.7280466 | GB21: 236.3626075 | GC21: 241.0898596 | GD21: 245.9116568 | GE21: 250.82989 | GF21: 255.8464878 | GG21: 260.9634175 | GH21: 266.1826859 | GI21: 271.5063396 | GJ21: 276.9364664 | GK21: 282.4751957 | GL21: 288.1246996 | GM21: 293.8871936 | GN21: 299.7649375 | GO21: 305.7602362 | GP21: 311.875441 | GQ21: =GP24 -> 318.1129498 | GR21: 324.4752088 | GS21: 330.964713 | GT21: 337.5840072 | GU21: 344.3356874 | GV21: 351.2224011 | GW21: 358.2468491 | GX21: 365.4117861 | GY21: 372.7200218 | GZ21: 380.1744223 | HA21: 387.7779107 | HB21: 395.5334689 | HC21: 403.4441383 | HD21: 411.5130211 | HE21: 419.7432815 | HF21: 428.1381471 | HG21: 436.7009101 | HH21: 445.4349283 | HI21: 454.3436268 | HJ21: 463.4304994 | HK21: 472.6991094 | HL21: 482.1530915 | HM21: 491.7961534 | HN21: 501.6320764 | HO21: 511.664718 | HP21: 521.8980123 | HQ21: 532.3359726 | HR21: 542.982692 | HS21: 553.8423459 | HT21: 564.9191928 | HU21: 576.2175766 | HV21: 587.7419282 | HW21: 599.4967667 | HX21: 611.4867021 | HY21: 623.7164361 | HZ21: 636.1907648 | IA21: 648.9145801 | IB21: 661.8928717 | IC21: 675.1307292 | ID21: 688.6333438 | IE21: 702.4060106 | IF21: 716.4541308 | IG21: 730.7832135 | IH21: 745.3988777 | II21: 760.3068553 | IJ21: 775.5129924 | IK21: 791.0232522 | IL21: 806.8437173 | IM21: 822.9805916 | IN21: 839.4402035 | IO21: 856.2290075 | IP21: 873.3535877 | IQ21: 890.8206594 | IR21: 908.6370726 | IS21: 926.8098141 | IT21: 945.3460104 | IU21: 964.2529306 | IV21: 983.5379892 | IW21: 1003.208749
D22: Net income | F22: =F21*F17 -> 0.744 | G22: =G21*G17 -> 0.7812 | H22: 0.82026 | I22: 0.861273 | J22: 0.753613875 | K22: 0.7686861525 | L22: 0.7840598756 | M22: 0.7997410731 | N22: 0.8157358945 | O22: 0.8320506124 | P22: 0.8486916247 | Q22: 0.8656654572 | R22: 0.8829787663 | S22: 0.9006383416 | T22: 0.9186511085 | U22: 0.9370241306 | V22: 0.9557646132 | W22: 0.9748799055 | X22: 0.9943775036 | Y22: 1.014265054 | Z22: 1.034550355 | AA22: 1.055241362 | AB22: 1.076346189 | AC22: 1.097873113 | AD22: 1.119830575 | AE22: 1.142227187 | AF22: 1.16507173 | AG22: 1.188373165 | AH22: 1.212140628 | AI22: 1.236383441 | AJ22: 1.26111111 | AK22: 1.286333332 | AL22: 1.312059998 | AM22: 1.338301198 | AN22: 1.365067222 | AO22: 1.392368567 | AP22: 1.420215938 | AQ22: 1.448620257 | AR22: 1.477592662 | AS22: 1.507144515 | AT22: 1.537287406 | AU22: 1.568033154 | AV22: 1.599393817 | AW22: 1.631381693 | AX22: 1.664009327 | AY22: 1.697289514 | AZ22: 1.731235304 | BA22: 1.76586001 | BB22: 1.80117721 | BC22: 1.837200754 | BD22: 1.873944769 | BE22: 1.911423665 | BF22: 1.949652138 | BG22: 1.988645181 | BH22: 2.028418084 | BI22: 2.068986446 | BJ22: 2.110366175 | BK22: 2.152573499 | BL22: 2.195624969 | BM22: 2.239537468 | BN22: 2.284328217 | BO22: 2.330014782 | BP22: 2.376615077 | BQ22: 2.424147379 | BR22: 2.472630326 | BS22: =BS21*BS17 -> 2.522082933 | BT22: 2.572524592 | BU22: 2.623975083 | BV22: 2.676454585 | BW22: 2.729983677 | BX22: 2.78458335 | BY22: 2.840275017 | BZ22: 2.897080518 | CA22: 2.955022128 | CB22: 3.014122571 | CC22: 3.074405022 | CD22: 3.135893122 | CE22: 3.198610985 | CF22: 3.262583205 | CG22: 3.327834869 | CH22: 3.394391566 | CI22: 3.462279397 | CJ22: 3.531524985 | CK22: 3.602155485 | CL22: 3.674198595 | CM22: 3.747682567 | CN22: 3.822636218 | CO22: 3.899088942 | CP22: 3.977070721 | CQ22: 4.056612136 | CR22: 4.137744378 | CS22: 4.220499266 | CT22: 4.304909251 | CU22: 4.391007436 | CV22: 4.478827585 | CW22: 4.568404137 | CX22: 4.659772219 | CY22: 4.752967664 | CZ22: 4.848027017 | DA22: 4.944987557 | DB22: 5.043887309 | DC22: 5.144765055 | DD22: 5.247660356 | DE22: 5.352613563 | DF22: 5.459665834 | DG22: 5.568859151 | DH22: 5.680236334 | DI22: 5.793841061 | DJ22: 5.909717882 | DK22: 6.027912239 | DL22: 6.148470484 | DM22: 6.271439894 | DN22: 6.396868692 | DO22: 6.524806066 | DP22: 6.655302187 | DQ22: 6.788408231 | DR22: 6.924176395 | DS22: 7.062659923 | DT22: 7.203913122 | DU22: 7.347991384 | DV22: 7.494951212 | DW22: 7.644850236 | DX22: 7.797747241 | DY22: 7.953702186 | DZ22: 8.112776229 | EA22: 8.275031754 | EB22: 8.440532389 | EC22: 8.609343037 | ED22: 8.781529897 | EE22: =EE21*EE17 -> 8.957160495 | EF22: 9.136303705 | EG22: 9.319029779 | EH22: 9.505410375 | EI22: 9.695518582 | EJ22: 9.889428954 | EK22: 10.08721753 | EL22: 10.28896188 | EM22: 10.49474112 | EN22: 10.70463594 | EO22: 10.91872866 | EP22: 11.13710324 | EQ22: 11.3598453 | ER22: 11.58704221 | ES22: 11.81878305 | ET22: 12.05515871 | EU22: 12.29626189 | EV22: 12.54218712 | EW22: 12.79303087 | EX22: 13.04889148 | EY22: 13.30986931 | EZ22: 13.5760667 | FA22: 13.84758803 | FB22: 14.12453979 | FC22: 14.40703059 | FD22: 14.6951712 | FE22: 14.98907463 | FF22: 15.28885612 | FG22: 15.59463324 | FH22: 15.90652591 | FI22: 16.22465642 | FJ22: 16.54914955 | FK22: 16.88013254 | FL22: 17.21773519 | FM22: 17.5620899 | FN22: 17.9133317 | FO22: 18.27159833 | FP22: 18.6370303 | FQ22: 19.0097709 | FR22: 19.38996632 | FS22: 19.77776565 | FT22: 20.17332096 | FU22: 20.57678738 | FV22: 20.98832313 | FW22: 21.40808959 | FX22: 21.83625138 | FY22: 22.27297641 | FZ22: 22.71843594 | GA22: 23.17280466 | GB22: 23.63626075 | GC22: 24.10898596 | GD22: 24.59116568 | GE22: 25.082989 | GF22: 25.58464878 | GG22: 26.09634175 | GH22: 26.61826859 | GI22: 27.15063396 | GJ22: 27.69364664 | GK22: 28.24751957 | GL22: 28.81246996 | GM22: 29.38871936 | GN22: 29.97649375 | GO22: 30.57602362 | GP22: 31.1875441 | GQ22: =GQ21*GQ17 -> 31.81129498 | GR22: 32.44752088 | GS22: 33.0964713 | GT22: 33.75840072 | GU22: 34.43356874 | GV22: 35.12224011 | GW22: 35.82468491 | GX22: 36.54117861 | GY22: 37.27200218 | GZ22: 38.01744223 | HA22: 38.77779107 | HB22: 39.55334689 | HC22: 40.34441383 | HD22: 41.15130211 | HE22: 41.97432815 | HF22: 42.81381471 | HG22: 43.67009101 | HH22: 44.54349283 | HI22: 45.43436268 | HJ22: 46.34304994 | HK22: 47.26991094 | HL22: 48.21530915 | HM22: 49.17961534 | HN22: 50.16320764 | HO22: 51.1664718 | HP22: 52.18980123 | HQ22: 53.23359726 | HR22: 54.2982692 | HS22: 55.38423459 | HT22: 56.49191928 | HU22: 57.62175766 | HV22: 58.77419282 | HW22: 59.94967667 | HX22: 61.14867021 | HY22: 62.37164361 | HZ22: 63.61907648 | IA22: 64.89145801 | IB22: 66.18928717 | IC22: 67.51307292 | ID22: 68.86333438 | IE22: 70.24060106 | IF22: 71.64541308 | IG22: 73.07832135 | IH22: 74.53988777 | II22: 76.03068553 | IJ22: 77.55129924 | IK22: 79.10232522 | IL22: 80.68437173 | IM22: 82.29805916 | IN22: 83.94402035 | IO22: 85.62290075 | IP22: 87.33535877 | IQ22: 89.08206594 | IR22: 90.86370726 | IS22: 92.68098141 | IT22: 94.53460104 | IU22: 96.42529306 | IV22: 98.35379892 | IW22: 100.3208749
D23: Dividends | F23: =F22*F19 -> 0.434 | G23: =G22*G19 -> 0.4557 | H23: 0.478485 | I23: 0.50240925 | J23: 0.6028911 | K23: 0.614948922 | L23: 0.6272479004 | M23: 0.6397928584 | N23: 0.6525887156 | O23: 0.6656404899 | P23: 0.6789532997 | Q23: 0.6925323657 | R23: 0.706383013 | S23: 0.7205106733 | T23: 0.7349208868 | U23: 0.7496193045 | V23: 0.7646116906 | W23: 0.7799039244 | X23: 0.7955020029 | Y23: 0.8114120429 | Z23: 0.8276402838 | AA23: 0.8441930895 | AB23: 0.8610769513 | AC23: 0.8782984903 | AD23: 0.8958644601 | AE23: 0.9137817493 | AF23: 0.9320573843 | AG23: 0.950698532 | AH23: 0.9697125026 | AI23: 0.9891067527 | AJ23: 1.008888888 | AK23: 1.029066665 | AL23: 1.049647999 | AM23: 1.070640959 | AN23: 1.092053778 | AO23: 1.113894853 | AP23: 1.136172751 | AQ23: 1.158896206 | AR23: 1.18207413 | AS23: 1.205715612 | AT23: 1.229829925 | AU23: 1.254426523 | AV23: 1.279515053 | AW23: 1.305105355 | AX23: 1.331207462 | AY23: 1.357831611 | AZ23: 1.384988243 | BA23: 1.412688008 | BB23: 1.440941768 | BC23: 1.469760603 | BD23: 1.499155816 | BE23: 1.529138932 | BF23: 1.55972171 | BG23: 1.590916145 | BH23: 1.622734468 | BI23: 1.655189157 | BJ23: 1.68829294 | BK23: 1.722058799 | BL23: 1.756499975 | BM23: 1.791629974 | BN23: 1.827462574 | BO23: 1.864011825 | BP23: 1.901292062 | BQ23: 1.939317903 | BR23: 1.978104261 | BS23: =BS22*BS19 -> 2.017666346 | BT23: 2.058019673 | BU23: 2.099180067 | BV23: 2.141163668 | BW23: 2.183986941 | BX23: 2.22766668 | BY23: 2.272220014 | BZ23: 2.317664414 | CA23: 2.364017702 | CB23: 2.411298056 | CC23: 2.459524018 | CD23: 2.508714498 | CE23: 2.558888788 | CF23: 2.610066564 | CG23: 2.662267895 | CH23: 2.715513253 | CI23: 2.769823518 | CJ23: 2.825219988 | CK23: 2.881724388 | CL23: 2.939358876 | CM23: 2.998146053 | CN23: 3.058108974 | CO23: 3.119271154 | CP23: 3.181656577 | CQ23: 3.245289708 | CR23: 3.310195503 | CS23: 3.376399413 | CT23: 3.443927401 | CU23: 3.512805949 | CV23: 3.583062068 | CW23: 3.654723309 | CX23: 3.727817776 | CY23: 3.802374131 | CZ23: 3.878421614 | DA23: 3.955990046 | DB23: 4.035109847 | DC23: 4.115812044 | DD23: 4.198128285 | DE23: 4.28209085 | DF23: 4.367732667 | DG23: 4.455087321 | DH23: 4.544189067 | DI23: 4.635072848 | DJ23: 4.727774305 | DK23: 4.822329792 | DL23: 4.918776387 | DM23: 5.017151915 | DN23: 5.117494953 | DO23: 5.219844852 | DP23: 5.32424175 | DQ23: 5.430726585 | DR23: 5.539341116 | DS23: 5.650127939 | DT23: 5.763130497 | DU23: 5.878393107 | DV23: 5.995960969 | DW23: 6.115880189 | DX23: 6.238197793 | DY23: 6.362961748 | DZ23: 6.490220983 | EA23: 6.620025403 | EB23: 6.752425911 | EC23: 6.887474429 | ED23: 7.025223918 | EE23: =EE22*EE19 -> 7.165728396 | EF23: 7.309042964 | EG23: 7.455223823 | EH23: 7.6043283 | EI23: 7.756414866 | EJ23: 7.911543163 | EK23: 8.069774027 | EL23: 8.231169507 | EM23: 8.395792897 | EN23: 8.563708755 | EO23: 8.73498293 | EP23: 8.909682589 | EQ23: 9.087876241 | ER23: 9.269633765 | ES23: 9.455026441 | ET23: 9.64412697 | EU23: 9.837009509 | EV23: 10.0337497 | EW23: 10.23442469 | EX23: 10.43911319 | EY23: 10.64789545 | EZ23: 10.86085336 | FA23: 11.07807043 | FB23: 11.29963184 | FC23: 11.52562447 | FD23: 11.75613696 | FE23: 11.9912597 | FF23: 12.23108489 | FG23: 12.47570659 | FH23: 12.72522072 | FI23: 12.97972514 | FJ23: 13.23931964 | FK23: 13.50410603 | FL23: 13.77418816 | FM23: 14.04967192 | FN23: 14.33066536 | FO23: 14.61727866 | FP23: 14.90962424 | FQ23: 15.20781672 | FR23: 15.51197306 | FS23: 15.82221252 | FT23: 16.13865677 | FU23: 16.4614299 | FV23: 16.7906585 | FW23: 17.12647167 | FX23: 17.4690011 | FY23: 17.81838113 | FZ23: 18.17474875 | GA23: 18.53824372 | GB23: 18.9090086 | GC23: 19.28718877 | GD23: 19.67293255 | GE23: 20.0663912 | GF23: 20.46771902 | GG23: 20.8770734 | GH23: 21.29461487 | GI23: 21.72050717 | GJ23: 22.15491731 | GK23: 22.59801566 | GL23: 23.04997597 | GM23: 23.51097549 | GN23: 23.981195 | GO23: 24.4608189 | GP23: 24.95003528 | GQ23: =GQ22*GQ19 -> 25.44903598 | GR23: 25.9580167 | GS23: 26.47717704 | GT23: 27.00672058 | GU23: 27.54685499 | GV23: 28.09779209 | GW23: 28.65974793 | GX23: 29.23294289 | GY23: 29.81760175 | GZ23: 30.41395378 | HA23: 31.02223286 | HB23: 31.64267751 | HC23: 32.27553106 | HD23: 32.92104169 | HE23: 33.57946252 | HF23: 34.25105177 | HG23: 34.93607281 | HH23: 35.63479426 | HI23: 36.34749015 | HJ23: 37.07443995 | HK23: 37.81592875 | HL23: 38.57224732 | HM23: 39.34369227 | HN23: 40.13056612 | HO23: 40.93317744 | HP23: 41.75184099 | HQ23: 42.58687781 | HR23: 43.43861536 | HS23: 44.30738767 | HT23: 45.19353542 | HU23: 46.09740613 | HV23: 47.01935425 | HW23: 47.95974134 | HX23: 48.91893617 | HY23: 49.89731489 | HZ23: 50.89526119 | IA23: 51.91316641 | IB23: 52.95142974 | IC23: 54.01045833 | ID23: 55.0906675 | IE23: 56.19248085 | IF23: 57.31633047 | IG23: 58.46265708 | IH23: 59.63191022 | II23: 60.82454842 | IJ23: 62.04103939 | IK23: 63.28186018 | IL23: 64.54749738 | IM23: 65.83844733 | IN23: 67.15521628 | IO23: 68.4983206 | IP23: 69.86828701 | IQ23: 71.26565275 | IR23: 72.69096581 | IS23: 74.14478513 | IT23: 75.62768083 | IU23: 77.14023444 | IV23: 78.68303913 | IW23: 80.25669992
D24: C/B Equity | E24: =E11 -> 6.2 | F24: =F21+F22-F23 -> 6.51 | G24: =G21+G22-G23 -> 6.8355 | H24: 7.177275 | I24: 7.53613875 | J24: 7.686861525 | K24: 7.840598756 | L24: 7.997410731 | M24: 8.157358945 | N24: 8.320506124 | O24: 8.486916247 | P24: 8.656654572 | Q24: 8.829787663 | R24: 9.006383416 | S24: 9.186511085 | T24: 9.370241306 | U24: 9.557646132 | V24: 9.748799055 | W24: 9.943775036 | X24: 10.14265054 | Y24: 10.34550355 | Z24: 10.55241362 | AA24: 10.76346189 | AB24: 10.97873113 | AC24: 11.19830575 | AD24: 11.42227187 | AE24: 11.6507173 | AF24: 11.88373165 | AG24: 12.12140628 | AH24: 12.36383441 | AI24: 12.6111111 | AJ24: 12.86333332 | AK24: 13.12059998 | AL24: 13.38301198 | AM24: 13.65067222 | AN24: 13.92368567 | AO24: 14.20215938 | AP24: 14.48620257 | AQ24: 14.77592662 | AR24: 15.07144515 | AS24: 15.37287406 | AT24: 15.68033154 | AU24: 15.99393817 | AV24: 16.31381693 | AW24: 16.64009327 | AX24: 16.97289514 | AY24: 17.31235304 | AZ24: 17.6586001 | BA24: 18.0117721 | BB24: 18.37200754 | BC24: 18.73944769 | BD24: 19.11423665 | BE24: 19.49652138 | BF24: 19.88645181 | BG24: 20.28418084 | BH24: 20.68986446 | BI24: 21.10366175 | BJ24: 21.52573499 | BK24: 21.95624969 | BL24: 22.39537468 | BM24: 22.84328217 | BN24: 23.30014782 | BO24: 23.76615077 | BP24: 24.24147379 | BQ24: 24.72630326 | BR24: 25.22082933 | BS24: =BS21+BS22-BS23 -> 25.72524592 | BT24: 26.23975083 | BU24: 26.76454585 | BV24: 27.29983677 | BW24: 27.8458335 | BX24: 28.40275017 | BY24: 28.97080518 | BZ24: 29.55022128 | CA24: 30.14122571 | CB24: 30.74405022 | CC24: 31.35893122 | CD24: 31.98610985 | CE24: 32.62583205 | CF24: 33.27834869 | CG24: 33.94391566 | CH24: 34.62279397 | CI24: 35.31524985 | CJ24: 36.02155485 | CK24: 36.74198595 | CL24: 37.47682567 | CM24: 38.22636218 | CN24: 38.99088942 | CO24: 39.77070721 | CP24: 40.56612136 | CQ24: 41.37744378 | CR24: 42.20499266 | CS24: 43.04909251 | CT24: 43.91007436 | CU24: 44.78827585 | CV24: 45.68404137 | CW24: 46.59772219 | CX24: 47.52967664 | CY24: 48.48027017 | CZ24: 49.44987557 | DA24: 50.43887309 | DB24: 51.44765055 | DC24: 52.47660356 | DD24: 53.52613563 | DE24: 54.59665834 | DF24: 55.68859151 | DG24: 56.80236334 | DH24: 57.93841061 | DI24: 59.09717882 | DJ24: 60.27912239 | DK24: 61.48470484 | DL24: 62.71439894 | DM24: 63.96868692 | DN24: 65.24806066 | DO24: 66.55302187 | DP24: 67.88408231 | DQ24: 69.24176395 | DR24: 70.62659923 | DS24: 72.03913122 | DT24: 73.47991384 | DU24: 74.94951212 | DV24: 76.44850236 | DW24: 77.97747241 | DX24: 79.53702186 | DY24: 81.12776229 | DZ24: 82.75031754 | EA24: 84.40532389 | EB24: 86.09343037 | EC24: 87.81529897 | ED24: 89.57160495 | EE24: =EE21+EE22-EE23 -> 91.36303705 | EF24: 93.19029779 | EG24: 95.05410375 | EH24: 96.95518582 | EI24: 98.89428954 | EJ24: 100.8721753 | EK24: 102.8896188 | EL24: 104.9474112 | EM24: 107.0463594 | EN24: 109.1872866 | EO24: 111.3710324 | EP24: 113.598453 | EQ24: 115.8704221 | ER24: 118.1878305 | ES24: 120.5515871 | ET24: 122.9626189 | EU24: 125.4218712 | EV24: 127.9303087 | EW24: 130.4889148 | EX24: 133.0986931 | EY24: 135.760667 | EZ24: 138.4758803 | FA24: 141.2453979 | FB24: 144.0703059 | FC24: 146.951712 | FD24: 149.8907463 | FE24: 152.8885612 | FF24: 155.9463324 | FG24: 159.0652591 | FH24: 162.2465642 | FI24: 165.4914955 | FJ24: 168.8013254 | FK24: 172.1773519 | FL24: 175.620899 | FM24: 179.133317 | FN24: 182.7159833 | FO24: 186.370303 | FP24: 190.097709 | FQ24: 193.8996632 | FR24: 197.7776565 | FS24: 201.7332096 | FT24: 205.7678738 | FU24: 209.8832313 | FV24: 214.0808959 | FW24: 218.3625138 | FX24: 222.7297641 | FY24: 227.1843594 | FZ24: 231.7280466 | GA24: 236.3626075 | GB24: 241.0898596 | GC24: 245.9116568 | GD24: 250.82989 | GE24: 255.8464878 | GF24: 260.9634175 | GG24: 266.1826859 | GH24: 271.5063396 | GI24: 276.9364664 | GJ24: 282.4751957 | GK24: 288.1246996 | GL24: 293.8871936 | GM24: 299.7649375 | GN24: 305.7602362 | GO24: 311.875441 | GP24: 318.1129498 | GQ24: =GQ21+GQ22-GQ23 -> 324.4752088 | GR24: 330.964713 | GS24: 337.5840072 | GT24: 344.3356874 | GU24: 351.2224011 | GV24: 358.2468491 | GW24: 365.4117861 | GX24: 372.7200218 | GY24: 380.1744223 | GZ24: 387.7779107 | HA24: 395.5334689 | HB24: 403.4441383 | HC24: 411.5130211 | HD24: 419.7432815 | HE24: 428.1381471 | HF24: 436.7009101 | HG24: 445.4349283 | HH24: 454.3436268 | HI24: 463.4304994 | HJ24: 472.6991094 | HK24: 482.1530915 | HL24: 491.7961534 | HM24: 501.6320764 | HN24: 511.664718 | HO24: 521.8980123 | HP24: 532.3359726 | HQ24: 542.982692 | HR24: 553.8423459 | HS24: 564.9191928 | HT24: 576.2175766 | HU24: 587.7419282 | HV24: 599.4967667 | HW24: 611.4867021 | HX24: 623.7164361 | HY24: 636.1907648 | HZ24: 648.9145801 | IA24: 661.8928717 | IB24: 675.1307292 | IC24: 688.6333438 | ID24: 702.4060106 | IE24: 716.4541308 | IF24: 730.7832135 | IG24: 745.3988777 | IH24: 760.3068553 | II24: 775.5129924 | IJ24: 791.0232522 | IK24: 806.8437173 | IL24: 822.9805916 | IM24: 839.4402035 | IN24: 856.2290075 | IO24: 873.3535877 | IP24: 890.8206594 | IQ24: 908.6370726 | IR24: 926.8098141 | IS24: 945.3460104 | IT24: 964.2529306 | IU24: 983.5379892 | IV24: 1003.208749 | IW24: 1023.272924
D26: Growth Rate | G26: =G23/F23-1 -> 0.05 | H26: =H23/G23-1 -> 0.05 | I26: 0.05 | J26: 0.2 | K26: 0.02 | L26: 0.02 | M26: 0.02 | N26: 0.02 | O26: 0.02 | P26: 0.02 | Q26: 0.02 | R26: 0.02 | S26: 0.02 | T26: 0.02 | U26: 0.02 | V26: 0.02 | W26: 0.02 | X26: 0.02 | Y26: 0.02 | Z26: 0.02 | AA26: 0.02 | AB26: 0.02 | AC26: 0.02 | AD26: 0.02 | AE26: 0.02 | AF26: 0.02 | AG26: 0.02 | AH26: 0.02 | AI26: 0.02 | AJ26: 0.02 | AK26: 0.02 | AL26: 0.02 | AM26: 0.02 | AN26: 0.02 | AO26: 0.02 | AP26: 0.02 | AQ26: 0.02 | AR26: 0.02 | AS26: 0.02 | AT26: 0.02 | AU26: 0.02 | AV26: 0.02 | AW26: 0.02 | AX26: 0.02 | AY26: 0.02 | AZ26: 0.02 | BA26: 0.02 | BB26: 0.02 | BC26: 0.02 | BD26: 0.02 | BE26: 0.02 | BF26: 0.02 | BG26: 0.02 | BH26: 0.02 | BI26: 0.02 | BJ26: 0.02 | BK26: 0.02 | BL26: 0.02 | BM26: 0.02 | BN26: 0.02 | BO26: 0.02 | BP26: 0.02 | BQ26: 0.02 | BR26: 0.02 | BS26: 0.02 | BT26: =BT23/BS23-1 -> 0.02 | BU26: 0.02 | BV26: 0.02 | BW26: 0.02 | BX26: 0.02 | BY26: 0.02 | BZ26: 0.02 | CA26: 0.02 | CB26: 0.02 | CC26: 0.02 | CD26: 0.02 | CE26: 0.02 | CF26: 0.02 | CG26: 0.02 | CH26: 0.02 | CI26: 0.02 | CJ26: 0.02 | CK26: 0.02 | CL26: 0.02 | CM26: 0.02 | CN26: 0.02 | CO26: 0.02 | CP26: 0.02 | CQ26: 0.02 | CR26: 0.02 | CS26: 0.02 | CT26: 0.02 | CU26: 0.02 | CV26: 0.02 | CW26: 0.02 | CX26: 0.02 | CY26: 0.02 | CZ26: 0.02 | DA26: 0.02 | DB26: 0.02 | DC26: 0.02 | DD26: 0.02 | DE26: 0.02 | DF26: 0.02 | DG26: 0.02 | DH26: 0.02 | DI26: 0.02 | DJ26: 0.02 | DK26: 0.02 | DL26: 0.02 | DM26: 0.02 | DN26: 0.02 | DO26: 0.02 | DP26: 0.02 | DQ26: 0.02 | DR26: 0.02 | DS26: 0.02 | DT26: 0.02 | DU26: 0.02 | DV26: 0.02 | DW26: 0.02 | DX26: 0.02 | DY26: 0.02 | DZ26: 0.02 | EA26: 0.02 | EB26: 0.02 | EC26: 0.02 | ED26: 0.02 | EE26: 0.02 | EF26: =EF23/EE23-1 -> 0.02 | EG26: 0.02 | EH26: 0.02 | EI26: 0.02 | EJ26: 0.02 | EK26: 0.02 | EL26: 0.02 | EM26: 0.02 | EN26: 0.02 | EO26: 0.02 | EP26: 0.02 | EQ26: 0.02 | ER26: 0.02 | ES26: 0.02 | ET26: 0.02 | EU26: 0.02 | EV26: 0.02 | EW26: 0.02 | EX26: 0.02 | EY26: 0.02 | EZ26: 0.02 | FA26: 0.02 | FB26: 0.02 | FC26: 0.02 | FD26: 0.02 | FE26: 0.02 | FF26: 0.02 | FG26: 0.02 | FH26: 0.02 | FI26: 0.02 | FJ26: 0.02 | FK26: 0.02 | FL26: 0.02 | FM26: 0.02 | FN26: 0.02 | FO26: 0.02 | FP26: 0.02 | FQ26: 0.02 | FR26: 0.02 | FS26: 0.02 | FT26: 0.02 | FU26: 0.02 | FV26: 0.02 | FW26: 0.02 | FX26: 0.02 | FY26: 0.02 | FZ26: 0.02 | GA26: 0.02 | GB26: 0.02 | GC26: 0.02 | GD26: 0.02 | GE26: 0.02 | GF26: 0.02 | GG26: 0.02 | GH26: 0.02 | GI26: 0.02 | GJ26: 0.02 | GK26: 0.02 | GL26: 0.02 | GM26: 0.02 | GN26: 0.02 | GO26: 0.02 | GP26: 0.02 | GQ26: 0.02 | GR26: =GR23/GQ23-1 -> 0.02 | GS26: 0.02 | GT26: 0.02 | GU26: 0.02 | GV26: 0.02 | GW26: 0.02 | GX26: 0.02 | GY26: 0.02 | GZ26: 0.02 | HA26: 0.02 | HB26: 0.02 | HC26: 0.02 | HD26: 0.02 | HE26: 0.02 | HF26: 0.02 | HG26: 0.02 | HH26: 0.02 | HI26: 0.02 | HJ26: 0.02 | HK26: 0.02 | HL26: 0.02 | HM26: 0.02 | HN26: 0.02 | HO26: 0.02 | HP26: 0.02 | HQ26: 0.02 | HR26: 0.02 | HS26: 0.02 | HT26: 0.02 | HU26: 0.02 | HV26: 0.02 | HW26: 0.02 | HX26: 0.02 | HY26: 0.02 | HZ26: 0.02 | IA26: 0.02 | IB26: 0.02 | IC26: 0.02 | ID26: 0.02 | IE26: 0.02 | IF26: 0.02 | IG26: 0.02 | IH26: 0.02 | II26: 0.02 | IJ26: 0.02 | IK26: 0.02 | IL26: 0.02 | IM26: 0.02 | IN26: 0.02 | IO26: 0.02 | IP26: 0.02 | IQ26: 0.02 | IR26: 0.02 | IS26: 0.02 | IT26: 0.02 | IU26: 0.02 | IV26: 0.02 | IW26: 0.02
D28: NPV dividends | F28: =NPV(CoE,F23:IW23,) -> 14.88003776
D29: P/E ratio | F29: =F28/F22 -> 20.00005076
D30: Value (gordons model) | F30: =F23/(CoE-Growth_rate) -> 66.68181085
D31: P/E ratio (Value Driver Model) | F31: =(1-Growth_rate/RoE)/(CoE-Growth_rate) -> 89.62608985
A50: Working Capital Analsis | E50: Short-term | F50: Long-term
D52: Revenue Growth | E52: 0.15 | F52: 0.02
D53: Margin | E53: 0.45 | F53: 0.45
D54: Other Expenses | E54: ='Corporate Model'!U500/'Corporate Model'!U498 -> 0.3635264309 | F54: ='Corporate Model'!V500/'Corporate Model'!V498 -> 0.3553645635
D56: A/R to Sales | E56: 0.12
D57: Inv to COGS | E57: 0.15
D58: A/P to Expenses | E58: 0.08
D60: Revenues | E60: 100 | F60: =E60*(1+E52) -> 115 | G60: =F60*(1+F52) -> 117.3
D61: COGS | E61: =E60*(1-$E$53) -> 55 | F61: =F60*(1-$E$53) -> 63.25 | G61: 64.515
D62: Other Expenses | E62: =E60*$E$58 -> 8 | F62: =F60*$E$58 -> 9.2 | G62: =G60*$E$58 -> 9.384
D63: EBITDA | E63: =E60-E61-E62 -> 37 | F63: =F60-F61-F62 -> 42.55 | G63: =G60-G61-G62 -> 43.401
D65: Accounts Receivable | E65: =$E$56*E60 -> 12 | F65: =$E$56*F60 -> 13.8 | G65: =$E$56*G60 -> 14.076
D66: Inventories | E66: =E61*$E$57 -> 8.25 | F66: =F61*$E$57 -> 9.4875 | G66: =G61*$E$57 -> 9.67725
D67: Current Assets | E67: =SUM(E65:E66) -> 20.25 | F67: =SUM(F65:F66) -> 23.2875 | G67: =SUM(G65:G66) -> 23.75325
D68: Current Liabilites | E68: =(E61+E62)*$E$58 -> 5.04 | F68: =(F61+F62)*$E$58 -> 5.796 | G68: =(G61+G62)*$E$58 -> 5.91192
D69: Working Capital | E69: =E67-E68 -> 15.21 | F69: =F67-F68 -> 17.4915 | G69: =G67-G68 -> 17.84133
D71: Working Capital Change | F71: =F69-E69 -> 2.2815 | G71: =G69-F69 -> 0.34983
D73: WC Change as Pct of EBITDA | F73: =F71/F63 -> 0.05361927145 | G73: =G71/G63 -> 0.008060413355
D74: WC as Percent of EBITDA | F74: =F69/F63 -> 0.4110810811 | G74: =G69/G63 -> 0.4110810811
D76: Growth x WC as Pct of EBITDA | F76: =F74*E52 -> 0.06166216216 | G76: =G74*F52 -> 0.008221621622
D77: Growth x WC Pct/(1+g) | F77: =F74*E52/(1+E52) -> 0.05361927145 | G77: =G74*F52/(1+F52) -> 0.008060413355

Sheet Stock price download
A1: =A15 -> http://ichart.finance.yahoo.com/table.csv?s=FLO&d=3&e=16&f=2013&g=d&a=10&b=5&c=1987&ignore=.csv
A6: http://ichart.finance.yahoo.com/table.csv?s=
A7: &d=3&e=16&f=2013&g=d&a=10&b=5&c=1987&ignore=.csv
C9: FLO | D9: 1
C10: HEIA.AS
C11: ^GSPC
C12: AEX.AS
C14: =INDEX(C9:C12,D9,) -> FLO
A15: =A6&C14&A7 -> http://ichart.finance.yahoo.com/table.csv?s=FLO&d=3&e=16&f=2013&g=d&a=10&b=5&c=1987&ignore=.csv

Sheet Stock prices
A1: Date | C1: Open | D1: High | E1: Low | F1: Close | G1: Volume | H1: Adj Close
S11: 4
L17: AverageIf
K18: 2000 | L18: 16.16323077 | M18: Transpose | N18: 16.30192308 | O18: 23.51467433 | P18: 28.56187739 | Q18: 23.68862069 | R18: 25.34370229 | S18: 28.87357692 | T18: 27.75203125 | U18: 26.60066667 | V18: 26.07751969 | W18: 23.36810811 | X18: 25.04085271 | Y18: 24.42046693 | Z18: 20.70496124 | AA18: 28.34213333
K19: 2001 | L19: 22.93371648 | M19: Transpose Function | N19: =TRANSPOSE(L18:L31) -> 16.16323077 | O19: 22.93371648 | P19: 29.19241379 | Q19: 23.63528736 | R19: 25.28679389 | S19: 28.68957692 | T19: 27.84136719 | U19: 26.88156863 | V19: 25.7346063 | W19: 23.63629344 | X19: 24.8470155 | Y19: 24.87607004 | Z19: 20.40488372 | AA19: 26.1548
K20: 2002 | L20: 29.19241379
K21: 2003 | L21: 23.63528736
K22: 2004 | L22: 25.28679389
K23: 2005 | L23: 28.68957692
K24: 2006 | L24: 27.84136719
K25: 2007 | L25: 26.88156863
K26: 2008 | L26: 25.7346063
K27: 2009 | L27: 23.63629344
K28: 2010 | L28: 24.8470155
K29: 2011 | L29: 24.87607004
K30: 2012 | L30: 20.40488372
K31: 2013 | L31: 26.1548
C6347: 17.87 | D6347: 18.25 | E6347: 17.87 | F6347: 18.12 | G6347: 133200 | H6347: 0.53
C6348: 18.12 | D6348: 18.12 | E6348: 17.75 | F6348: 17.75 | G6348: 153600 | H6348: 0.52
C6349: 18 | D6349: 18.12 | E6349: 17.87 | F6349: 18 | G6349: 169200 | H6349: 0.53
C6350: 17.87 | D6350: 18.37 | E6350: 17.87 | F6350: 18.12 | G6350: 78600 | H6350: 0.53
C6351: 18.37 | D6351: 18.37 | E6351: 17.87 | F6351: 17.87 | G6351: 153600 | H6351: 0.53
C6352: 18.5 | D6352: 18.5 | E6352: 18.37 | F6352: 18.37 | G6352: 176000 | H6352: 0.54
C6353: 18.75 | D6353: 18.87 | E6353: 18.5 | F6353: 18.62 | G6353: 611700 | H6353: 0.55
C6354: 18.62 | D6354: 18.75 | E6354: 18.62 | F6354: 18.62 | G6354: 569100 | H6354: 0.55
C6355: 18.5 | D6355: 18.5 | E6355: 18.12 | F6355: 18.5 | G6355: 569100 | H6355: 0.55
C6356: 18.62 | D6356: 18.62 | E6356: 18.37 | F6356: 18.5 | G6356: 229000 | H6356: 0.55
C6357: 18.5 | D6357: 19 | E6357: 18.5 | F6357: 18.5 | G6357: 203400 | H6357: 0.55
C6358: 18.5 | D6358: 18.75 | E6358: 18.37 | F6358: 18.62 | G6358: 305700 | H6358: 0.55
C6359: 18.62 | D6359: 18.87 | E6359: 18.5 | F6359: 18.5 | G6359: 336600 | H6359: 0.55
C6360: 18.37 | D6360: 18.62 | E6360: 18.37 | F6360: 18.62 | G6360: 58000 | H6360: 0.55
C6361: 18 | D6361: 18.37 | E6361: 17.87 | F6361: 18.37 | G6361: 46200 | H6361: 0.54
C6362: 18.75 | D6362: 18.75 | E6362: 17.87 | F6362: 17.87 | G6362: 478400 | H6362: 0.53
C6363: 18.5 | D6363: 18.5 | E6363: 18.37 | F6363: 18.5 | G6363: 326200 | H6363: 0.55
C6364: 18.62 | D6364: 18.87 | E6364: 18.37 | F6364: 18.5 | G6364: 398100 | H6364: 0.55
C6365: 17.87 | D6365: 18.37 | E6365: 17.87 | F6365: 18.37 | G6365: 256200 | H6365: 0.54
C6366: 18.12 | D6366: 18.12 | E6366: 18 | F6366: 18 | G6366: 97500 | H6366: 0.53
C6367: 18 | D6367: 18.12 | E6367: 17.62 | F6367: 17.87 | G6367: 162300 | H6367: 0.52
C6368: 18.5 | D6368: 18.5 | E6368: 18 | F6368: 18.25 | G6368: 220500 | H6368: 0.54
C6369: 18.75 | D6369: 19 | E6369: 18.12 | F6369: 18.62 | G6369: 230700 | H6369: 0.55
C6370: 19.75 | D6370: 20 | E6370: 19 | F6370: 19 | G6370: 746600 | H6370: 0.56
C6371: 19.25 | D6371: 19.75 | E6371: 19 | F6371: 19.5 | G6371: 490200 | H6371: 0.57
C6372: 19.25 | D6372: 19.5 | E6372: 19.12 | F6372: 19.12 | G6372: 555300 | H6372: 0.56
C6373: 19.25 | D6373: 19.75 | E6373: 19 | F6373: 19 | G6373: 767200 | H6373: 0.56
C6374: 19.5 | D6374: 19.75 | E6374: 19.25 | F6374: 19.37 | G6374: 885200 | H6374: 0.57
C6375: 19.5 | D6375: 21.62 | E6375: 19.5 | F6375: 19.5 | G6375: 230700 | H6375: 0.57
C6376: 19.5 | D6376: 19.75 | E6376: 19.5 | F6376: 19.5 | G6376: 213600 | H6376: 0.57
C6377: 19.62 | D6377: 19.75 | E6377: 19.5 | F6377: 19.75 | G6377: 316200 | H6377: 0.58
C6378: 20.25 | D6378: 20.25 | E6378: 19.87 | F6378: 19.87 | G6378: 316200 | H6378: 0.58
C6379: 20 | D6379: 20.62 | E6379: 20 | F6379: 20.37 | G6379: 393000 | H6379: 0.6
C6380: 19.25 | D6380: 20 | E6380: 19.12 | F6380: 20 | G6380: 510900 | H6380: 0.59
C6381: 18.87 | D6381: 19 | E6381: 18.62 | F6381: 19 | G6381: 486900 | H6381: 0.56
C6382: 18.75 | D6382: 19 | E6382: 18.62 | F6382: 18.75 | G6382: 474900 | H6382: 0.55
C6383: 19 | D6383: 19 | E6383: 18.37 | F6383: 18.5 | G6383: 324600 | H6383: 0.54
C6384: 18.75 | D6384: 19 | E6384: 18.62 | F6384: 19 | G6384: 780800 | H6384: 0.56
C6385: 18.75 | D6385: 19 | E6385: 18.37 | F6385: 19 | G6385: 1233600 | H6385: 0.56
C6386: 17.75 | D6386: 19 | E6386: 17.37 | F6386: 19 | G6386: 627000 | H6386: 0.56
C6387: 17.37 | D6387: 17.75 | E6387: 17.25 | F6387: 17.75 | G6387: 215400 | H6387: 0.52
C6388: 16.87 | D6388: 17.37 | E6388: 16.62 | F6388: 17.25 | G6388: 259600 | H6388: 0.51
C6389: 16.75 | D6389: 16.75 | E6389: 16.37 | F6389: 16.75 | G6389: 321300 | H6389: 0.49
C6390: 16.87 | D6390: 17.12 | E6390: 16.62 | F6390: 16.87 | G6390: 394600 | H6390: 0.49
C6391: 16.5 | D6391: 16.75 | E6391: 16.37 | F6391: 16.62 | G6391: 116100 | H6391: 0.49
C6392: 16.5 | D6392: 16.62 | E6392: 16.25 | F6392: 16.5 | G6392: 309200 | H6392: 0.48
C6393: 16.25 | D6393: 16.5 | E6393: 15.75 | F6393: 16.25 | G6393: 302400 | H6393: 0.48
C6394: 16.5 | D6394: 16.62 | E6394: 16.12 | F6394: 16.5 | G6394: 314400 | H6394: 0.48
C6395: 16.37 | D6395: 17 | E6395: 16.25 | F6395: 16.75 | G6395: 334800 | H6395: 0.49
C6396: 17 | D6396: 17.12 | E6396: 16.25 | F6396: 16.25 | G6396: 256200 | H6396: 0.48
C6397: 17.37 | D6397: 17.37 | E6397: 16.25 | F6397: 16.75 | G6397: 369000 | H6397: 0.49
C6398: 26.37 | D6398: 26.5 | E6398: 25.87 | F6398: 26.5 | G6398: 228200 | H6398: 0.52
C6399: 26.37 | D6399: 26.62 | E6399: 26.25 | F6399: 26.62 | G6399: 530600 | H6399: 0.52
C6400: 25.62 | D6400: 26.37 | E6400: 25.62 | F6400: 26.12 | G6400: 238200 | H6400: 0.51
C6401: 25.37 | D6401: 25.87 | E6401: 25.37 | F6401: 25.75 | G6401: 284400 | H6401: 0.5
C6402: 25.62 | D6402: 25.62 | E6402: 25 | F6402: 25.5 | G6402: 374100 | H6402: 0.5
C6403: 25.5 | D6403: 26 | E6403: 25.37 | F6403: 25.75 | G6403: 282000 | H6403: 0.5
C6404: 26 | D6404: 26 | E6404: 25.37 | F6404: 25.75 | G6404: 158800 | H6404: 0.5
C6405: 26.25 | D6405: 26.37 | E6405: 26 | F6405: 26.12 | G6405: 289500 | H6405: 0.51
C6406: 26.75 | D6406: 26.75 | E6406: 26.25 | F6406: 26.5 | G6406: 553500 | H6406: 0.52
C6407: 26.25 | D6407: 26.62 | E6407: 26.12 | F6407: 26.5 | G6407: 238200 | H6407: 0.52
C6408: 26.37 | D6408: 27.25 | E6408: 26 | F6408: 26.37 | G6408: 815000 | H6408: 0.52
C6409: 25.75 | D6409: 26.37 | E6409: 25.75 | F6409: 26.37 | G6409: 576600 | H6409: 0.52
C6410: 25.5 | D6410: 25.75 | E6410: 25.25 | F6410: 25.5 | G6410: 456300 | H6410: 0.5
C6411: 26 | D6411: 26 | E6411: 25.62 | F6411: 25.62 | G6411: 284400 | H6411: 0.5
C6412: 25.25 | D6412: 26.25 | E6412: 25.25 | F6412: 26.25 | G6412: 520200 | H6412: 0.51
C6413: 24.25 | D6413: 25.37 | E6413: 24.25 | F6413: 25.37 | G6413: 735600 | H6413: 0.49

Sheet Offset Function
C3: Off Set Function Analysis
E4: 2000 | F4: =E4+1 -> 2001 | G4: 2002 | H4: 2003 | I4: 2004 | J4: 2005 | K4: 2006 | L4: 2007 | M4: 2008 | N4: 2009
C5: 1 | D5: Arjen | E5: -835 | F5: =E5*1.05 -> -876.75 | G5: -920.5875 | H5: -966.616875 | I5: -1014.947719 | J5: -1065.695105 | K5: -1118.97986 | L5: -1174.928853 | M5: -1233.675296 | N5: -1295.35906
C6: 4 | D6: Roxanne | E6: 6 | F6: =E6*9 -> 54 | G6: =F6*9 -> 486 | H6: 4374 | I6: 39366 | J6: 354294 | K6: 3188646 | L6: 28697814 | M6: 258280326 | N6: 2324522934
C7: 5 | D7: Bouke | E7: 1400 | F7: =E7*1.03 -> 1442 | G7: =F7*1.05 -> 1514.1 | H7: 1589.805 | I7: 1669.29525 | J7: 1752.760013 | K7: 1840.398013 | L7: 1932.417914 | M7: =L7*1.1 -> 2125.659705 | N7: =M7*1.05 -> 2231.94269
C8: 6 | D8: Julliete | E8: -90 | F8: =E8*1.05 -> -94.5 | G8: =F8*1.05 -> -99.225 | H8: =G8*0.8 -> -79.38 | I8: =H8*1.05 -> -83.349 | J8: =I8*1.05 -> -87.51645 | K8: =J8*1.05 -> -91.8922725 | L8: =K8*1.05 -> -96.48688613 | M8: =L8*1.05 -> -101.3112304 | N8: =M8*1.05 -> -106.376792
C9: 7 | D9: Floris | E9: 5 | F9: =E9*1.2 -> 6 | G9: =F9*1.2 -> 7.2 | H9: 8.64 | I9: 10.368 | J9: 12.4416 | K9: 14.92992 | L9: 17.915904 | M9: 21.4990848 | N9: 25.79890176
C10: 9 | D10: Richard | E10: 100000 | F10: =E10*1.3 -> 130000 | G10: =F10*1.3 -> 169000 | H10: 219700 | I10: 285610 | J10: 371293 | K10: 482680.9 | L10: 627485.17 | M10: 815730.721 | N10: 1060449.937
D12: =OFFSET(E5,3,3) -> -79.38 | G12: row number | H12: =K12-1 -> 1 | K12: 2
D13: =OFFSET(M7,-2,-2) -> -1118.97986 | G13: collumn number | H13: 3
G14: height | H14: 1
G15: width | H15: 7
F17: =INDEX(D5:D10,K12) -> Roxanne | G17: Average | H17: =AVERAGE(graph_data) -> 373583964.9

Sheet Codes
F3: True Code | G3: =1=1 -> TRUE
F4: False Code | G4: =1=2 -> FALSE
G10: 1 | H10: Base
G11: 2 | H11: Style 1
G12: 3 | H12: Style 2
G13: 4 | H13: Style 3 | J13: 3
G14: 5 | H14: Style 4

Sheet 2012 Update
B1: December 29, 2012 | E1: December 31, 2011
B2: (Amounts in thousands, except
B3: share data)
C4: ASSETS | D4: 2012
A5: Current Assets:
A6: Cash and cash equivalents | B6: $ | C6: 13275 | E6: $ | F6: 7783
A8: Accounts and notes receivable, net of allowances of $386 and $171, respectively | C8: 256235 | F8: 185603
A10: Inventories:
A11: Raw materials | C11: 32731 | F11: 26626
A12: Packaging materials | C12: 18885 | F12: 15820
A13: Finished goods | C13: 39394 | F13: 31650
C15: 91010 | F15: 74096
A17: Spare parts and supplies | C17: 45239 | F17: 39624
A19: Deferred taxes | C19: 29198 | F19: 36264
A21: Other | C21: 29494 | F21: 35200
A23: Total current assets | C23: 464451 | F23: 378570
A25: Property, Plant and Equipment:
A26: Land | C26: 75610 | F26: 69958
A27: Buildings | C27: 378255 | F27: 360956
A28: Machinery and equipment | C28: 964377 | F28: 895026
A29: Furniture, fixtures and transportation equipment | C29: 97110 | F29: 81288
A30: Construction in progress | C30: 21645 | F30: 13888
C32: 1536997 | F32: 1421116
A33: Less: accumulated depreciation | C33: -811161 | F33: -735629
C35: 725836 | F35: 685487
A37: Notes Receivable | C37: 102723 | F37: 102322
A39: Assets Held for Sale 0 Distributor Routes | C39: 30116 | F39: 12726
A41: Other Assets | C41: 14442 | F41: 13932
A43: Goodwill | C43: 269897 | F43: 219730
A45: Other Intangible Assets, net | C45: 388384 | F45: 141231
A47: Total assets | B47: $ | C47: 1995849 | E47: $ | F47: 1553998
A49: LIABILITIES AND STOCKHOLDERS’ EQUITY
A50: Current Liabilities:
A51: Current maturities of long-term debt and capital lease obligations | B51: $ | C51: 71996 | E51: $ | F51: 42768
A52: Accounts payable | C52: 153956 | F52: 115138
A53: Other accrued liabilities | C53: 129006 | F53: 110513
A55: Total current liabilities | C55: 354958 | F55: 268419
A57: Long-term liabilities:
A58: Long-term debt and capital leases | C58: 135905 | F58: 283406
A59: 4.375% senior notes due April 1, 2022 | C59: 399111 | F59: 0
A61: Total long-term debt and capital lease obligations | C61: 535016 | F61: 283406
A63: Other Liabilities:
A64: Post-retirement/post-employment obligations | C64: 159158 | F64: 155263
A65: Deferred taxes | C65: 39206 | F65: 35375
A66: Other | C66: 48891 | F66: 52567
A68: Total other liabilities | C68: 247255 | F68: 243205
A70: Stockholders’ Equity:
A71: Preferred stock 0 $100 stated par value, 200,000 authorized and none issued | C71: 0 | F71: 0
A72: Preferred stock 0 $.01 stated par value, 800,000 authorized and none issued | C72: 0 | F72: 0
A73: Common stock 0 $.01 stated par value and $.001 current par value, 500,000,000 authorized shares, 152,488,008 shares and 152,488,008 shares issued, respectively | C73: 199 | F73: 199
A74: Treasury stock 0 14,214,819 shares and 16,506,822 shares, respectively | C74: -196465 | F74: -221246
A75: Capital in excess of par value | C75: 571924 | F75: 544065
A76: Retained earnings | C76: 597629 | F76: 547997
A77: Accumulated other comprehensive loss | C77: -114667 | F77: -112047
A79: Total stockholders’ equity | C79: 858620 | F79: 758968
A81: Total liabilities and stockholders’ equity | B81: $ | C81: 1995849 | E81: $ | F81: 1553998
B85: December 29, | F85: December 31, | I85: January 1,
C86: 2012 | G86: 2011 | J86: 2011
A88: Sales | B88: $ | C88: 3046491 | F88: $ | G88: 2773356 | I88: $ | J88: 2573769
A89: Materials, supplies, labor and other production costs (exclusive of depreciation and amortization shown separately below) | C89: 1617810 | G89: 1473201 | J89: 1346790
A90: Selling, distribution and administrative expenses | C90: 1107480 | G90: 1016491 | J90: 935999
A91: Depreciation and amortization | C91: 102690 | G91: 94638 | J91: 85118
A93: Income from operations | C93: 218511 | G93: 189026 | J93: 205862
A94: Interest expense | C94: 23411 | G94: 10172 | J94: 8164
A95: Interest income | C95: -13672 | D95: ) | G95: -13112 | J95: -12682
A97: Income before income taxes | C97: 208772 | G97: 191966 | J97: 210380
A98: Income tax expense | C98: 72651 | G98: 68538 | J98: 73333
A100: Net income | B100: $ | C100: 136121 | F100: $ | G100: 123428 | I100: $ | J100: 137047
A102: Net Income Per Common Share:
A103: Basic:
A104: Net income per common share | B104: $ | C104: 1 | F104: $ | G104: 0.9100000262 | I104: $ | J104: 1
A106: Weighted average shares outstanding | C106: 136670 | G106: 135387 | J106: 137129
A108: Diluted:
A109: Net income per common share | C109: 0.9800000191 | F109: $ | G109: 0.8999999762 | I109: $ | J109: 0.9900000095
A111: Weighted average shares outstanding | C111: 138449 | G111: 136881 | J111: 138162
C116: (Amounts in thousands)
A117: Cash flows provided by (disbursed for) operating activities:
A118: Net income | C118: $ | D118: 136121 | G118: $ | H118: 123428 | K118: $ | L118: 137047
A119: Adjustments to reconcile net income to net cash provided by operating activities:
A120: Depreciation and amortization | D120: 102690 | H120: 94638 | L120: 85118
A121: Stock-based compensation | D121: 10116 | H121: 13638 | L121: 13678
A122: Loss (gain) reclassified from accumulated other comprehensive income to net income | D122: 17272 | H122: -38038 | I122: ) | L122: 8475
A123: Deferred income taxes | D123: 11450 | H123: -1700 | I123: ) | L123: 3888
A124: Provision for inventory obsolescence | D124: 947 | H124: 765 | L124: 1047
A125: Allowances for accounts receivable | D125: 1991 | H125: 414 | L125: 547
A126: Pension and postretirement plans expense | D126: 1570 | H126: 222 | L126: 1842
A127: Other | D127: -1182 | E127: ) | H127: -162 | I127: ) | L127: -285
A128: Pension contributions | D128: -18143 | E128: ) | H128: -12230 | I128: ) | L128: -909
A129: Changes in operating assets and liabilities, net of acquisitions and disposals:
A130: Accounts receivable, net | D130: -64182 | E130: ) | H130: -283 | I130: ) | L130: 11482
A131: Inventories | D131: -13366 | E131: ) | H131: -6457 | I131: ) | L131: -936
A132: Hedging activities, net | D132: -1850 | E132: ) | H132: -25874 | I132: ) | L132: 39134
A133: Other assets | D133: 1431 | H133: -749 | I133: ) | L133: -8838
A134: Accounts payable | D134: 28529 | H134: -5187 | I134: ) | L134: 7879
A135: Other accrued liabilities | D135: 3486 | H135: -8135 | I135: ) | L135: 6881
A137: Net cash provided by operating activities | D137: 216880 | H137: 134290 | L137: 306050
A139: Cash flows provided by (disbursed for) investing activities:
A140: Purchase of property, plant and equipment | D140: -67259 | E140: ) | H140: -79162 | I140: ) | L140: -98404
A141: Repurchase of distributor territories | D141: -17849 | E141: ) | H141: -14581 | I141: ) | L141: -10843
A142: Principal payments from notes receivable | D142: 16498 | H142: 12629 | L142: 12514
A143: Acquisition of businesses, net of cash acquired | D143: -318476 | E143: ) | H143: -164485 | I143: ) | L143: 0
A144: Contingent acquisition consideration payments | D144: 0 | H144: -5000 | I144: ) | L144: 0
A145: Deconsolidation of variable interest entity (Note 12) | D145: 0 | H145: 0 | L145: -8804
A146: Proceeds from sale of property, plant and equipment | D146: 1301 | H146: 12104 | L146: 1075
A147: Other | D147: 348 | H147: 556 | L147: 165
A149: Net cash disbursed for investing activities | D149: -385437 | E149: ) | H149: -237939 | I149: ) | L149: -104297
A151: Cash flows provided by (disbursed for) financing activities:
A152: Dividends paid | D152: -86489 | E152: ) | H152: -79081 | I152: ) | L152: -70882
A153: Exercise of stock options | D153: 13881 | H153: 12933 | L153: 7884
A154: Excess windfall tax benefit related to stock awards | D154: 2318 | H154: 3073 | L154: 977
A155: Payments for debt issuance costs | D155: -3882 | E155: ) | H155: 0 | L155: 0
A156: Payment of financing fees | D156: -558 | E156: ) | H156: -2108 | I156: ) | L156: 0
A157: Stock repurchases | D157: -18726 | E157: ) | H157: -26598 | I157: ) | L157: -39184
A158: Change in cash overdrafts | D158: 6684 | H158: 521 | L158: -1432
A159: Proceeds from debt borrowings | D159: 1482481 | H159: 1071100 | L159: 418500
A160: Debt and capital lease obligation payments | D160: -1221660 | E160: ) | H160: -875083 | I160: ) | L160: -529809
A161: Other | D161: 0 | H161: -80 | I161: ) | L161: 0
A163: Net cash provided by (disbursed for) financing activities | D163: 174049 | H163: 104677 | L163: -213946
A165: Net increase (decrease) in cash and cash equivalents | D165: 5492 | H165: 1028 | L165: -12193
A166: Cash and cash equivalents at beginning of period | D166: 7783 | H166: 6755 | L166: 18948
A168: Cash and cash equivalents at end of period | C168: $ | D168: 13275 | G168: $ | H168: 7783 | K168: $ | L168: 6755
A170: Schedule of non cash investing and financing activities:
A171: Issuance of deferred compensation to common stock equivalent units | C171: $ | D171: 34 | G171: $ | H171: 219 | K171: $ | L171: 15
A172: Capital and right-to-use lease obligations | C172: $ | D172: 4867 | G172: $ | H172: 1404 | K172: $ | L172: 13332
A173: Deconsolidation of VIE capital leases | C173: $ | D173: 0 | G173: $ | H173: 0 | K173: $ | L173: 26389
A174: Issuance of notes receivable | C174: $ | D174: 1891 | G174: $ | H174: 833 | K174: $ | L174: 171
A175: Shares issued for acquisition | C175: $ | D175: 45887 | G175: $ | H175: 0 | K175: $ | L175: 0
A176: Deferred obligations issued for acquisition | C176: $ | D176: 17663 | H176: 0 | L176: 0
A177: Purchase of property, plant and equipment included in accounts payable | C177: $ | D177: 3310 | G177: $ | H177: 0 | K177: $ | L177: 0
A178: Supplemental disclosures of cash flow information:
A179: Cash paid during the period for:
A180: Interest, net of capitalized interest | C180: $ | D180: 16106 | G180: $ | H180: 9588 | K180: $ | L180: 7470
A181: Income taxes paid, net of refunds of $7,194, $430 and $623, respectively | C181: $ | D181: 56377 | G181: $ | H181: 70122 | K181: $ | L181: 72554

Sheet Circular Sweep
B2: Note: In tax case need to adjust for other items not deducted for tax such as cap exp and wc changes
A6: Sweep No Taxes
D7: Int = (OB - sweep/2) * rate
D8: Sweep = EBITDA - Int
D10: Sweep = EBITDA - (OB - Sweep/2) * Rate
D11: Sweep = EBITDA - OB * rate + Sweep/2 * Rate
D12: Sweep - Sweep/2 * Rate = EBITDA - OB * rate
D13: Sweep * (1-1/2 * Rate) = EBITDA - OB * rate
D14: Sweep = (EBITDA - OB * rate)/(1- Rate/2)
B16: Growth | C16: 0.02
B17: EBITDA | D17: 100 | E17: =D17*(1+C16) -> 102 | F17: =E17*(1+C16) -> 104.04 | G17: =F17*(1+C16) -> 106.1208 | H17: =G17*(1+C16) -> 108.243216 | I17: =H17*(1+C16) -> 110.4080803 | J17: =I17*(1+C16) -> 112.6162419 | K17: =J17*(1+C16) -> 114.8685668 | L17: =K17*(1+C16) -> 117.1659381 | M17: =L17*(1+C16) -> 119.5092569 | N17: =M17*(1+C16) -> 121.899442
B19: Debt
B20: Opening Balance | D20: =C22 -> 500 | E20: =D22 -> 423.0769231 | F20: 340.1577909 | G20: 250.8940879 | H20: 154.9186052 | I20: 51.84446601 | J20: 0 | K20: 0 | L20: 0 | M20: 0 | N20: 0
B21: Less: Sweep | D21: =D30 -> 76.92307692 | E21: =E30 -> 82.91913215 | F21: 89.26370303 | G21: 95.97548267 | H21: 103.0741392 | I21: 51.84446601 | J21: 0 | K21: 0 | L21: 0 | M21: 0 | N21: 0
B22: Closing Balance | C22: 500 | D22: =D20-D21 -> 423.0769231 | E22: =E20-E21 -> 340.1577909 | F22: 250.8940879 | G22: 154.9186052 | H22: 51.84446601 | I22: 0 | J22: 0 | K22: 0 | L22: 0 | M22: 0 | N22: 0
B23: Int | D23: 0.05 | E23: =D23 -> 0.05 | F23: =E23 -> 0.05 | G23: 0.05 | H23: 0.05 | I23: 0.05 | J23: 0.05 | K23: 0.05 | L23: 0.05 | M23: 0.05 | N23: 0.05
B24: Average Interest | D24: =AVERAGE(D22,D20)*D23 -> 23.07692308 | E24: =AVERAGE(E22,E20)*E23 -> 19.08086785 | F24: 14.77629697 | G24: 10.14531733 | H24: 5.169076781 | I24: 1.29611165 | J24: 0 | K24: 0 | L24: 0 | M24: 0 | N24: 0
B26: EBITDA | D26: =D17 -> 100 | E26: 102 | F26: 104.04 | G26: 106.1208 | H26: 108.243216 | I26: 110.4080803 | J26: 112.6162419 | K26: 114.8685668 | L26: 117.1659381 | M26: 119.5092569 | N26: 121.899442
B27: Less: Interest | D27: =D24 -> 23.07692308 | E27: 19.08086785 | F27: 14.77629697 | G27: 10.14531733 | H27: 5.169076781 | I27: 1.29611165 | J27: 0 | K27: 0 | L27: 0 | M27: 0 | N27: 0
B28: Less: Incremental Interest
B29: Sub-total | D29: =D26-D27 -> 76.92307692 | E29: =E26-E27 -> 82.91913215 | F29: 89.26370303 | G29: 95.97548267 | H29: 103.0741392 | I29: 109.1119687 | J29: 112.6162419 | K29: 114.8685668 | L29: 117.1659381 | M29: 119.5092569 | N29: 121.899442
B30: Less: Sweep | D30: =MIN(sweep(D26,D23,D20),D20) -> 76.92307692 | E30: 82.91913215 | F30: 89.26370303 | G30: 95.97548267 | H30: 103.0741392 | I30: 51.84446601 | J30: 0 | K30: 0 | L30: 0 | M30: 0 | N30: 0
B31: Remainder | D31: =D29-D30 -> 0 | E31: =E29-E30 -> 0 | F31: 0 | G31: 0 | H31: 0 | I31: 57.26750266 | J31: 112.6162419 | K31: 114.8685668 | L31: 117.1659381 | M31: 119.5092569 | N31: 121.899442
B33: Sweep | D33: =sweep(D26,D23,D20) -> 76.92307692 | E33: 82.91913215 | F33: 89.26370303 | G33: 95.97548267 | H33: 103.0741392 | I33: 110.5803662 | J33: 115.5038379 | K33: 117.8139146 | L33: 120.1701929 | M33: 122.5735968 | N33: 125.0250687
A36: Sweep with Incremental Interest
D37: Int = Int Opening + Incr Int
D38: Sweep = EBITDA - Int
D40: Int Opening = OB * Rate
D41: Int Incr = -sweep/2 * rate
D42: Sweep = EBITDA - Int OB - Incr int
D43: Sweep = EBITDA - Int OB -sweep/2 * rate
D44: Sweep + sweep/2 * rate = EBITDA - Int OB
D45: sweep * (1+ rate/2) = EBITDA - Int OB
D46: sweep = (EBITDA - Int OB)/(1+rate/2)
B48: Growth | C48: 0.02
B49: Ebitda | D49: 100 | E49: =D49*(1+C48) -> 102 | F49: =E49*(1+C48) -> 104.04 | G49: =F49*(1+C48) -> 106.1208 | H49: =G49*(1+C48) -> 108.243216 | I49: =H49*(1+C48) -> 110.4080803 | J49: =I49*(1+C48) -> 112.6162419 | K49: =J49*(1+C48) -> 114.8685668 | L49: =K49*(1+C48) -> 117.1659381 | M49: =L49*(1+C48) -> 119.5092569 | N49: =M49*(1+C48) -> 121.899442
B51: Debt
B52: OB | D52: =C54 -> 500 | E52: =D54 -> 423.0769231 | F52: 340.1577909 | G52: 250.8940879 | H52: 154.9186052 | I52: 51.84446601 | J52: 0 | K52: 0 | L52: 0 | M52: 0 | N52: 0
B53: Less: Sweep | D53: =D61 -> 76.92307692 | E53: =E61 -> 82.91913215 | F53: 89.26370303 | G53: 95.97548267 | H53: 103.0741392 | I53: 51.84446601 | J53: 0 | K53: 0 | L53: 0 | M53: 0 | N53: 0
B54: CB | C54: 500 | D54: =D52-D53 -> 423.0769231 | E54: 340.1577909 | F54: 250.8940879 | G54: 154.9186052 | H54: 51.84446601 | I54: 0 | J54: 0 | K54: 0 | L54: 0 | M54: 0 | N54: 0
B55: Int | D55: 0.05 | E55: =D55 -> 0.05 | F55: =E55 -> 0.05 | G55: 0.05 | H55: 0.05 | I55: 0.05 | J55: 0.05 | K55: 0.05 | L55: 0.05 | M55: 0.05 | N55: 0.05
B56: Interest Expense | D56: =AVERAGE(D54,D52)*D55 -> 23.07692308 | E56: 19.08086785 | F56: 14.77629697 | G56: 10.14531733 | H56: 5.169076781 | I56: 1.29611165 | J56: 0 | K56: 0 | L56: 0 | M56: 0 | N56: 0
B58: EBITDA | D58: =D49 -> 100 | E58: =E49 -> 102 | F58: 104.04 | G58: 106.1208 | H58: 108.243216 | I58: 110.4080803 | J58: 112.6162419 | K58: 114.8685668 | L58: 117.1659381 | M58: 119.5092569 | N58: 121.899442
B59: Less: Interest | D59: =D56 -> 23.07692308 | E59: =E56 -> 19.08086785 | F59: 14.77629697 | G59: 10.14531733 | H59: 5.169076781 | I59: 1.29611165 | J59: 0 | K59: 0 | L59: 0 | M59: 0 | N59: 0
B60: Sub-total | D60: =D58-D59 -> 76.92307692 | E60: 82.91913215 | F60: 89.26370303 | G60: 95.97548267 | H60: 103.0741392 | I60: 109.1119687 | J60: 112.6162419 | K60: 114.8685668 | L60: 117.1659381 | M60: 119.5092569 | N60: 121.899442
B61: Less: Sweep | D61: =MIN(sweep(D58,D55,D52),D52) -> 76.92307692 | E61: =MIN(sweep(E58,E55,E52),E52) -> 82.91913215 | F61: 89.26370303 | G61: 95.97548267 | H61: 103.0741392 | I61: 51.84446601 | J61: 0 | K61: 0 | L61: 0 | M61: 0 | N61: 0
B62: Remainder | D62: =D60-D61 -> 0 | E62: 0 | F62: 0 | G62: 0 | H62: 0 | I62: 57.26750266 | J62: 112.6162419 | K62: 114.8685668 | L62: 117.1659381 | M62: 119.5092569 | N62: 121.899442
B64: Sweep | D64: =sweep(D58,D55,D52) -> 76.92307692 | E64: =sweep(E58,E55,E52) -> 82.91913215 | F64: 89.26370303 | G64: 95.97548267 | H64: 103.0741392 | I64: 110.5803662 | J64: 115.5038379 | K64: 117.8139146 | L64: 120.1701929 | M64: 122.5735968 | N64: 125.0250687
A66: Sweep with Incremental Interest and Taxes
D67: Just write down equations and keep substuting
D68: get interest out of equation and express sweep as function of fixed items
D69: with NOL compute effective tax rate without sweep
D71: EBT = EBITDA - Int - taxes
D72: Taxes = EBT x Tax Rate
D73: Tases = (EBITDA - Int - dep) x t
D74: Sweep = EBITDA - taxes - Int Opening - Incr Int
D75: Int Opening = OB * Rate
D76: Int Incr = -sweep/2 * rate
D77: Sweep = EBITDA - taxes - Int Opening + sweep/2 * rate
D78: Sweep = EBITDA - (EBITDA - Int Opening - Incr Int - Dep) x t - Int Opening + sweep/2 * rate
D79: Sweep = EBITDA - (EBITDA - Int Opening + sweep/2 * rate - Dep) x t - Int Opening + sweep/2 * rate
D80: Sweep - sweep/2 * rate = EBITDA * (1 - t) + dep * t + Int Opening * (t - 1) - sweep/2 * rate * t
D81: Sweep - sweep/2 * rate + sweep/2 * rate * t = EBITDA * (1 - t) + dep * t + Int Opening * (t - 1)
D82: Sweep * ( 1 - rate/2 + rate/2 * t) = EBITDA * (1 - t) + dep * t + Int Opening * (t - 1)
D83: Sweep = [EBITDA * (1 - t) + dep * t + Int Opening * (t - 1) ]/( 1 - rate/2 + rate/2 * t)
D85: Sweep = [EBITDA * (1 - t) - WC - CapExp + dep * t + Int Opening * (t - 1) ]/( 1 - rate/2 + rate/2 * t)
A87: sweep_taxes
A88: No NOL
B90: Growth | C90: 0.02
B91: Tax Rate | C91: 0.255
B92: EBITDA | D92: 100 | E92: =D92*(1+C90) -> 102 | F92: =E92*(1+C90) -> 104.04 | G92: =F92*(1+C90) -> 106.1208 | H92: =G92*(1+C90) -> 108.243216 | I92: =H92*(1+C90) -> 110.4080803 | J92: =I92*(1+C90) -> 112.6162419 | K92: =J92*(1+C90) -> 114.8685668 | L92: =K92*(1+C90) -> 117.1659381 | M92: =L92*(1+C90) -> 119.5092569 | N92: =M92*(1+C90) -> 121.899442
B94: Debt
B95: Oening Balance | D95: =C97 -> 500 | E95: =D97 -> 435.2693924 | F95: 366.5635306 | G95: 293.7011605 | H95: 216.4935408 | I95: 134.7441468 | J95: 48.24836247 | K95: 0 | L95: 0 | M95: 0 | N95: 0
B96: Less: Sweep | D96: =D112 -> 64.73060757 | E96: =E112 -> 68.70586181 | F96: 72.86237013 | G96: 77.20761969 | H96: 81.74939399 | I96: 86.49578435 | J96: 48.24836247 | K96: 0 | L96: 0 | M96: 0 | N96: 0
B97: Closing Balance | C97: 500 | D97: =D95-D96 -> 435.2693924 | E97: 366.5635306 | F97: 293.7011605 | G97: 216.4935408 | H97: 134.7441468 | I97: 48.24836247 | J97: 0 | K97: 0 | L97: 0 | M97: 0 | N97: 0
B98: Interest Rate | D98: 0.05 | E98: =D98 -> 0.05 | F98: =E98 -> 0.05 | G98: 0.05 | H98: 0.05 | I98: 0.05 | J98: 0.05 | K98: 0.05 | L98: 0.05 | M98: 0.05 | N98: 0.05
B99: Interest Expense OB | D99: =D98*D95 -> 25 | E99: =E98*E95 -> 21.76346962 | F99: 18.32817653 | G99: 14.68505802 | H99: 10.82467704 | I99: 6.737207341 | J99: 2.412418123 | K99: 0 | L99: 0 | M99: 0 | N99: 0
B100: Interest Expense Average | D100: =AVERAGE(D97,D95)*D98 -> 23.38173481 | E100: =AVERAGE(E97,E95)*E98 -> 20.04582308 | F100: 16.50661728 | G100: 12.75486753 | H100: 8.780942191 | I100: 4.574812732 | J100: 1.206209062 | K100: 0 | L100: 0 | M100: 0 | N100: 0
B102: EBITDA | D102: =D92 -> 100 | E102: 102 | F102: 104.04 | G102: 106.1208 | H102: 108.243216 | I102: 110.4080803 | J102: 112.6162419 | K102: 114.8685668 | L102: 117.1659381 | M102: 119.5092569 | N102: 121.899442
B103: Depreciation | C103: 300 | D103: =$C$103/10 -> 30 | E103: =$C$103/10 -> 30 | F103: 30 | G103: 30 | H103: 30 | I103: 30 | J103: 30 | K103: 30 | L103: 30 | M103: 30 | N103: 30
B104: Interest | D104: =D100 -> 23.38173481 | E104: 20.04582308 | F104: 16.50661728 | G104: 12.75486753 | H104: 8.780942191 | I104: 4.574812732 | J104: 1.206209062 | K104: 0 | L104: 0 | M104: 0 | N104: 0
B105: EBT | D105: =D102-D103-D104 -> 46.61826519 | E105: =E102-E103-E104 -> 51.95417692 | F105: 57.53338272 | G105: 63.36593247 | H105: 69.46227381 | I105: 75.83326759 | J105: 81.41003286 | K105: 84.86856676 | L105: 87.1659381 | M105: 89.50925686 | N105: 91.899442
B106: Taxes | C106: =C91 -> 0.255 | D106: =D105*$C$106 -> 11.88765762 | E106: =E105*$C$106 -> 13.24831512 | F106: 14.67101259 | G106: 16.15831278 | H106: 17.71287982 | I106: 19.33748323 | J106: 20.75955838 | K106: 21.64148453 | L106: 22.22731422 | M106: 22.8248605 | N106: 23.43435771
B108: EBITDA | D108: =D92 -> 100 | E108: 102 | F108: 104.04 | G108: 106.1208 | H108: 108.243216 | I108: 110.4080803 | J108: 112.6162419 | K108: 114.8685668 | L108: 117.1659381 | M108: 119.5092569 | N108: 121.899442
B109: Less: Taxes | D109: =D106 -> 11.88765762 | E109: 13.24831512 | F109: 14.67101259 | G109: 16.15831278 | H109: 17.71287982 | I109: 19.33748323 | J109: 20.75955838 | K109: 21.64148453 | L109: 22.22731422 | M109: 22.8248605 | N109: 23.43435771
B110: Less: Interest | D110: =D100 -> 23.38173481 | E110: 20.04582308 | F110: 16.50661728 | G110: 12.75486753 | H110: 8.780942191 | I110: 4.574812732 | J110: 1.206209062 | K110: 0 | L110: 0 | M110: 0 | N110: 0
B111: Sub-total | D111: =D108-D109-D110 -> 64.73060757 | E111: =E108-E109-E110 -> 68.70586181 | F111: 72.86237013 | G111: 77.20761969 | H111: 81.74939399 | I111: 86.49578435 | J111: 90.65047448 | K111: 93.22708224 | L111: 94.93862388 | M111: 96.68439636 | N111: 98.46508429
B112: Less: Sweep | D112: =MIN(D95,sweep_taxes(D102,D98,$C$106,D103,D99)) -> 64.73060757 | E112: 68.70586181 | F112: 72.86237013 | G112: 77.20761969 | H112: 81.74939399 | I112: 86.49578435 | J112: 48.24836247 | K112: 0 | L112: 0 | M112: 0 | N112: 0
B113: Remainder | D113: =D111-D112 -> 0 | E113: 0 | F113: 0 | G113: 0 | H113: 0 | I113: 0 | J113: 42.40211201 | K113: 93.22708224 | L113: 94.93862388 | M113: 96.68439636 | N113: 98.46508429
B115: Check | D115: =MIN(D111,D95) -> 64.73060757 | E115: 68.70586181 | F115: 72.86237013 | G115: 77.20761969 | H115: 81.74939399 | I115: 86.49578435 | J115: 48.24836247 | K115: 0 | L115: 0 | M115: 0 | N115: 0
B116: Difference | D116: =D115-D112 -> 0 | E116: =E115-E112 -> 0 | F116: 0 | G116: 0 | H116: 0 | I116: 0 | J116: 0 | K116: 0 | L116: 0 | M116: 0 | N116: 0
B118: Sweep | D118: =sweep(D108,D98,D95) -> 76.92307692 | E118: 82.29387731 | F118: 87.90956253 | G118: 93.78024818 | H118: 99.91645021 | I118: 106.3291005 | J118: 113.0295629 | K118: 117.8139146 | L118: 120.1701929 | M118: 122.5735968 | N118: 125.0250687
A121: Sweep with NOL
D122: Just write down equations and keep substuting
D123: get interest out of equation and express sweep as function of fixed items
D124: with NOL compute effective tax rate without sweep
D126: EBT = EBITDA - Int - taxes
D127: Taxes = EBT x Tax Rate
D128: Tases = (EBITDA - Int - dep) x t
D129: Sweep = EBITDA - taxes - Int Opening - Incr Int
D130: Int Opening = OB * Rate
D131: Int Incr = -sweep/2 * rate
D132: Sweep = EBITDA - taxes - Int Opening + sweep/2 * rate
D133: Sweep = EBITDA - (EBITDA - Int Opening - Incr Int - Dep) x t - Int Opening + sweep/2 * rate
D134: Sweep = EBITDA - (EBITDA - Int Opening + sweep/2 * rate - Dep) x t - Int Opening + sweep/2 * rate
D135: Sweep - sweep/2 * rate = EBITDA * (1 - t) + dep * t + Int Opening * (t - 1) - sweep/2 * rate * t
D136: Sweep - sweep/2 * rate + sweep/2 * rate * t = EBITDA * (1 - t) + dep * t + Int Opening * (t - 1)
D137: Sweep * ( 1 - rate/2 + rate/2 * t) = EBITDA * (1 - t) + dep * t + Int Opening * (t - 1)
D138: Sweep = [EBITDA * (1 - t) + dep * t + Int Opening * (t - 1) ]/( 1 - rate/2 + rate/2 * t)
A139: sweep_taxes
B141: Growth | C141: 0.15
B142: Tax Rate | C142: 0.255
B143: Ebitda | D143: 30 | E143: =D143*(1+C141) -> 34.5 | F143: =E143*(1+C141) -> 39.675 | G143: =F143*(1+C141) -> 45.62625 | H143: =G143*(1+C141) -> 52.4701875 | I143: =H143*(1+C141) -> 60.34071562 | J143: =I143*(1+C141) -> 69.39182297 | K143: =J143*(1+C141) -> 79.80059641 | L143: =K143*(1+C141) -> 91.77068588 | M143: =L143*(1+C141) -> 105.5362888 | N143: =M143*(1+C141) -> 121.3667321
B145: Debt
B146: OB | D146: =C148 -> 500 | E146: =D148 -> 494.8717949 | F146: 484.8652202 | G146: 469.0377956 | H146: 446.2948621 | I146: 415.3662012 | J146: 374.7791185 | K146: 322.82746 | L146: 257.7639995 | M146: 190.0860456 | N146: 109.3892377
B147: Less: Sweep | D147: =D194 -> 5.128205128 | E147: =E194 -> 10.00657462 | F147: 15.8274246 | G147: 22.74293356 | H147: 30.92866092 | I147: 40.58708263 | J147: 51.9516585 | K147: 65.06346052 | L147: 67.67795389 | M147: 80.69680797 | N147: 95.77731885
B148: CB | C148: 500 | D148: =D146-D147 -> 494.8717949 | E148: 484.8652202 | F148: 469.0377956 | G148: 446.2948621 | H148: 415.3662012 | I148: 374.7791185 | J148: 322.82746 | K148: 257.7639995 | L148: 190.0860456 | M148: 109.3892377 | N148: 13.6119188
B149: Int | D149: 0.05 | E149: =D149 -> 0.05 | F149: =E149 -> 0.05 | G149: 0.05 | H149: 0.05 | I149: 0.05 | J149: 0.05 | K149: 0.05 | L149: 0.05 | M149: 0.05 | N149: 0.05
B150: Interest Expense OB | D150: =D149*D146 -> 25 | E150: 24.74358974 | F150: 24.24326101 | G150: 23.45188978 | H150: 22.3147431 | I150: 20.76831006 | J150: 18.73895593 | K150: 16.141373 | L150: 12.88819998 | M150: 9.504302281 | N150: 5.469461883
B151: Interest Expense Average | D151: =AVERAGE(D148,D146)*D149 -> 24.87179487 | E151: =AVERAGE(E148,E146)*E149 -> 24.49342538 | F151: 23.8475754 | G151: 22.88331644 | H151: 21.54152658 | I151: 19.75363299 | J151: 17.44016446 | K151: 14.51478649 | L151: 11.19625113 | M151: 7.486882082 | N151: 3.075028911
B152: Difference | D152: =D150-D151 -> 0.1282051282 | E152: =E150-E151 -> 0.2501643655 | F152: 0.3956856151 | G152: 0.5685733389 | H152: 0.773216523 | I152: 1.014677066 | J152: 1.298791463 | K152: 1.626586513 | L152: 1.691948847 | M152: 2.017420199 | N152: 2.394432971
B154: P&L
B155: EBITDA | D155: =D143 -> 30 | E155: =E143 -> 34.5 | F155: 39.675 | G155: 45.62625 | H155: 52.4701875 | I155: 60.34071562 | J155: 69.39182297 | K155: 79.80059641 | L155: 91.77068588 | M155: 105.5362888 | N155: 121.3667321
B156: Depreciation | C156: 400 | D156: =$C$103/10 -> 30 | E156: =$C$103/10 -> 30 | F156: 30 | G156: 30 | H156: 30 | I156: 30 | J156: 30 | K156: 30 | L156: 30 | M156: 30 | N156: 30
B157: Interest OB | D157: =D150 -> 25 | E157: =E150 -> 24.74358974 | F157: 24.24326101 | G157: 23.45188978 | H157: 22.3147431 | I157: 20.76831006 | J157: 18.73895593 | K157: 16.141373 | L157: 12.88819998 | M157: 9.504302281 | N157: 5.469461883
B158: EBT Before NOL | D158: =D155-D156-D157 -> -25 | E158: -20.24358974 | F158: -14.56826101 | G158: -7.825639782 | H158: 0.1554443955 | I158: 9.572405566 | J158: 20.65286704 | K158: 33.65922341 | L158: 48.8824859 | M158: 66.03198648 | N158: 85.89727019
B159: Taxes | C159: =C142 -> 0.255 | D159: =D158*$C$106 -> -6.375 | E159: -5.162115385 | F159: -3.714906558 | G159: -1.995538145 | H159: 0.03963832084 | I159: 2.440963419 | J159: 5.266481096 | K159: 8.58310197 | L159: 12.4650339 | M159: 16.83815655 | N159: 21.9038039
B161: NOL
B162: Open | D162: =D173 -> 0 | E162: =E173 -> 24.87179487 | F162: 44.86522025 | G162: 59.03779565 | H162: 66.29486209 | I162: 65.36620117 | J162: 54.77911854 | K162: 32.82746004 | L162: 0 | M162: 0 | N162: 0
B163: Add: Losses | D163: =MAX(-D158,0) -> 25 | E163: =MAX(-E158,0) -> 20.24358974 | F163: 14.56826101 | G163: 7.825639782 | H163: 0 | I163: 0 | J163: 0 | K163: 0 | L163: 0 | M163: 0 | N163: 0
B164: Less: Used | D164: =MAX(MIN(D162,D158),0) -> 0 | E164: =MAX(MIN(E162,E158),0) -> 0 | F164: 0 | G164: 0 | H164: 0.1554443955 | I164: 9.572405566 | J164: 20.65286704 | K164: 32.82746004 | L164: 0 | M164: 0 | N164: 0
B165: Closing | D165: =D162+D163-D164 -> 25 | E165: =E162+E163-E164 -> 45.11538462 | F165: 59.43348126 | G165: 66.86343543 | H165: 66.1394177 | I165: 55.79379561 | J165: 34.1262515 | K165: 0 | L165: 0 | M165: 0 | N165: 0
B167: Adjusted EBT | D167: =D158+D163-D164 -> 0 | E167: =E158+E163-E164 -> 0 | F167: 0 | G167: 0 | H167: 0 | I167: 0 | J167: 0 | K167: 0.8317633765 | L167: 48.8824859 | M167: 66.03198648 | N167: 85.89727019
B168: Taxes Paid on OB | C168: =C159 -> 0.255 | D168: =$C$168*D167 -> 0 | E168: 0 | F168: 0 | G168: 0 | H168: 0 | I168: 0 | J168: 0 | K168: 0.212099661 | L168: 12.4650339 | M168: 16.83815655 | N168: 21.9038039
B169: Effective Tax Rate | D169: =D168/D158 -> 0 | E169: =E168/E158 -> 0 | F169: 0 | G169: 0 | H169: 0 | I169: 0 | J169: 0 | K169: 0.006301383084 | L169: 0.255 | M169: 0.255 | N169: 0.255
B171: EBT with Average Balance | D171: =D158+D152 -> -24.87179487 | E171: =E158+E152 -> -19.99342538 | F171: -14.1725754 | G171: -7.257066443 | H171: 0.9286609184 | I171: 10.58708263 | J171: 21.9516585 | K171: 35.28580993 | L171: 50.57443475 | M171: 68.04940668 | N171: 88.29170316
B172: NOL with Average Balance
B173: Opening Balance | D173: =C176 -> 0 | E173: =D176 -> 24.87179487 | F173: 44.86522025 | G173: 59.03779565 | H173: 66.29486209 | I173: 65.36620117 | J173: 54.77911854 | K173: 32.82746004 | L173: 0 | M173: 0 | N173: 0
B174: Add: Losses | D174: =MAX(-D171,0) -> 24.87179487 | E174: =MAX(-E171,0) -> 19.99342538 | F174: 14.1725754 | G174: 7.257066443 | H174: 0 | I174: 0 | J174: 0 | K174: 0 | L174: 0 | M174: 0 | N174: 0
B175: Less: Used | D175: =MAX(MIN(D171,D173),0) -> 0 | E175: =MAX(MIN(E171,E173),0) -> 0 | F175: 0 | G175: 0 | H175: 0.9286609184 | I175: 10.58708263 | J175: 21.9516585 | K175: 32.82746004 | L175: 0 | M175: 0 | N175: 0
B176: Closing Balance | D176: =D173+D174-D175 -> 24.87179487 | E176: =E173+E174-E175 -> 44.86522025 | F176: 59.03779565 | G176: 66.29486209 | H176: 65.36620117 | I176: 54.77911854 | J176: 32.82746004 | K176: 0 | L176: 0 | M176: 0 | N176: 0
B178: Adjusted EBT | D178: =D171+D174-D175 -> 0 | E178: =E171+E174-E175 -> 0 | F178: 0 | G178: 0 | H178: 0 | I178: 0 | J178: 0 | K178: 2.45834989 | L178: 50.57443475 | M178: 68.04940668 | N178: 88.29170316
B179: Taxes Paid with Average | D179: =D178*$C$168 -> 0 | E179: =E178*$C$168 -> 0 | F179: 0 | G179: 0 | H179: 0 | I179: 0 | J179: 0 | K179: 0.6268792218 | L179: 12.89648086 | M179: 17.3525987 | N179: 22.51438431
B180: Actual Rate | D180: =D179/D171 -> 0 | E180: =E179/E171 -> 0 | F180: 0 | G180: 0 | H180: 0 | I180: 0 | J180: 0 | K180: 0.01776575975 | L180: 0.255 | M180: 0.255 | N180: 0.255
B182: Incremental Iterest | D182: =D151-D150 -> -0.1282051282 | E182: =E151-E150 -> -0.2501643655 | F182: -0.3956856151 | G182: -0.5685733389 | H182: -0.773216523 | I182: -1.014677066 | J182: -1.298791463 | K182: -1.626586513 | L182: -1.691948847 | M182: -2.017420199 | N182: -2.394432971
B183: Incremental Taxes | D183: =D182*$C$168 -> -0.03269230769 | E183: =E182*$C$168 -> -0.06379191321 | F183: -0.1008998318 | G183: -0.1449862014 | H183: -0.1971702134 | I183: -0.2587426518 | J183: -0.331191823 | K183: -0.4147795608 | L183: -0.431446956 | M183: -0.5144421508 | N183: -0.6105804077
B185: Increment to NOL | D185: =IF(D163,D183,0) -> -0.03269230769 | E185: =IF(E163,E183,0) -> -0.06379191321 | F185: -0.1008998318 | G185: -0.1449862014 | H185: 0 | I185: 0 | J185: 0 | K185: 0 | L185: 0 | M185: 0 | N185: 0
B186: Increment to NOL Used | D186: =IF(D164,D183,0) -> 0 | E186: =IF(E164,E183,0) -> 0 | F186: 0 | G186: 0 | H186: -0.1971702134 | I186: -0.2587426518 | J186: -0.331191823 | K186: -0.4147795608 | L186: 0 | M186: 0 | N186: 0
B187: Increment to Taxes Paid | D187: =D183-D185-D186 -> 0 | E187: =E183-E185-E186 -> 0 | F187: 0 | G187: 0 | H187: 0 | I187: 0 | J187: 0 | K187: 0 | L187: -0.431446956 | M187: -0.5144421508 | N187: -0.6105804077
B189: EBITDA | D189: =D143 -> 30 | E189: =E143 -> 34.5 | F189: 39.675 | G189: 45.62625 | H189: 52.4701875 | I189: 60.34071562 | J189: 69.39182297 | K189: 79.80059641 | L189: 91.77068588 | M189: 105.5362888 | N189: 121.3667321
B190: Less: Taxes | D190: =D179 -> 0 | E190: =E179 -> 0 | F190: 0 | G190: 0 | H190: 0 | I190: 0 | J190: 0 | K190: 0.6268792218 | L190: 12.89648086 | M190: 17.3525987 | N190: 22.51438431
B191: Less: Incr Taxes
B192: Less: Interest | D192: =D151 -> 24.87179487 | E192: =E151 -> 24.49342538 | F192: 23.8475754 | G192: 22.88331644 | H192: 21.54152658 | I192: 19.75363299 | J192: 17.44016446 | K192: 14.51478649 | L192: 11.19625113 | M192: 7.486882082 | N192: 3.075028911
B193: Sub-total | D193: =D189-D190-D192+D191 -> 5.128205128 | E193: =E189-E190-E192+E191 -> 10.00657462 | F193: 15.8274246 | G193: 22.74293356 | H193: 30.92866092 | I193: 40.58708263 | J193: 51.9516585 | K193: 64.6589307 | L193: 67.67795389 | M193: 80.69680797 | N193: 95.77731885
B194: Less: Sweep | D194: =MIN(D146,sweep_taxes(D155,D149,D169,D156,D150)) -> 5.128205128 | E194: =MIN(E146,sweep_taxes(E155,E149,E169,E156,E150)) -> 10.00657462 | F194: 15.8274246 | G194: 22.74293356 | H194: 30.92866092 | I194: 40.58708263 | J194: 51.9516585 | K194: 65.06346052 | L194: 67.67795389 | M194: 80.69680797 | N194: 95.77731885
B195: Remainder | D195: =D193-D194 -> 0 | E195: 0 | F195: 0 | G195: 0 | H195: 0 | I195: 0 | J195: 0 | K195: -0.4045298161 | L195: 0 | M195: 0 | N195: 0
B197: Check | D197: =MIN(D193,D146) -> 5.128205128 | E197: =MIN(E193,E146) -> 10.00657462 | F197: 15.8274246 | G197: 22.74293356 | H197: 30.92866092 | I197: 40.58708263 | J197: 51.9516585 | K197: 64.6589307 | L197: 67.67795389 | M197: 80.69680797 | N197: 95.77731885
B198: Difference | D198: =D197-D194 -> 0 | E198: 0 | F198: 0 | G198: 0 | H198: 0 | I198: 0 | J198: 0 | K198: -0.4045298161 | L198: 0 | M198: 0 | N198: 0
B200: Sweep | D200: =sweep(D189,D149,D146) -> 5.128205128 | E200: =sweep(E189,E149,E146) -> 10.00657462 | F200: 15.8274246 | G200: 22.74293356 | H200: 30.92866092 | I200: 40.58708263 | J200: 51.9516585 | K200: 65.29151119 | L200: 80.90511374 | M200: 98.4943451 | N200: 118.8689951
B203: Put in function
D204: Incr int not defined yet
D205: EBT = EBITDA - dep - int open - incr int
D206: Loss_input = MAX(-ebt,0)
D207: use = Min(ob,EBT)
D208: EBT_Adj = EBT + loss - use
D209: Taxes_paid = EBT_Adj * t
D210: eff_t = taxes_paid/EBT
A212: sweep_taxes
B214: Growth | C214: 0.25
B215: Tax Rate | C215: 0.255
B216: Ebitda | D216: 30 | E216: =D216*(1+C214) -> 37.5 | F216: =E216*(1+C214) -> 46.875 | G216: =F216*(1+C214) -> 58.59375 | H216: =G216*(1+C214) -> 73.2421875 | I216: =H216*(1+C214) -> 91.55273438 | J216: =I216*(1+C214) -> 114.440918 | K216: =J216*(1+C214) -> 143.0511475 | L216: =K216*(1+C214) -> 178.8139343 | M216: =L216*(1+C214) -> 223.5174179 | N216: =M216*(1+C214) -> 279.3967724
B218: Debt
B219: OB | D219: =C221 -> 500 | E219: =D221 -> 494.8717949 | F219: 481.7882972 | G219: 458.4184663 | H219: 421.8309517 | I219: 368.3431159 | J219: 293.3322661 | K219: 190.9996459 | L219: 66.00840251 | M219: 0 | N219: 0
B220: Less: Sweep | D220: =D249 -> 5.128205128 | E220: =E249 -> 13.0834977 | F220: 23.36983091 | G220: 36.58751455 | H220: 53.48783581 | I220: 75.01084983 | J220: 102.3326202 | K220: 124.9912434 | L220: 66.00840251 | M220: 0 | N220: 0
B221: CB | C221: 500 | D221: =D219-D220 -> 494.8717949 | E221: 481.7882972 | F221: 458.4184663 | G221: 421.8309517 | H221: 368.3431159 | I221: 293.3322661 | J221: 190.9996459 | K221: 66.00840251 | L221: 0 | M221: 0 | N221: 0
B222: Int | D222: 0.05 | E222: =D222 -> 0.05 | F222: =E222 -> 0.05 | G222: 0.05 | H222: 0.05 | I222: 0.05 | J222: 0.05 | K222: 0.05 | L222: 0.05 | M222: 0.05 | N222: 0.05
B223: Interest Expense OB | D223: =D222*D219 -> 25 | E223: 24.74358974 | F223: 24.08941486 | G223: 22.92092331 | H223: 21.09154759 | I223: 18.41715579 | J223: 14.6666133 | K223: 9.549982295 | L223: 3.300420125 | M223: 0 | N223: 0
B224: Interest Expense Average | D224: =AVERAGE(D221,D219)*D222 -> 24.87179487 | E224: =AVERAGE(E221,E219)*E222 -> 24.4165023 | F224: 23.50516909 | G224: 22.00623545 | H224: 19.75435169 | I224: 16.54188455 | J224: 12.1082978 | K224: 6.42520121 | L224: 1.650210063 | M224: 0 | N224: 0
B225: Difference | D225: =D223-D224 -> 0.1282051282 | E225: 0.3270874425 | F225: 0.5842457729 | G225: 0.9146878638 | H225: 1.337195895 | I225: 1.875271246 | J225: 2.558315504 | K225: 3.124781085 | L225: 1.650210063 | M225: 0 | N225: 0
B227: P&L
B228: EBITDA | D228: =D216 -> 30 | E228: =E216 -> 37.5 | F228: 46.875 | G228: 58.59375 | H228: 73.2421875 | I228: 91.55273438 | J228: 114.440918 | K228: 143.0511475 | L228: 178.8139343 | M228: 223.5174179 | N228: 279.3967724
B229: Depreciation | C229: 500 | D229: =C229/10 -> 50 | E229: =D229 -> 50 | F229: =E229 -> 50 | G229: 50 | H229: 50 | I229: 50 | J229: 50 | K229: 50 | L229: 50 | M229: 50 | N229: 50
B230: Interest Average Balance | D230: =D224 -> 24.87179487 | E230: =E224 -> 24.4165023 | F230: 23.50516909 | G230: 22.00623545 | H230: 19.75435169 | I230: 16.54188455 | J230: 12.1082978 | K230: 6.42520121 | L230: 1.650210063 | M230: 0 | N230: 0
B231: EBT Before NOL | D231: =D228-D229-D230 -> -44.87179487 | E231: -36.9165023 | F231: -26.63016909 | G231: -13.41248545 | H231: 3.48783581 | I231: 25.01084983 | J231: 52.33262017 | K231: 86.62594625 | L231: 127.1637243 | M231: 173.5174179 | N231: 229.3967724
B232: Taxes | C232: =C215 -> 0.255 | D232: =D231*$C$106 -> -11.44230769 | E232: -9.413708087 | F232: -6.790693117 | G232: -3.42018379 | H232: 0.8893981315 | I232: 6.377766706 | J232: 13.34481814 | K232: 22.08961629 | L232: 32.42674969 | M232: 44.24694157 | N232: 58.49617696
B234: NOL
B235: Open | D235: =C238 -> 0 | E235: =D238 -> 44.87179487 | F235: 81.78829717 | G235: 108.4184663 | H235: 121.8309517 | I235: 118.3431159 | J235: 93.33226607 | K235: 40.9996459 | L235: 0 | M235: 0 | N235: 0
B236: Add: Losses | D236: =MAX(-D231,0) -> 44.87179487 | E236: =MAX(-E231,0) -> 36.9165023 | F236: 26.63016909 | G236: 13.41248545 | H236: 0 | I236: 0 | J236: 0 | K236: 0 | L236: 0 | M236: 0 | N236: 0
B237: Less: Used | D237: =MAX(MIN(D235,D231),0) -> 0 | E237: =MAX(MIN(E235,E231),0) -> 0 | F237: 0 | G237: 0 | H237: 3.48783581 | I237: 25.01084983 | J237: 52.33262017 | K237: 40.9996459 | L237: 0 | M237: 0 | N237: 0
B238: Closing | D238: =D235+D236-D237 -> 44.87179487 | E238: 81.78829717 | F238: 108.4184663 | G238: 121.8309517 | H238: 118.3431159 | I238: 93.33226607 | J238: 40.9996459 | K238: 0 | L238: 0 | M238: 0 | N238: 0
B240: Adjusted EBT | D240: =D231+D236-D237 -> 0 | E240: 0 | F240: 0 | G240: 0 | H240: 0 | I240: 0 | J240: 0 | K240: 45.62630035 | L240: 127.1637243 | M240: 173.5174179 | N240: 229.3967724
B241: Taxes Paid with Average | D241: =D240*$C$168 -> 0 | E241: 0 | F241: 0 | G241: 0 | H241: 0 | I241: 0 | J241: 0 | K241: 11.63470659 | L241: 32.42674969 | M241: 44.24694157 | N241: 58.49617696
B242: Actual Rate | D242: =D241/D231 -> 0 | E242: 0 | F242: 0 | G242: 0 | H242: 0 | I242: 0 | J242: 0 | K242: 0.13430972 | L242: 0.255 | M242: 0.255 | N242: 0.255
B244: EBITDA | D244: =D216 -> 30 | E244: 37.5 | F244: 46.875 | G244: 58.59375 | H244: 73.2421875 | I244: 91.55273438 | J244: 114.440918 | K244: 143.0511475 | L244: 178.8139343 | M244: 223.5174179 | N244: 279.3967724
B245: Less: Taxes | D245: =D241 -> 0 | E245: =E241 -> 0 | F245: 0 | G245: 0 | H245: 0 | I245: 0 | J245: 0 | K245: 11.63470659 | L245: 32.42674969 | M245: 44.24694157 | N245: 58.49617696
B246: Less: Incr Taxes
B247: Less: Interest | D247: =D224 -> 24.87179487 | E247: 24.4165023 | F247: 23.50516909 | G247: 22.00623545 | H247: 19.75435169 | I247: 16.54188455 | J247: 12.1082978 | K247: 6.42520121 | L247: 1.650210063 | M247: 0 | N247: 0
B248: Sub-total | D248: =D244-D245-D247+D246 -> 5.128205128 | E248: 13.0834977 | F248: 23.36983091 | G248: 36.58751455 | H248: 53.48783581 | I248: 75.01084983 | J248: 102.3326202 | K248: 124.9912397 | L248: 144.7369746 | M248: 179.2704763 | N248: 220.9005954
B249: Less: Sweep | D249: =MIN(D219,D257) -> 5.128205128 | E249: =MIN(E219,E257) -> 13.0834977 | F249: 23.36983091 | G249: 36.58751455 | H249: 53.48783581 | I249: 75.01084983 | J249: 102.3326202 | K249: 124.9912434 | L249: 66.00840251 | M249: 0 | N249: 0
B250: Remainder | D250: =D248-D249 -> 0 | E250: 0 | F250: 0 | G250: 0 | H250: 0 | I250: 0 | J250: 0 | K250: -3.732620797e-06 | L250: 78.72857207 | M250: 179.2704763 | N250: 220.9005954
... 5 more rows

Sheet Circular Corporate
A2: Notes: Could include adjustment for minority interest
A3: notes: Anything variable in I/S that affects taxes and anything that is not sub-total in cash flow statement must be in function
A4: Note: by the tme get to I/S or the cash flow the items are virtually always the same: EBITDA, Interest Expense, Interest Income etc.
A5: Note: Can have mini loop for items that seem impossible to resolve
A6: Note: Create cash flow waterfall
A8: Corporate Model with Openin Balance
B10: Operating Cash Balance
D11: Required Cash Balance as Pct of EBITDA | E11: 0.05 | F11: =$E11*F43 -> 1.8 | G11: 2.16 | H11: 2.592 | I11: 3.1104 | J11: 3.73248 | K11: 4.478976 | L11: 5.3747712 | M11: 6.44972544 | N11: 7.739670528 | O11: 9.287604634 | P11: 11.14512556 | Q11: 13.37415067
D12: Less: Opening Balance | F12: =F15 -> 1.7 | G12: =G15 -> 1.8 | H12: 2.16 | I12: 2.592 | J12: 3.1104 | K12: 3.73248 | L12: 4.478976 | M12: 5.3747712 | N12: 6.44972544 | O12: 7.739670528 | P12: 9.287604634 | Q12: 11.14512556
D13: Required Added Cash | F13: =F11-F12 -> 0.1 | G13: =G11-G12 -> 0.36 | H13: 0.432 | I13: 0.5184 | J13: 0.62208 | K13: 0.746496 | L13: 0.8957952 | M13: 1.07495424 | N13: 1.289945088 | O13: 1.547934106 | P13: 1.857520927 | Q13: 2.229025112
D15: Opening Balance | F15: =E17 -> 1.7 | G15: =F17 -> 1.8 | H15: 2.16 | I15: 2.592 | J15: 3.1104 | K15: 3.73248 | L15: 4.478976 | M15: 5.3747712 | N15: 6.44972544 | O15: 7.739670528 | P15: 9.287604634 | Q15: 11.14512556
D16: Add: New Cash | F16: =F13 -> 0.1 | G16: =G13 -> 0.36 | H16: 0.432 | I16: 0.5184 | J16: 0.62208 | K16: 0.746496 | L16: 0.8957952 | M16: 1.07495424 | N16: 1.289945088 | O16: 1.547934106 | P16: 1.857520927 | Q16: 2.229025112
D17: Closing Balance | E17: 1.7 | F17: =SUM(F15:F16) -> 1.8 | G17: =SUM(G15:G16) -> 2.16 | H17: 2.592 | I17: 3.1104 | J17: 3.73248 | K17: 4.478976 | L17: 5.3747712 | M17: 6.44972544 | N17: 7.739670528 | O17: 9.287604634 | P17: 11.14512556 | Q17: 13.37415067
D18: Interest Income Rate | E18: 0.03 | F18: =E18 -> 0.03 | G18: =F18 -> 0.03 | H18: 0.03 | I18: 0.03 | J18: 0.03 | K18: 0.03 | L18: 0.03 | M18: 0.03 | N18: 0.03 | O18: 0.03 | P18: 0.03 | Q18: 0.03
D19: Interest Income on Average Balance | F19: =F18*AVERAGE(F17,F15) -> 0.0525 | G19: =G18*AVERAGE(G17,G15) -> 0.0594 | H19: 0.07128 | I19: 0.085536 | J19: 0.1026432 | K19: 0.12317184 | L19: 0.147806208 | M19: 0.1773674496 | N19: 0.2128409395 | O19: 0.2554091274 | P19: 0.3064909529 | Q19: 0.3677891435
B21: Surplus Cash Balance
D22: Opening Balance | F22: =E25 -> 20 | G22: =F25 -> 0 | H22: 0 | I22: 0 | J22: 0 | K22: 0 | L22: 0 | M22: 0 | N22: 0 | O22: 0 | P22: 0 | Q22: 0
D23: Add: New Cash from Positive Cash Flow | F23: =F84 -> 0 | G23: =G84 -> 0 | H23: 0 | I23: 0 | J23: 0 | K23: 0 | L23: 0 | M23: 0 | N23: 0 | O23: 0 | P23: 0 | Q23: 0
D24: Less: Removal of Cash for Negative Cash Flow | F24: =F80 -> 20 | G24: =G80 -> 0 | H24: 0 | I24: 0 | J24: 0 | K24: 0 | L24: 0 | M24: 0 | N24: 0 | O24: 0 | P24: 0 | Q24: 0
D25: Closing Balance | E25: 20 | F25: =F22+F23-F24 -> 0 | G25: =G22+G23-G24 -> 0 | H25: 0 | I25: 0 | J25: 0 | K25: 0 | L25: 0 | M25: 0 | N25: 0 | O25: 0 | P25: 0 | Q25: 0
D26: Interest Income Rate | E26: 0.035 | F26: =E26 -> 0.035 | G26: =F26 -> 0.035 | H26: 0.035 | I26: 0.035 | J26: 0.035 | K26: 0.035 | L26: 0.035 | M26: 0.035 | N26: 0.035 | O26: 0.035 | P26: 0.035 | Q26: 0.035
D27: Interest Income on Opening Balance | F27: =F26*F22 -> 0.7 | G27: =G26*G22 -> 0 | H27: 0 | I27: 0 | J27: 0 | K27: 0 | L27: 0 | M27: 0 | N27: 0 | O27: 0 | P27: 0 | Q27: 0
D28: Interest Income on Average Balance | F28: =F27 -> 0.7 | G28: =G27 -> 0 | H28: 0 | I28: 0 | J28: 0 | K28: 0 | L28: 0 | M28: 0 | N28: 0 | O28: 0 | P28: 0 | Q28: 0
B30: Short-term Debt Balance
D31: Opening Balance | F31: =E34 -> 200 | G31: =F34 -> 205.495 | H31: 225.01095 | I31: 236.9109375 | J31: 241.0009695 | K31: 240.275892 | L31: 234.4352821 | M31: 225.6132197 | N31: 210.3937698 | O31: 187.4284236 | P31: 155.097942 | Q31: 111.4581941
D32: Add: New Debt from Deficit Cash Flow | F32: =F83 -> 5.495 | G32: =G83 -> 19.51595 | H32: 11.8999875 | I32: 4.090031986 | J32: 0 | K32: 0 | L32: 0 | M32: 0 | N32: 0 | O32: 0 | P32: 0 | Q32: 0
D33: Less: Retired Debt from Positive Cash Flow | F33: =F81 -> 0 | G33: =G81 -> 0 | H33: 0 | I33: 0 | J33: 0.7250774539 | K33: 5.840609904 | L33: 8.822062452 | M33: 15.2194499 | N33: 22.96534617 | O33: 32.33048159 | P33: 43.63974788 | Q33: 57.28303066
D34: Closing Balance | E34: 200 | F34: =F31+F32-F33 -> 205.495 | G34: =G31+G32-G33 -> 225.01095 | H34: 236.9109375 | I34: 241.0009695 | J34: 240.275892 | K34: 234.4352821 | L34: 225.6132197 | M34: 210.3937698 | N34: 187.4284236 | O34: 155.097942 | P34: 111.4581941 | Q34: 54.17516347
D35: Interest Expense Rate | E35: 0.05 | F35: =E35 -> 0.05 | G35: =F35 -> 0.05 | H35: 0.05 | I35: 0.05 | J35: 0.05 | K35: 0.05 | L35: 0.05 | M35: 0.05 | N35: 0.05 | O35: 0.05 | P35: 0.05 | Q35: 0.05
D36: Interest Expense on Opening Balance | F36: =F35*F31 -> 10 | G36: =G35*G31 -> 10.27475 | H36: 11.2505475 | I36: 11.84554688 | J36: 12.05004847 | K36: 12.0137946 | L36: 11.72176411 | M36: 11.28066098 | N36: 10.51968849 | O36: 9.37142118 | P36: 7.7548971 | Q36: 5.572909706
D37: Interest Expense on Average Balance | F37: =F36 -> 10 | G37: =G36 -> 10.27475 | H37: 11.2505475 | I37: 11.84554688 | J37: 12.05004847 | K37: 12.0137946 | L37: 11.72176411 | M37: 11.28066098 | N37: 10.51968849 | O37: 9.37142118 | P37: 7.7548971 | Q37: 5.572909706
A39: Profit and Loss Statement
D41: Growth Rate | E41: 0.2
D43: EBITDA | E43: 30 | F43: =E43*(1+$E$41) -> 36 | G43: =F43*(1+$E$41) -> 43.2 | H43: 51.84 | I43: 62.208 | J43: 74.6496 | K43: 89.57952 | L43: 107.495424 | M43: 128.9945088 | N43: 154.7934106 | O43: 185.7520927 | P43: 222.9025112 | Q43: 267.4830134
D44: Depreciation | E44: 300 | F44: =E44/11 -> 27.27272727 | G44: =F44 -> 27.27272727 | H44: =G44 -> 27.27272727 | I44: 27.27272727 | J44: 27.27272727 | K44: 27.27272727 | L44: 27.27272727 | M44: 27.27272727 | N44: 27.27272727 | O44: 27.27272727 | P44: 27.27272727 | Q44: 27.27272727
D45: EBIT | F45: =F43-F44 -> 8.727272727 | G45: =G43-G44 -> 15.92727273 | H45: 24.56727273 | I45: 34.93527273 | J45: 47.37687273 | K45: 62.30679273 | L45: 80.22269673 | M45: 101.7217815 | N45: 127.5206833 | O45: 158.4793654 | P45: 195.6297839 | Q45: 240.2102862
D46: Less: Interest Expense on Short-term | F46: =F37 -> 10 | G46: =G37 -> 10.27475 | H46: 11.2505475 | I46: 11.84554688 | J46: 12.05004847 | K46: 12.0137946 | L46: 11.72176411 | M46: 11.28066098 | N46: 10.51968849 | O46: 9.37142118 | P46: 7.7548971 | Q46: 5.572909706
D47: Less: Other Interest Expense | F47: 20 | G47: 20 | H47: 20 | I47: 20 | J47: 20 | K47: 20 | L47: 20 | M47: 20 | N47: 20 | O47: 20 | P47: 20 | Q47: 20
D48: Add: Interest Income on Operating Cash | F48: =F19 -> 0.0525 | G48: =G19 -> 0.0594 | H48: 0.07128 | I48: 0.085536 | J48: 0.1026432 | K48: 0.12317184 | L48: 0.147806208 | M48: 0.1773674496 | N48: 0.2128409395 | O48: 0.2554091274 | P48: 0.3064909529 | Q48: 0.3677891435
D49: Add: Interest Income on Surplus | F49: =F28 -> 0.7 | G49: =G28 -> 0 | H49: 0 | I49: 0 | J49: 0 | K49: 0 | L49: 0 | M49: 0 | N49: 0 | O49: 0 | P49: 0 | Q49: 0
D50: EBT Before NOL | F50: =F45-F46-F47+F48+F49 -> -20.52022727 | G50: =G45-G46-G47+G48+G49 -> -14.28807727 | H50: -6.611994773 | I50: 3.175261852 | J50: 15.42946745 | K50: 30.41616997 | L50: 48.64873883 | M50: 70.61848799 | N50: 97.21383574 | O50: 129.3633533 | P50: 168.1813778 | Q50: 215.0051656
D52: NOL Opening Balance
D53: Opening Balance | F53: =E56 -> 0 | G53: =F56 -> 20.52022727 | H53: 34.80830455 | I53: 41.42029932 | J53: 38.24503747 | K53: 22.81557001 | L53: 0 | M53: 0 | N53: 0 | O53: 0 | P53: 0 | Q53: 0
D54: Add: NOL Created | F54: =MAX(-F50,0) -> 20.52022727 | G54: =MAX(-G50,0) -> 14.28807727 | H54: 6.611994773 | I54: 0 | J54: 0 | K54: 0 | L54: 0 | M54: 0 | N54: 0 | O54: 0 | P54: 0 | Q54: 0
D55: Less: NOL Used | F55: =MIN(F53,MAX(F50,0)) -> 0 | G55: =MIN(G53,MAX(G50,0)) -> 0 | H55: 0 | I55: 3.175261852 | J55: 15.42946745 | K55: 22.81557001 | L55: 0 | M55: 0 | N55: 0 | O55: 0 | P55: 0 | Q55: 0
D56: Closing Balance | F56: =F53+F54-F55 -> 20.52022727 | G56: =G53+G54-G55 -> 34.80830455 | H56: 41.42029932 | I56: 38.24503747 | J56: 22.81557001 | K56: 0 | L56: 0 | M56: 0 | N56: 0 | O56: 0 | P56: 0 | Q56: 0
D58: EBT After NOL | F58: =F50+F54-F55 -> 0 | G58: =G50+G54-G55 -> 0 | H58: 0 | I58: 0 | J58: 0 | K58: 7.600599953 | L58: 48.64873883 | M58: 70.61848799 | N58: 97.21383574 | O58: 129.3633533 | P58: 168.1813778 | Q58: 215.0051656
D59: Tax Rate | E59: 0.255 | F59: =E59 -> 0.255 | G59: =F59 -> 0.255 | H59: 0.255 | I59: 0.255 | J59: 0.255 | K59: 0.255 | L59: 0.255 | M59: 0.255 | N59: 0.255 | O59: 0.255 | P59: 0.255 | Q59: 0.255
D60: Taxes Paid | F60: =F59*F58 -> 0 | G60: =G59*G58 -> 0 | H60: 0 | I60: 0 | J60: 0 | K60: 1.938152988 | L60: 12.4054284 | M60: 18.00771444 | N60: 24.78952811 | O60: 32.9876551 | P60: 42.88625134 | Q60: 54.82631723
D62: Net Income | F62: =F50-F60 -> -20.52022727 | G62: =G50-G60 -> -14.28807727 | H62: -6.611994773 | I62: 3.175261852 | J62: 15.42946745 | K62: 28.47801698 | L62: 36.24331043 | M62: 52.61077355 | N62: 72.42430762 | O62: 96.37569824 | P62: 125.2951265 | Q62: 160.1788484
A64: Cash Flow Statement
D66: EBITDA | F66: =F43 -> 36 | G66: =G43 -> 43.2 | H66: 51.84 | I66: 62.208 | J66: 74.6496 | K66: 89.57952 | L66: 107.495424 | M66: 128.9945088 | N66: 154.7934106 | O66: 185.7520927 | P66: 222.9025112 | Q66: 267.4830134
D67: Less: WC Changes | F67: 2.2 | G67: =F67 -> 2.2 | H67: =G67 -> 2.2 | I67: 2.2 | J67: 2.2 | K67: 2.2 | L67: 2.2 | M67: 2.2 | N67: 2.2 | O67: 2.2 | P67: 2.2 | Q67: 2.2
D68: Less: Capital Expenditures | F68: 30 | G68: =F68 -> 30 | H68: =G68 -> 30 | I68: 30 | J68: 30 | K68: 30 | L68: 30 | M68: 30 | N68: 30 | O68: 30 | P68: 30 | Q68: 30
D69: Less: Taxes Paid | F69: =F60 -> 0 | G69: =G60 -> 0 | H69: 0 | I69: 0 | J69: 0 | K69: 1.938152988 | L69: 12.4054284 | M69: 18.00771444 | N69: 24.78952811 | O69: 32.9876551 | P69: 42.88625134 | Q69: 54.82631723
D70: Cash Flow from Operations | F70: =F66-F67-F68-F69 -> 3.8 | G70: =G66-G67-G68-G69 -> 11 | H70: 19.64 | I70: 30.008 | J70: 42.4496 | K70: 55.44136701 | L70: 62.8899956 | M70: 78.78679436 | N70: 97.80388245 | O70: 120.5644376 | P70: 147.8162599 | Q70: 180.4566962
D71: Add: Interest Income on Cash | F71: =F48 -> 0.0525 | G71: =G48 -> 0.0594 | H71: 0.07128 | I71: 0.085536 | J71: 0.1026432 | K71: 0.12317184 | L71: 0.147806208 | M71: 0.1773674496 | N71: 0.2128409395 | O71: 0.2554091274 | P71: 0.3064909529 | Q71: 0.3677891435
D72: Less: Interest Expense on New Debt | F72: =F46 -> 10 | G72: =G46 -> 10.27475 | H72: 11.2505475 | I72: 11.84554688 | J72: 12.05004847 | K72: 12.0137946 | L72: 11.72176411 | M72: 11.28066098 | N72: 10.51968849 | O72: 9.37142118 | P72: 7.7548971 | Q72: 5.572909706
D73: Less: Other Interest Expense | F73: =F47 -> 20 | G73: =G47 -> 20 | H73: 20 | I73: 20 | J73: 20 | K73: 20 | L73: 20 | M73: 20 | N73: 20 | O73: 20 | P73: 20 | Q73: 20
D74: Add: Interest Income on Operating Cash | F74: =F48 -> 0.0525 | G74: =G48 -> 0.0594 | H74: 0.07128 | I74: 0.085536 | J74: 0.1026432 | K74: 0.12317184 | L74: 0.147806208 | M74: 0.1773674496 | N74: 0.2128409395 | O74: 0.2554091274 | P74: 0.3064909529 | Q74: 0.3677891435
D75: Add: Interest Income on Surplus Cash | F75: =F49 -> 0.7 | G75: =G49 -> 0 | H75: 0 | I75: 0 | J75: 0 | K75: 0 | L75: 0 | M75: 0 | N75: 0 | O75: 0 | P75: 0 | Q75: 0
D76: Less: Dividends | E76: 0.6 | F76: =MAX($E$76*F62,0) -> 0 | G76: =MAX($E$76*G62,0) -> 0 | H76: 0 | I76: 1.905157111 | J76: 9.257680472 | K76: 17.08681019 | L76: 21.74598626 | M76: 31.56646413 | N76: 43.45458457 | O76: 57.82541895 | P76: 75.17707587 | Q76: 96.10730903
D77: Cash Flow after Dividends | F77: =F70+F71-F72-F73+F74+F75-F76 -> -25.395 | G77: =G70+G71-G72-G73+G74+G75-G76 -> -19.15595 | H77: -11.4679875 | I77: -3.571631986 | J77: 1.347157454 | K77: 6.587105904 | L77: 9.717857652 | M77: 16.29440414 | N77: 24.25529126 | O77: 33.8784157 | P77: 45.49726881 | Q77: 59.51205577
D78: Less: Required Cash for Operations | F78: =F16 -> 0.1 | G78: =G16 -> 0.36 | H78: 0.432 | I78: 0.5184 | J78: 0.62208 | K78: 0.746496 | L78: 0.8957952 | M78: 1.07495424 | N78: 1.289945088 | O78: 1.547934106 | P78: 1.857520927 | Q78: 2.229025112
D79: Remaining Cash Flow | F79: =F77-F78 -> -25.495 | G79: =G77-G78 -> -19.51595 | H79: -11.8999875 | I79: -4.090031986 | J79: 0.7250774539 | K79: 5.840609904 | L79: 8.822062452 | M79: 15.2194499 | N79: 22.96534617 | O79: 32.33048159 | P79: 43.63974788 | Q79: 57.28303066
D80: Add: Withdrawl from Surplus Cash when Negative | F80: =MIN(MAX(-F79,0),F22) -> 20 | G80: =MIN(MAX(-G79,0),G22) -> 0 | H80: 0 | I80: 0 | J80: 0 | K80: 0 | L80: 0 | M80: 0 | N80: 0 | O80: 0 | P80: 0 | Q80: 0
D81: Less: Reduction from Short-term Debt when Positive | F81: =MIN(MAX(F79,0),F31) -> 0 | G81: =MIN(MAX(G79,0),G31) -> 0 | H81: 0 | I81: 0 | J81: 0.7250774539 | K81: 5.840609904 | L81: 8.822062452 | M81: 15.2194499 | N81: 22.96534617 | O81: 32.33048159 | P81: 43.63974788 | Q81: 57.28303066
D82: Remaining Cash Flow | F82: =F79+F80-F81 -> -5.495 | G82: =G79+G80-G81 -> -19.51595 | H82: -11.8999875 | I82: -4.090031986 | J82: 0 | K82: 0 | L82: 0 | M82: 0 | N82: 0 | O82: 0 | P82: 0 | Q82: 0
D83: Add: Issuance of New Debt when Negative | F83: =MAX(-F82,0) -> 5.495 | G83: =MAX(-G82,0) -> 19.51595 | H83: 11.8999875 | I83: 4.090031986 | J83: 0 | K83: 0 | L83: 0 | M83: 0 | N83: 0 | O83: 0 | P83: 0 | Q83: 0
D84: Less: Addition to Cash Balance when Positive | F84: =MAX(F82,0) -> 0 | G84: =MAX(G82,0) -> 0 | H84: 0 | I84: 0 | J84: 0 | K84: 0 | L84: 0 | M84: 0 | N84: 0 | O84: 0 | P84: 0 | Q84: 0
D85: Remainder | F85: =F82+F83-F84 -> 0 | G85: =G82+G83-G84 -> 0 | H85: 0 | I85: 0 | J85: 0 | K85: 0 | L85: 0 | M85: 0 | N85: 0 | O85: 0 | P85: 0 | Q85: 0
A92: Corporate Model
B94: Operating Cash Balance
D95: Required Cash Balance as Pct of EBITDA | E95: 0.3 | F95: =$E95*F127 -> 10.8 | G95: 12.96 | H95: 15.552 | I95: 18.6624 | J95: 22.39488 | K95: 26.873856 | L95: 32.2486272 | M95: 38.69835264 | N95: 46.43802317 | O95: 55.7256278 | P95: 66.87075336 | Q95: 80.24490403
D96: Less: Opening Balance | F96: =F99 -> 10 | G96: =G99 -> 10.8 | H96: 12.96 | I96: 15.552 | J96: 18.6624 | K96: 22.39488 | L96: 26.873856 | M96: 32.2486272 | N96: 38.69835264 | O96: 46.43802317 | P96: 55.7256278 | Q96: 66.87075336
D97: Required Added Cash | F97: =F95-F96 -> 0.8 | G97: 2.16 | H97: 2.592 | I97: 3.1104 | J97: 3.73248 | K97: 4.478976 | L97: 5.3747712 | M97: 6.44972544 | N97: 7.739670528 | O97: 9.287604634 | P97: 11.14512556 | Q97: 13.37415067
D99: Opening Balance | F99: =E101 -> 10 | G99: =F101 -> 10.8 | H99: 12.96 | I99: 15.552 | J99: 18.6624 | K99: 22.39488 | L99: 26.873856 | M99: 32.2486272 | N99: 38.69835264 | O99: 46.43802317 | P99: 55.7256278 | Q99: 66.87075336
D100: Add: New Cash | F100: =F97 -> 0.8 | G100: =G97 -> 2.16 | H100: 2.592 | I100: 3.1104 | J100: 3.73248 | K100: 4.478976 | L100: 5.3747712 | M100: 6.44972544 | N100: 7.739670528 | O100: 9.287604634 | P100: 11.14512556 | Q100: 13.37415067
D101: Closing Balance | E101: 10 | F101: =SUM(F99:F100) -> 10.8 | G101: 12.96 | H101: 15.552 | I101: 18.6624 | J101: 22.39488 | K101: 26.873856 | L101: 32.2486272 | M101: 38.69835264 | N101: 46.43802317 | O101: 55.7256278 | P101: 66.87075336 | Q101: 80.24490403
D102: Interest Income Rate | E102: 0.02 | F102: =E102 -> 0.02 | G102: =F102 -> 0.02 | H102: 0.02 | I102: 0.02 | J102: 0.02 | K102: 0.02 | L102: 0.02 | M102: 0.02 | N102: 0.02 | O102: 0.02 | P102: 0.02 | Q102: 0.02
D103: Interest Income on Average Balance | F103: =F102*AVERAGE(F101,F99) -> 0.208 | G103: 0.2376 | H103: 0.28512 | I103: 0.342144 | J103: 0.4105728 | K103: 0.49268736 | L103: 0.591224832 | M103: 0.7094697984 | N103: 0.8513637581 | O103: 1.02163651 | P103: 1.225963812 | Q103: 1.471156574
B105: Surplus Cash Balance
D106: Opening Balance | F106: =E109 -> 150 | G106: =F109 -> 150 | H106: 136.3522856 | I106: 130.7190797 | J106: 130.7190797 | K106: 130.7190797 | L106: 130.7190797 | M106: 130.7190797 | N106: 140.3073303 | O106: 243.0038235 | P106: 378.255692 | Q106: 552.8782153
D107: Add: New Cash from Positive Cash Flow | F107: =F167 -> 0 | G107: =G167 -> 0 | H107: 0 | I107: 0 | J107: 0 | K107: 0 | L107: 0 | M107: 9.588250589 | N107: 102.6964932 | O107: 135.2518685 | P107: 174.6225233 | Q107: 222.1792149
D108: Less: Removal of Cash for Negative Cash Flow | F108: =F163 -> 0 | G108: =G163 -> 13.64771438 | H108: 5.633205882 | I108: 0 | J108: 0 | K108: 0 | L108: 0 | M108: 0 | N108: 0 | O108: 0 | P108: 0 | Q108: 0
D109: Closing Balance | E109: 150 | F109: =F106+F107-F108 -> 150 | G109: 136.3522856 | H109: 130.7190797 | I109: 130.7190797 | J109: 130.7190797 | K109: 130.7190797 | L109: 130.7190797 | M109: 140.3073303 | N109: 243.0038235 | O109: 378.255692 | P109: 552.8782153 | Q109: 775.0574303
D110: Interest Income Rate | E110: 0.025 | F110: =E110 -> 0.025 | G110: =F110 -> 0.025 | H110: 0.025 | I110: 0.025 | J110: 0.025 | K110: 0.025 | L110: 0.025 | M110: 0.025 | N110: 0.025 | O110: 0.025 | P110: 0.025 | Q110: 0.025
D111: Interest Income on Opening Balance | F111: =F110*F106 -> 3.75 | G111: 3.75 | H111: 3.408807141 | I111: 3.267976993 | J111: 3.267976993 | K111: 3.267976993 | L111: 3.267976993 | M111: 3.267976993 | N111: 3.507683258 | O111: 6.075095589 | P111: 9.456392301 | Q111: 13.82195538
D112: Interest Income on Average Balance | F112: =AVERAGE(F109,F106)*F110 -> 3.75 | G112: =AVERAGE(G109,G106)*G110 -> 3.57940357 | H112: 3.338392067 | I112: 3.267976993 | J112: 3.267976993 | K112: 3.267976993 | L112: 3.267976993 | M112: 3.387830126 | N112: 4.791389423 | O112: 7.765743945 | P112: 11.63917384 | Q112: 16.59919557
B114: Short-term Debt Balance
D115: Opening Balance | F115: =E118 -> 200 | G115: =F118 -> 170.094359 | H115: 170.094359 | I115: 170.094359 | J115: 165.7835866 | K115: 149.058981 | L115: 116.8453817 | M115: 65.42221708 | N115: 0 | O115: 0 | P115: 0 | Q115: 0
D116: Add: New Debt from Deficit Cash Flow | F116: =F166 -> 0 | G116: =G166 -> 0 | H116: 0 | I116: 0 | J116: 0 | K116: 0 | L116: 0 | M116: 0 | N116: 0 | O116: 0 | P116: 0 | Q116: 0
D117: Less: Retired Debt from Positive Cash Flow | F117: =F164 -> 29.90564103 | G117: =G164 -> 0 | H117: 0 | I117: 4.310772354 | J117: 16.7246056 | K117: 32.21359928 | L117: 51.42316466 | M117: 65.42221708 | N117: 0 | O117: 0 | P117: 0 | Q117: 0
D118: Closing Balance | E118: 200 | F118: =F115+F116-F117 -> 170.094359 | G118: 170.094359 | H118: 170.094359 | I118: 165.7835866 | J118: 149.058981 | K118: 116.8453817 | L118: 65.42221708 | M118: 0 | N118: 0 | O118: 0 | P118: 0 | Q118: 0
D119: Interest Expense Rate | E119: 0.05 | F119: =E119 -> 0.05 | G119: =F119 -> 0.05 | H119: 0.05 | I119: 0.05 | J119: 0.05 | K119: 0.05 | L119: 0.05 | M119: 0.05 | N119: 0.05 | O119: 0.05 | P119: 0.05 | Q119: 0.05
D120: Interest Expense on Opening Balance | F120: =F119*F115 -> 10 | G120: 8.504717949 | H120: 8.504717949 | I120: 8.504717949 | J120: 8.289179331 | K120: 7.452949051 | L120: 5.842269087 | M120: 3.271110854 | N120: 0 | O120: 0 | P120: 0 | Q120: 0
D121: Interest Expense on Average Balance | F121: =AVERAGE(F118,F115)*F119 -> 9.252358974 | G121: =AVERAGE(G118,G115)*G119 -> 8.504717949 | H121: 8.504717949 | I121: 8.39694864 | J121: 7.871064191 | K121: 6.647609069 | L121: 4.55668997 | M121: 1.635555427 | N121: 0 | O121: 0 | P121: 0 | Q121: 0
A123: Profit and Loss Statement
D125: Growth Rate | E125: 0.2
D127: EBITDA | E127: 30 | F127: =E127*(1+$E$41) -> 36 | G127: =F127*(1+$E$41) -> 43.2 | H127: 51.84 | I127: 62.208 | J127: 74.6496 | K127: 89.57952 | L127: 107.495424 | M127: 128.9945088 | N127: 154.7934106 | O127: 185.7520927 | P127: 222.9025112 | Q127: 267.4830134
D128: Depreciation | E128: 300 | F128: =E128/11 -> 27.27272727 | G128: =F128 -> 27.27272727 | H128: =G128 -> 27.27272727 | I128: 27.27272727 | J128: 27.27272727 | K128: 27.27272727 | L128: 27.27272727 | M128: 27.27272727 | N128: 27.27272727 | O128: 27.27272727 | P128: 27.27272727 | Q128: 27.27272727
D129: EBIT | F129: =F127-F128 -> 8.727272727 | G129: 15.92727273 | H129: 24.56727273 | I129: 34.93527273 | J129: 47.37687273 | K129: 62.30679273 | L129: 80.22269673 | M129: 101.7217815 | N129: 127.5206833 | O129: 158.4793654 | P129: 195.6297839 | Q129: 240.2102862
D130: Less: Interest Expense on Short-term | F130: =F121 -> 9.252358974 | G130: =G121 -> 8.504717949 | H130: 8.504717949 | I130: 8.39694864 | J130: 7.871064191 | K130: 6.647609069 | L130: 4.55668997 | M130: 1.635555427 | N130: 0 | O130: 0 | P130: 0 | Q130: 0
D131: Less: Other Interest Expense | F131: 0 | G131: =F131 -> 0 | H131: =G131 -> 0 | I131: 0 | J131: 0 | K131: 0 | L131: 0 | M131: 0 | N131: 0 | O131: 0 | P131: 0 | Q131: 0
D132: Add: Interest Income on Operating Cash | F132: =F103 -> 0.208 | G132: =G103 -> 0.2376 | H132: 0.28512 | I132: 0.342144 | J132: 0.4105728 | K132: 0.49268736 | L132: 0.591224832 | M132: 0.7094697984 | N132: 0.8513637581 | O132: 1.02163651 | P132: 1.225963812 | Q132: 1.471156574
D133: Add: Interest Income on Surplus | F133: =F112 -> 3.75 | G133: =G112 -> 3.57940357 | H133: 3.338392067 | I133: 3.267976993 | J133: 3.267976993 | K133: 3.267976993 | L133: 3.267976993 | M133: 3.387830126 | N133: 4.791389423 | O133: 7.765743945 | P133: 11.63917384 | Q133: 16.59919557
D134: EBT Before NOL | F134: =F129-F130-F131+F132+F133 -> 3.432913753 | G134: 11.23955835 | H134: 19.68606685 | I134: 30.14844508 | J134: 43.18435833 | K134: 59.41984801 | L134: 79.52520858 | M134: 104.183526 | N134: 133.1634365 | O134: 167.2667459 | P134: 208.4949216 | Q134: 258.2806383
D136: NOL Opening Balance
D137: Opening Balance | F137: =E140 -> 0 | G137: =F140 -> 0 | H137: 0 | I137: 0 | J137: 0 | K137: 0 | L137: 0 | M137: 0 | N137: 0 | O137: 0 | P137: 0 | Q137: 0
D138: Add: NOL Created | F138: =MAX(-F134,0) -> 0 | G138: =MAX(-G134,0) -> 0 | H138: 0 | I138: 0 | J138: 0 | K138: 0 | L138: 0 | M138: 0 | N138: 0 | O138: 0 | P138: 0 | Q138: 0
D139: Less: NOL Used | F139: =MIN(F137,MAX(F134,0)) -> 0 | G139: =MIN(G137,MAX(G134,0)) -> 0 | H139: 0 | I139: 0 | J139: 0 | K139: 0 | L139: 0 | M139: 0 | N139: 0 | O139: 0 | P139: 0 | Q139: 0
D140: Closing Balance | F140: =F137+F138-F139 -> 0 | G140: 0 | H140: 0 | I140: 0 | J140: 0 | K140: 0 | L140: 0 | M140: 0 | N140: 0 | O140: 0 | P140: 0 | Q140: 0
D142: EBT After NOL | F142: =F134+F138-F139 -> 3.432913753 | G142: =G134+G138-G139 -> 11.23955835 | H142: 19.68606685 | I142: 30.14844508 | J142: 43.18435833 | K142: 59.41984801 | L142: 79.52520858 | M142: 104.183526 | N142: 133.1634365 | O142: 167.2667459 | P142: 208.4949216 | Q142: 258.2806383
D143: Tax Rate | E143: 0 | F143: =E143 -> 0 | G143: =F143 -> 0 | H143: 0 | I143: 0 | J143: 0 | K143: 0 | L143: 0 | M143: 0 | N143: 0 | O143: 0 | P143: 0 | Q143: 0
D144: Taxes Paid | F144: =F143*F142 -> 0 | G144: 0 | H144: 0 | I144: 0 | J144: 0 | K144: 0 | L144: 0 | M144: 0 | N144: 0 | O144: 0 | P144: 0 | Q144: 0
D146: Net Income | F146: =F134-F144 -> 3.432913753 | G146: =G134-G144 -> 11.23955835 | H146: 19.68606685 | I146: 30.14844508 | J146: 43.18435833 | K146: 59.41984801 | L146: 79.52520858 | M146: 104.183526 | N146: 133.1634365 | O146: 167.2667459 | P146: 208.4949216 | Q146: 258.2806383
A148: Cash Flow Statement
C150: EBITDA | F150: =F127 -> 36 | G150: =G127 -> 43.2 | H150: 51.84 | I150: 62.208 | J150: 74.6496 | K150: 89.57952 | L150: 107.495424 | M150: 128.9945088 | N150: 154.7934106 | O150: 185.7520927 | P150: 222.9025112 | Q150: 267.4830134
C151: Less: WC Changes | F151: 0 | G151: 20 | H151: =G151 -> 20 | I151: 20 | J151: 20 | K151: 20 | L151: 20 | M151: 20 | N151: 20 | O151: 20 | P151: 20 | Q151: 20
C152: Less: Capital Expenditures | F152: 0 | G152: 30 | H152: =G152 -> 30 | I152: 30 | J152: 30 | K152: 30 | L152: 30 | M152: 30 | N152: 30 | O152: 30 | P152: 30 | Q152: 30
C153: Less: Taxes Paid | F153: =F144 -> 0 | G153: =G144 -> 0 | H153: 0 | I153: 0 | J153: 0 | K153: 0 | L153: 0 | M153: 0 | N153: 0 | O153: 0 | P153: 0 | Q153: 0
D154: Cash Flow from Operations | F154: =F150-F151-F152-F153 -> 36 | G154: -6.8 | H154: 1.84 | I154: 12.208 | J154: 24.6496 | K154: 39.57952 | L154: 57.495424 | M154: 78.9945088 | N154: 104.7934106 | O154: 135.7520927 | P154: 172.9025112 | Q154: 217.4830134
C155: Less: Interest Expense on New Debt | F155: =F130 -> 9.252358974 | G155: =G130 -> 8.504717949 | H155: 8.504717949 | I155: 8.39694864 | J155: 7.871064191 | K155: 6.647609069 | L155: 4.55668997 | M155: 1.635555427 | N155: 0 | O155: 0 | P155: 0 | Q155: 0
C156: Less: Other Interest Expense | F156: =F131 -> 0 | G156: =G131 -> 0 | H156: 0 | I156: 0 | J156: 0 | K156: 0 | L156: 0 | M156: 0 | N156: 0 | O156: 0 | P156: 0 | Q156: 0
C157: Add: Interest Income on Operating Cash | F157: =F132 -> 0.208 | G157: =G132 -> 0.2376 | H157: 0.28512 | I157: 0.342144 | J157: 0.4105728 | K157: 0.49268736 | L157: 0.591224832 | M157: 0.7094697984 | N157: 0.8513637581 | O157: 1.02163651 | P157: 1.225963812 | Q157: 1.471156574
C158: Add: Interest Income on Surplus Cash | F158: =F133 -> 3.75 | G158: =G133 -> 3.57940357 | H158: 3.338392067 | I158: 3.267976993 | J158: 3.267976993 | K158: 3.267976993 | L158: 3.267976993 | M158: 3.387830126 | N158: 4.791389423 | O158: 7.765743945 | P158: 11.63917384 | Q158: 16.59919557
C159: Less: Dividends | E159: 0 | F159: =MAX($E159*F146,0) -> 0 | G159: 0 | H159: 0 | I159: 0 | J159: 0 | K159: 0 | L159: 0 | M159: 0 | N159: 0 | O159: 0 | P159: 0 | Q159: 0
D160: Cash Flow after Dividends | F160: =F154-F155-F156+F157+F158-F159 -> 30.70564103 | G160: =G154-G155-G156+G157+G158-G159 -> -11.48771438 | H160: -3.041205882 | I160: 7.421172354 | J160: 20.4570856 | K160: 36.69257528 | L160: 56.79793586 | M160: 81.4562533 | N160: 110.4361637 | O160: 144.5394731 | P160: 185.7676489 | Q160: 235.5533656
C161: Less: Required Cash for Operations | F161: =F100 -> 0.8 | G161: =G100 -> 2.16 | H161: 2.592 | I161: 3.1104 | J161: 3.73248 | K161: 4.478976 | L161: 5.3747712 | M161: 6.44972544 | N161: 7.739670528 | O161: 9.287604634 | P161: 11.14512556 | Q161: 13.37415067
D162: Remaining Cash Flow | F162: =corp_cf(F174,F179,F176,F180,F177,F157,F161,F115,F106) -> 29.90564103 | G162: =corp_cf(G174,G179,G176,G180,G177,G157,G161,G115,G106) -> -13.64771438 | H162: -5.633205882 | I162: 4.310772354 | J162: 16.7246056 | K162: 32.21359928 | L162: 51.42316466 | M162: 75.01046767 | N162: 102.6964932 | O162: 135.2518685 | P162: 174.6225233 | Q162: 222.1792149
C163: Add: Withdrawl from Surplus Cash when Negative | F163: =MIN(MAX(-F162,0),F106) -> 0 | G163: =MIN(MAX(-G162,0),G106) -> 13.64771438 | H163: 5.633205882 | I163: 0 | J163: 0 | K163: 0 | L163: 0 | M163: 0 | N163: 0 | O163: 0 | P163: 0 | Q163: 0
C164: Less: Reduction from Short-term Debt when Positive | F164: =MIN(F115,MAX(F162,0)) -> 29.90564103 | G164: =MIN(G115,MAX(G162,0)) -> 0 | H164: 0 | I164: 4.310772354 | J164: 16.7246056 | K164: 32.21359928 | L164: 51.42316466 | M164: 65.42221708 | N164: 0 | O164: 0 | P164: 0 | Q164: 0
D165: Remaining Cash Flow | F165: =F162+F163-F164 -> 0 | G165: 0 | H165: 0 | I165: 0 | J165: 0 | K165: 0 | L165: 0 | M165: 9.588250589 | N165: 102.6964932 | O165: 135.2518685 | P165: 174.6225233 | Q165: 222.1792149
C166: Add: Issuance of New Debt when Negative | F166: =MAX(-F165,0) -> 0 | G166: =MAX(-G165,0) -> 0 | H166: 0 | I166: 0 | J166: 0 | K166: 0 | L166: 0 | M166: 0 | N166: 0 | O166: 0 | P166: 0 | Q166: 0
C167: Less: Addition to Cash Balance when Positive | F167: =MAX(F165,0) -> 0 | G167: =MAX(G165,0) -> 0 | H167: 0 | I167: 0 | J167: 0 | K167: 0 | L167: 0 | M167: 9.588250589 | N167: 102.6964932 | O167: 135.2518685 | P167: 174.6225233 | Q167: 222.1792149
D168: Remainder | F168: =F165+F166-F167 -> 0 | G168: 0 | H168: 0 | I168: 0 | J168: 0 | K168: 0 | L168: 0 | M168: 0 | N168: 0 | O168: 0 | P168: 0 | Q168: 0
D170: Check | F170: =ROUND(F171,2)=0 -> TRUE | G170: =ROUND(G171,2)=0 -> TRUE | H170: TRUE | I170: TRUE | J170: TRUE | K170: TRUE | L170: TRUE | M170: TRUE | N170: TRUE | O170: TRUE | P170: TRUE | Q170: TRUE
F171: =F160-F161-F162 -> 0 | G171: =G160-G161-G162 -> 0 | H171: 0 | I171: 0 | J171: 0 | K171: 0 | L171: 0 | M171: -0.003939809732 | N171: 0 | O171: 0 | P171: 0 | Q171: 0
F172: =F160-F161 -> 29.90564103
D174: EBITDA less Cap Exp less WC Changes | F174: =F150-F151-F152 -> 36 | G174: =G150-G151-G152 -> -6.8 | H174: 1.84 | I174: 12.208 | J174: 24.6496 | K174: 39.57952 | L174: 57.495424 | M174: 78.9945088 | N174: 104.7934106 | O174: 135.7520927 | P174: 172.9025112 | Q174: 217.4830134
D176: Opening Surplus Cash Interest | F176: =F111 -> 3.75 | G176: =G111 -> 3.75 | H176: 3.408807141 | I176: 3.267976993 | J176: 3.267976993 | K176: 3.267976993 | L176: 3.267976993 | M176: 3.267976993 | N176: 3.507683258 | O176: 6.075095589 | P176: 9.456392301 | Q176: 13.82195538
D177: Cash Interest Rate | F177: =F110 -> 0.025 | G177: =G110 -> 0.025 | H177: 0.025 | I177: 0.025 | J177: 0.025 | K177: 0.025 | L177: 0.025 | M177: 0.025 | N177: 0.025 | O177: 0.025 | P177: 0.025 | Q177: 0.025
D179: Opening New Debt Interest | F179: =F120 -> 10 | G179: =G120 -> 8.504717949 | H179: 8.504717949 | I179: 8.504717949 | J179: 8.289179331 | K179: 7.452949051 | L179: 5.842269087 | M179: 3.271110854 | N179: 0 | O179: 0 | P179: 0 | Q179: 0
D180: Debt Interest Rate | F180: =F119 -> 0.05 | G180: =G119 -> 0.05 | H180: 0.05 | I180: 0.05 | J180: 0.05 | K180: 0.05 | L180: 0.05 | M180: 0.05 | N180: 0.05 | O180: 0.05 | P180: 0.05 | Q180: 0.05
D182: Cash Flow Computed
A185: Simple:
D187: CF = EBITDA - taxes - div - Int OB - Int Incr + Int Inc Op + Int Inc Incr
D188: Int Incr = - CF1 * int rate/2
D189: Int Income Incr = CF * inc rate/2
D191: CF = EBITDA - taxes - div - Int OB - Int Incr + Int Inc Op + Int Inc Incr
D192: CF = EBITDA - taxes - div - Int OB + CF * int rate/2 + Int Inc Op + CF * inc rate/2
D194: CF - CF * int rate/2 - CF * inc rate/2 = EBITDA - taxes - div - Int OB + Int Inc OB
D196: CF * (1 - int rate/2 - inc rate/2) = EBITDA - taxes - div - Int OB + Int Inc OB
D198: CF * (1 - int rate/2 - inc rate/2) = EBITDA - taxes - div - Int OB + Int Inc OB
D200: CF = (EBITDA - taxes - div - Int OB + Int Inc OB + Int Inc Op Cash) /(1 - int rate/2 - inc rate/2)
A202: With taxes:
D204: Taxes = (EBIDA - Dep - Int + Int Income) * t
D206: Dividends = (EBITDA - Dep - Taxes - Int + Int Inc) *DPR
D208: CF = EBITDA - Other - (EBITDA- Int opening + Int Inc Opening - Incr Int + Inrc Int Inc ) * t - (EBITDA - Dep - Taxes - Int) * DPR - Int OB - Incr Int + Int Inc Op + Incr Int Inc
D210: CF = EBITDA - Oth - tax - div - int + inc
D211: tax = (EBITDA - int + inc - dep) x t
D212: div = (EBITDA - int + inc - dep - tax) x d
D213: int = oint - CF/2 x Avg Rate
D214: inc = oinc + CF/2 x Avg Rate
D216: Subsituting
D218: CF = EBITDA - Oth - (EBITDA - int + inc - dep) x t - (EBITDA - int + inc - dep - tax) x d - int + inc
D219: CF = EBITDA - Oth - (EBITDA - int + inc - dep) x t - (EBITDA - int + inc - dep - (EBITDA - int + inc - dep) x t) x d - int + inc
D221: CF = (EBITDA - int + inc) * (1-t -d * (1-t)) - Oth + dep x t - dep * (1-t) * d
D222: CF = (EBITDA - int + inc) * (1-t -d * (1-t)) - Oth + dep x t - dep * (1-t) * d
D225: CF = (EBITDA - oint + CF/2 x Avg Rate + oinc + CF/2 x Avg Rate) * (1-t -d * (1-t)) - Oth + dep x t - dep * (1-t) * d
D227: CF = (EBITDA - oint + oinc + CF/2 x Avg Rate) * (1-t -d * (1-t)) - Oth + dep x t - dep * (1-t) * d
D229: CF = (EBITDA - oint + oinc + CF/2 x Avg Rate) * (1-t -d * (1-t)) - Oth + dep x t - dep * (1-t) * d
